Workbook

Sheet บัญชี (จังหวัด)
A1: บัญชีรายละเอียดแจ้งการจัดสรรงบประมาณรายจ่ายประจำปีงบประมาณ พ.ศ. 2569
A2: เงินอุดหนุนทั่วไป เงินอุดหนุนสำหรับการจัดการศึกษาภาคบังคับ (บำเหน็จ บำนาญ) ไตรมาสที่ 2 (เดือนมกราคม - กุมภาพันธ์ 2569) เพิ่มเติม
B4: ที่ | C4: จังหวัด | D4: รวมจำนวนเงินที่จัดสรร
D5: ไตรมาสที่ 2 (ม.ค. - ก.พ. 69) เพิ่มเติม
D6: จำนวน | E6: จำนวนเงิน
D7: (ราย) | E7: (บาท)
B8: 1 | C8: กระบี่ | D8: 1 | E8: 216,658.00
B9: 2 | C9: กาฬสินธุ์ | D9: 10 | E9: 915,431.00
B10: 3 | C10: กำแพงเพชร | D10: 4 | E10: 163,082.00
B11: 4 | C11: ขอนแก่น | D11: 4 | E11: 572,305.00
B12: 5 | C12: ชลบุรี | D12: 2 | E12: 332,915.00
B13: 6 | C13: เชียงราย | D13: 1 | E13: 211,492.00
B14: 7 | C14: เชียงใหม่ | D14: 7 | E14: 270,456.00
B15: 8 | C15: ตรัง | D15: 1 | E15: 264,693.00
B16: 9 | C16: นครพนม | D16: 9 | E16: 1,233,268.00
B17: 10 | C17: นครราชสีมา | D17: 2 | E17: 654,902.00
B18: 11 | C18: นครศรีธรรมราช | D18: 2 | E18: 374,069.00
B19: 12 | C19: นราธิวาส | D19: 3 | E19: 497,474.42
B20: 13 | C20: น่าน | D20: 1 | E20: 208,762.00
B21: 14 | C21: บึงกาฬ | D21: 4 | E21: 753,826.00
B22: 15 | C22: บุรีรัมย์ | D22: 1 | E22: 210,526.00
B23: 16 | C23: ปทุมธานี | D23: 2 | E23: 393,503.00
B24: 17 | C24: ประจวบคีรีขันธ์ | D24: 2 | E24: 697,560.00
B25: 18 | C25: ปัตตานี | D25: 2 | E25: 366,304.00
B26: 19 | C26: พระนครศรีอยุธยา | D26: 1 | E26: 191,039.00
B27: 20 | C27: พัทลุง | D27: 1 | E27: 155,749.00
B28: 21 | C28: แพร่ | D28: 1 | E28: 247,499.03
B29: 22 | C29: มหาสารคาม | D29: 1 | E29: 22,000.00
B30: 23 | C30: มุกดาหาร | D30: 1 | E30: 16,785.00
B31: 24 | C31: ระยอง | D31: 1 | E31: 201,412.00
B32: 25 | C32: ลำปาง | D32: 2 | E32: 356,051.00
B33: 26 | C33: ลำพูน | D33: 4 | E33: 331,156.00
B34: 27 | C34: เลย | D34: 1 | E34: 197,338.00
B35: 28 | C35: ศรีสะเกษ | D35: 10 | E35: 1,104,519.00
B36: 29 | C36: สกลนคร | D36: 1 | E36: 183,423.16
B37: 30 | C37: สงขลา | D37: 6 | E37: 796,553.00
B38: 31 | C38: สตูล | D38: 2 | E38: 421,288.00
B39: 32 | C39: สระแก้ว | D39: 1 | E39: 189,320.00
B40: 33 | C40: สุโขทัย | D40: 1 | E40: 200,446.00
B41: 34 | C41: สุราษฎร์ธานี | D41: 2 | E41: 358,715.00
B42: 35 | C42: สุรินทร์ | D42: 2 | E42: 214,768.00
B43: 36 | C43: หนองคาย | D43: 1 | E43: 156,244.00
B44: 37 | C44: อำนาจเจริญ | D44: 8 | E44: 718,814.00
B45: 38 | C45: อุดรธานี | D45: 14 | E45: 2,167,330.00
B46: 39 | C46: อุตรดิตถ์ | D46: 1 | E46: 169,422.00
B47: รวมทั้งสิ้น | D47: =SUM(D8:D46) -> 120 | E47: =SUM(E8:E46) -> 16,737,097.61

Sheet บัญชีสรุป รายเก่า
A1: บัญชีรายละเอียดแจ้งการจัดสรรงบประมาณรายจ่ายประจำปีงบประมาณ พ.ศ. 2569
A2: เงินอุดหนุนทั่วไป เงินอุดหนุนสำหรับการจัดการศึกษาภาคบังคับ (บำเหน็จ บำนาญ) ไตรมาสที่ 2 (เดือนมกราคม - กุมภาพันธ์ 2569) เพิ่มเติม รายเก่า
A4: ที่ | B4: คำนำ | C4: ชื่อตัว | D4: ชื่อสกุล | E4: เลขบัตร | F4: ว/ด/ป เกิด | G4: ว/ด/ป | H4: ว/ด/ป | I4: ว/ด/ป | J4: เวลาราชการ | K4: เวลาราชการ | L4: เวลาก่อน | M4: รับบำนาญเหตุ | N4: รหัสท้องถิ่นA | O4: ท้องถิ่นที่เข้า | P4: รหัสท้องถิ่นB | Q4: ท้องถิ่นที่รับ | R4: อำเภอ | S4: จังหวัด | T4: ประเภท | U4: ตำแหน่งที่ | V4: ประเภทการรับ | W4: ว/ด/ป | AC4: เงินบำนาญ | AE4: เงินบำนาญ | AF4: จัดสรรไตรมาส 1 | AG4: จัดสรรไตรมาส 2 | AH4: จัดสรรไตรมาส 3 | AI4: จัดสรรไตรมาส 4 | AJ4: กรณีไม่มีสิทธิได้รับ ให้ลบข้อมูลออก | AQ4: ช.ค.บ.ฉบับที่ 1-18 | AS4: เงิน ช.ค.บ. | AT4: จัดสรรไตรมาส 1 | AU4: จัดสรรไตรมาส 2 | AV4: จัดสรรไตรมาส 3 | AW4: จัดสรรไตรมาส 4 | AX4: บำเหน็จดำรงชีพ | AZ4: บำเหน็จดำรงชีพ | BB4: บำเหน็จดำรงชีพ | BD4: เงินบำเหน็จปกติ | BF4: เงินบำเหน็จตกทอด | BH4: ตกเบิกเงินบำเหน็จบำนาญ | BJ4: เงินบำเหน็จตกทอดและ | BL4: เงินเหลือจ่าย | BN4: แจ้งยอดเงินจัดสรร | BP4: แจ้งยอดเงินจัดสรร | BR4: แจ้งยอดเงินจัดสรร | BT4: แจ้งยอดเงินจัดสรร | BV4: จัดสรรเงิน
B5: หน้าชื่อ | E5: ประจำตัว | G5: ที่รับราชการ | H5: โอนมา อปท. | I5: ที่ออก | J5: สำหรับคำนวณ | K5: สำหรับคำนวณ | L5: ถ่ายโอน | O5: รับราชการ | Q5: บำนาญ | T5: ข้าราชการ | U5: รับบำนาญ | W5: ที่ถึงแก่กรรม | X5: เฉลี่ย | Y5: เงินเดือน | Z5: เงินเดือน | AA5: พสร. | AB5: ปี | AC5: ต่อเดือน | AE5: ไตรมาส 1-4 | AF5: (ต.ค. - ธ.ค.68) | AG5: (ม.ค. - ก.พ.69) | AH5: (เม.ย. - มิ.ย.69) | AI5: (ก.ค. - ก.ย.69) | AJ5: ช.ค.บ. | AK5: รวมบำนาญ | AL5: ฉบับที่ 15 | AM5: คำนวณ | AN5: ช.ค.บ. | AO5: ช.ค.บ. | AP5: ช.ค.บ. | AQ5: ต่อเดือน | AS5: ไตรมาส 1-4 | AT5: (ต.ค. - ธ.ค.68) | AU5: (ม.ค. - ก.พ.69) | AV5: (เม.ย. - มิ.ย.68) | AW5: (ก.ค. - ก.ย.68) | AX5: 200,000 แรก | AZ5: อายุ 65 ปี | BB5: อายุ 70 ปี | BF5: (ตายในตำแหน่ง) | BJ5: เงินช่วยพิเศษ (บำนาญตาย) | BN5: ไตรมาสที่ 1 (ต.ค. - ธ.ค. 68) | BP5: ไตรมาสที่ 2 (ม.ค - มี.ค.68) | BR5: ไตรมาสที่ 3 (เม.ย. - มิ.ย. 68) | BT5: ไตรมาสที่ 4 (ก.ค. - ก.ย. 68) | BV5: ไตรมาสที่ 2 (ม.ค - ก.พ.69) เพิ่มเติม
E6: ประชาชน | I6: จากราชการ | J6: เต็ม (ปี) | K6: ทศนิยม (ปี) | L6: (ปี) | X6: 60 เดือน | Y6: (เดิม) | Z6: (ปรับใหม่) | AB6: งบประมาณ | AC6: จำนวน | AD6: จำนวนเงิน | AE6: (ต.ค.68 - ก.ย.69) | AJ6: ฉบับที่ 1-14 | AK6: และ ช.ค.บ. | AL6: ต่ำกว่า 9,000 | AM6: ฉบับที่ 16 | AN6: ฉบับที่ 16 | AO6: ฉบับที่ 17 | AP6: ฉบับที่ 18 | AQ6: จำนวน | AR6: จำนวนเงิน | AS6: (ต.ค.68 - ก.ย.69) | AX6: จำนวน | AY6: จำนวนเงิน | AZ6: จำนวน | BA6: จำนวนเงิน | BB6: จำนวน | BC6: จำนวนเงิน | BD6: จำนวน | BE6: จำนวนเงิน | BF6: จำนวน | BG6: จำนวนเงิน | BH6: จำนวน | BI6: จำนวนเงิน | BJ6: จำนวน | BK6: จำนวนเงิน | BL6: จำนวน | BM6: จำนวนเงิน | BN6: จำนวน | BO6: จำนวนเงิน | BP6: จำนวน | BQ6: จำนวนเงิน | BR6: จำนวน | BS6: จำนวนเงิน | BT6: จำนวน | BU6: จำนวนเงิน | BV6: จำนวน | BW6: จำนวนเงิน
E7: ประชาชน | I7: จากราชการ | J7: เต็ม (ปี) | K7: ทศนิยม (ปี) | L7: (ปี) | AC7: (ราย) | AD7: (บาท) | AE7: 12 เดือน | AN7: เพิ่ม 4 % | AO7: ต่ำกว่า 10,000 | AP7: ต่ำกว่า 11,000 | AQ7: (ราย) | AR7: (บาท) | AS7: 12 เดือน | AX7: (ราย) | AY7: (บาท) | AZ7: (ราย) | BA7: (บาท) | BB7: (ราย) | BC7: (บาท) | BD7: (ราย) | BE7: (บาท) | BF7: (ราย) | BG7: (บาท) | BH7: (ราย) | BI7: (บาท) | BJ7: (ราย) | BK7: (บาท) | BL7: (ราย) | BM7: (บาท) | BN7: (ราย) | BO7: (บาท) | BP7: (ราย) | BQ7: (บาท) | BR7: (ราย) | BS7: (บาท) | BT7: (ราย) | BU7: (บาท) | BV7: (ราย) | BW7: (บาท)
A8: =A7+1 -> 1 | Q8: อบต.แจนแลน | R8: กุฉินารายณ์ | S8: กาฬสินธุ์ | BH8: 5 | BI8: 266,119.00 | BV8: =BH8 -> 5 | BW8: =BI8 -> 266,119.00
A9: =A8+1 -> 2 | Q9: อบต.หนองห้าง | R9: กุฉินารายณ์ | S9: กาฬสินธุ์ | BH9: 1 | BI9: 18,802.00 | BV9: =BH9 -> 1 | BW9: 18,802.00
A10: =A9+1 -> 3 | Q10: อบต.เหล่าไฮงาม | R10: กุฉินารายณ์ | S10: กาฬสินธุ์ | BH10: 3 | BI10: 169,010.00 | BV10: 3 | BW10: 169,010.00
S11: กาฬสินธุ์ ผลรวม | BH11: =SUBTOTAL(9,BH8:BH10) -> 9 | BI11: =SUBTOTAL(9,BI8:BI10) -> 453,931.00 | BV11: =SUBTOTAL(9,BV8:BV10) -> 9 | BW11: =SUBTOTAL(9,BW8:BW10) -> 453,931.00
A12: 1 | Q12: อบต.คณฑี | R12: เมืองกำแพงเพชร | S12: กำแพงเพชร | BH12: 1 | BI12: 966.00 | BV12: 1 | BW12: 966.00
A13: 2 | Q13: อบต.นครชุม | R13: เมืองกำแพงเพชร | S13: กำแพงเพชร | BH13: 1 | BI13: 140,116.00 | BV13: 1 | BW13: 140,116.00
A14: 3 | Q14: อบต.วังทอง | R14: เมืองกำแพงเพชร | S14: กำแพงเพชร | BH14: 2 | BI14: 22,000.00 | BV14: 2 | BW14: 22,000.00
S15: กำแพงเพชร ผลรวม | BH15: =SUBTOTAL(9,BH12:BH14) -> 4 | BI15: =SUBTOTAL(9,BI12:BI14) -> 163,082.00 | BV15: =SUBTOTAL(9,BV12:BV14) -> 4 | BW15: =SUBTOTAL(9,BW12:BW14) -> 163,082.00
A16: 1 | Q16: อบต.นางาม | R16: มัญจาคีรี | S16: ขอนแก่น | BH16: 1 | BI16: 22,000.00 | BV16: 1 | BW16: 22,000.00
S17: ขอนแก่น ผลรวม | BH17: =SUBTOTAL(9,BH16:BH16) -> 1 | BI17: =SUBTOTAL(9,BI16:BI16) -> 22,000.00 | BV17: =SUBTOTAL(9,BV16:BV16) -> 1 | BW17: =SUBTOTAL(9,BW16:BW16) -> 22,000.00
A18: 1 | Q18: อบต.แม่สูน | R18: ฝาง | S18: เชียงใหม่ | BH18: 3 | BI18: 257,211.00 | BV18: 3 | BW18: 257,211.00
S19: เชียงใหม่ ผลรวม | BH19: =SUBTOTAL(9,BH18:BH18) -> 3 | BI19: =SUBTOTAL(9,BI18:BI18) -> 257,211.00 | BV19: =SUBTOTAL(9,BV18:BV18) -> 3 | BW19: =SUBTOTAL(9,BW18:BW18) -> 257,211.00
A20: 1 | Q20: อบต.นาขาม | R20: เรณูนคร | S20: นครพนม | BH20: 2 | BI20: 22,000.00 | BV20: 2 | BW20: 22,000.00
A21: 2 | Q21: อบต.โพนสว่าง | R21: ศรีสงคราม | S21: นครพนม | BH21: 1 | BI21: 169,149.00 | BV21: 1 | BW21: 169,149.00
S22: นครพนม ผลรวม | BH22: =SUBTOTAL(9,BH20:BH21) -> 3 | BI22: =SUBTOTAL(9,BI20:BI21) -> 191,149.00 | BV22: =SUBTOTAL(9,BV20:BV21) -> 3 | BW22: =SUBTOTAL(9,BW20:BW21) -> 191,149.00
A23: 1 | Q23: อบต.กระแชง | R23: บางไทร | S23: พระนครศรีอยุธยา | BL23: 1 | BM23: 55,000.00 | BW23: -55,000.00
S24: พระนครศรีอยุธยา ผลรวม | BH24: =SUBTOTAL(9,BH23:BH23) -> 0 | BI24: =SUBTOTAL(9,BI23:BI23) -> 0 | BV24: =SUBTOTAL(9,BV23:BV23) -> 0 | BW24: =SUBTOTAL(9,BW23:BW23) -> -55,000.00
A25: 1 | Q25: อบต.เวียงทอง | R25: สูงเม่น | S25: แพร่ | BL25: 1 | BM25: 30,870.97 | BV25: =BH25 -> 0 | BW25: -30,870.97
S26: แพร่ ผลรวม | BH26: =SUBTOTAL(9,BH25:BH25) -> 0 | BI26: =SUBTOTAL(9,BI25:BI25) -> 0 | BV26: =SUBTOTAL(9,BV25:BV25) -> 0 | BW26: =SUBTOTAL(9,BW25:BW25) -> -30,870.97
A27: 1 | Q27: อบต.หนองไฮ | R27: วาปีปทุม | S27: มหาสารคาม | BH27: 1 | BI27: 22,000.00 | BV27: 1 | BW27: 22,000.00
S28: มหาสารคาม ผลรวม | BH28: =SUBTOTAL(9,BH27:BH27) -> 1 | BI28: =SUBTOTAL(9,BI27:BI27) -> 22,000.00 | BV28: =SUBTOTAL(9,BV27:BV27) -> 1 | BW28: =SUBTOTAL(9,BW27:BW27) -> 22,000.00
A29: 1 | Q29: อบต.ป่าไร่ | R29: ดอนตาล | S29: มุกดาหาร | BH29: 1 | BI29: 16,785.00 | BV29: 1 | BW29: 16,785.00
S30: มุกดาหาร ผลรวม | BH30: =SUBTOTAL(9,BH29:BH29) -> 1 | BI30: =SUBTOTAL(9,BI29:BI29) -> 16,785.00 | BV30: =SUBTOTAL(9,BV29:BV29) -> 1 | BW30: =SUBTOTAL(9,BW29:BW29) -> 16,785.00
A31: 1 | Q31: อบต.ป่าพลู | R31: บ้านโฮ่ง | S31: ลำพูน | BH31: 1 | BI31: 164,352.00 | BV31: 1 | BW31: 164,352.00
S32: ลำพูน ผลรวม | BH32: =SUBTOTAL(9,BH31:BH31) -> 1 | BI32: =SUBTOTAL(9,BI31:BI31) -> 164,352.00 | BV32: =SUBTOTAL(9,BV31:BV31) -> 1 | BW32: =SUBTOTAL(9,BW31:BW31) -> 164,352.00
A33: 1 | Q33: อบต.โคกเพชร | R33: ขุขันธ์ | S33: ศรีสะเกษ | BH33: 2 | BI33: 22,000.00 | BV33: 2 | BW33: 22,000.00
A34: 2 | Q34: อบต.ขะยูง | R34: อุทุมพรพิสัย | S34: ศรีสะเกษ | BH34: 4 | BI34: 66,000.00 | BV34: 4 | BW34: 66,000.00
S35: ศรีสะเกษ ผลรวม | BH35: =SUBTOTAL(9,BH33:BH34) -> 6 | BI35: =SUBTOTAL(9,BI33:BI34) -> 88,000.00 | BV35: =SUBTOTAL(9,BV33:BV34) -> 6 | BW35: =SUBTOTAL(9,BW33:BW34) -> 88,000.00
A36: 1 | Q36: อบต.คูหา | R36: สะบ้าย้อย | S36: สงขลา | BH36: 2 | BI36: 22,000.00 | BV36: 2 | BW36: 22,000.00
S37: สงขลา ผลรวม | BH37: =SUBTOTAL(9,BH36:BH36) -> 2 | BI37: =SUBTOTAL(9,BI36:BI36) -> 22,000.00 | BV37: =SUBTOTAL(9,BV36:BV36) -> 2 | BW37: =SUBTOTAL(9,BW36:BW36) -> 22,000.00
A38: 1 | Q38: อบต.คำเขื่อนแก้ว | R38: ชานุมาน | S38: อำนาจเจริญ | BH38: 2 | BI38: 112,442.00 | BV38: 2 | BW38: 112,442.00
A39: 2 | Q39: อบต.จิกดู่ | R39: หัวตะพาน | S39: อำนาจเจริญ | BH39: 4 | BI39: 66,000.00 | BV39: 4 | BW39: 66,000.00
S40: อำนาจเจริญ ผลรวม | BH40: =SUBTOTAL(9,BH38:BH39) -> 6 | BI40: =SUBTOTAL(9,BI38:BI39) -> 178,442.00 | BV40: =SUBTOTAL(9,BV38:BV39) -> 6 | BW40: =SUBTOTAL(9,BW38:BW39) -> 178,442.00
A41: 1 | Q41: อบต.นาไหม | R41: บ้านดุง | S41: อุดรธานี | BH41: 1 | BI41: 162,831.00 | BV41: 1 | BW41: 162,831.00
A42: 2 | Q42: อบต.บ้านดุง | R42: บ้านดุง | S42: อุดรธานี | BH42: 2 | BI42: 183,402.00 | BV42: 2 | BW42: 183,402.00
A43: 3 | Q43: อบต.อ้อมกอ | R43: บ้านดุง | S43: อุดรธานี | BH43: 2 | BI43: 22,000.00 | BV43: 2 | BW43: 22,000.00
A44: 4 | Q44: อบต.กุดสระ | R44: เมืองอุดรธานี | S44: อุดรธานี | BH44: 1 | BI44: 148,104.00 | BV44: 1 | BW44: 148,104.00
S45: อุดรธานี ผลรวม | BH45: =SUBTOTAL(9,BH41:BH44) -> 6 | BI45: =SUBTOTAL(9,BI41:BI44) -> 516,337.00 | BV45: =SUBTOTAL(9,BV41:BV44) -> 6 | BW45: =SUBTOTAL(9,BW41:BW44) -> 516,337.00
A46: 1 | Q46: อบต.ขุนฝาง | R46: เมืองอุตรดิตถ์ | S46: อุตรดิตถ์ | BH46: 1 | BI46: 169,422.00 | BV46: 1 | BW46: 169,422.00
S47: อุตรดิตถ์ ผลรวม | BH47: =SUBTOTAL(9,BH46:BH46) -> 1 | BI47: =SUBTOTAL(9,BI46:BI46) -> 169,422.00 | BV47: =SUBTOTAL(9,BV46:BV46) -> 1 | BW47: =SUBTOTAL(9,BW46:BW46) -> 169,422.00

Sheet บัญชีรายชื่อ (รายใหม่)
A1: บัญชีรายละเอียดแจ้งการจัดสรรงบประมาณรายจ่ายประจำปีงบประมาณ พ.ศ. 2569
A2: เงินอุดหนุนทั่วไป เงินอุดหนุนสำหรับการจัดการศึกษาภาคบังคับ (บำเหน็จ บำนาญ) ไตรมาสที่ 2 (เดือนมกราคม - กุมภาพันธ์ 2569) เพิ่มเติม รายใหม่
A4: ที่ | B4: คำนำ | C4: ชื่อตัว | D4: ชื่อสกุล | E4: เลขบัตร | F4: ว/ด/ป เกิด | G4: ว/ด/ป | H4: ว/ด/ป | I4: ว/ด/ป | J4: เวลาราชการ | K4: เวลาราชการ | L4: เวลาก่อน | M4: รับบำนาญเหตุ | N4: รหัสท้องถิ่นA | O4: ท้องถิ่นที่เข้า | P4: รหัสท้องถิ่นB | Q4: ท้องถิ่นที่รับ | R4: อำเภอ | S4: จังหวัด | T4: ประเภท | U4: ตำแหน่งที่ | V4: ประเภทการรับ | W4: ว/ด/ป | AC4: เงินบำนาญ | AE4: เงินบำนาญ | AF4: เงินบำนาญ | AG4: เงินบำนาญ | AH4: คำนวนเงินบำนาญ | AI4: คำนวนเงินบำนาญ | AJ4: กรณีไม่มีสิทธิได้รับ ให้ลบข้อมูลออก | AQ4: ช.ค.บ.ฉบับที่ 1-18 | AS4: เงิน ช.ค.บ. | AT4: เงิน ช.ค.บ. | AU4: เงิน ช.ค.บ. | AV4: คำนวณเงิน ช.ค.บ. | AW4: คำนวณเงิน ช.ค.บ. | AX4: บำเหน็จดำรงชีพ | AZ4: บำเหน็จดำรงชีพ | BB4: บำเหน็จดำรงชีพ | BD4: เงินบำเหน็จปกติ | BF4: เงินบำเหน็จตกทอด | BH4: ตกเบิกเงิน | BJ4: เงินบำเหน็จตกทอดและ | BL4: แจ้งยอดเงินจัดสรร | BN4: แจ้งยอดเงินจัดสรร | BP4: แจ้งยอดเงินจัดสรร | BR4: แจ้งยอดเงินจัดสรร | BT4: จัดสรรเงิน
B5: หน้าชื่อ | E5: ประจำตัว | G5: ที่รับราชการ | H5: โอนมา อปท. | I5: ที่ออก | J5: สำหรับคำนวณ | K5: สำหรับคำนวณ | L5: ถ่ายโอน | O5: รับราชการ | Q5: บำนาญ | T5: ข้าราชการ | U5: รับบำนาญ | W5: ที่ถึงแก่กรรม | X5: เฉลี่ย | Y5: เงินเดือน | Z5: เงินเดือน | AA5: พสร. | AB5: ปี | AC5: ต่อเดือน | AE5: ไตรมาส 1-4 | AF5: จัดสรรไตรมาส 1 | AG5: จัดสรรไตรมาส 2 | AH5: จัดสรรไตรมาส 3 | AI5: จัดสรรไตรมาส 4 | AJ5: ช.ค.บ. | AK5: รวมบำนาญ | AL5: ฉบับที่ 15 | AM5: คำนวณ | AN5: ช.ค.บ. | AO5: ช.ค.บ. | AP5: ช.ค.บ. | AQ5: ต่อเดือน | AS5: ไตรมาส 1-4 | AT5: จัดสรรไตรมาส 1 | AU5: จัดสรรไตรมาส 2 | AV5: จัดสรรไตรมาส 3 | AW5: จัดสรรไตรมาส 4 | AX5: 200,000 แรก | AZ5: อายุ 65 ปี | BB5: อายุ 70 ปี | BF5: (ตายในตำแหน่ง) | BJ5: เงินช่วยพิเศษ (บำนาญตาย) | BL5: ไตรมาสที่ 1 (ต.ค. - ธ.ค. 68) | BN5: ไตรมาสที่ 2 (ม.ค - มี.ค.69) | BP5: ไตรมาสที่ 3 (เม.ย. - มิ.ย. 69) | BR5: ไตรมาสที่ 4 (ก.ค. - ก.ย. 69) | BT5: ไตรมาสที่ 2 (ม.ค - ก.พ.69)
E6: ประชาชน | I6: จากราชการ | J6: เต็ม (ปี) | K6: ทศนิยม (ปี) | L6: (ปี) | X6: 60 เดือน | Y6: (เดิม) | Z6: (ปรับใหม่) | AB6: งบประมาณ | AC6: จำนวน | AD6: จำนวนเงิน | AE6: (ต.ค.68 - ก.ย.69) | AF6: (ต.ค. - ธ.ค.68) | AG6: (ม.ค. - ก.พ.69) | AH6: (เม.ย. - มิ.ย.69) | AI6: (ก.ค. - ก.ย.69) | AJ6: ฉบับที่ 1-14 | AK6: และ ช.ค.บ. | AL6: ต่ำกว่า 9,000 | AM6: ฉบับที่ 16 | AN6: ฉบับที่ 16 | AO6: ฉบับที่ 17 | AP6: ฉบับที่ 18 | AQ6: จำนวน | AR6: จำนวนเงิน | AS6: (ต.ค.68 - ก.ย.69) | AT6: (ต.ค. - ธ.ค.68) | AU6: (ม.ค. - ก.พ.69) | AV6: (เม.ย. - มิ.ย.69) | AW6: (ก.ค. - ก.ย.69) | AX6: จำนวน | AY6: จำนวนเงิน | AZ6: จำนวน | BA6: จำนวนเงิน | BB6: จำนวน | BC6: จำนวนเงิน | BD6: จำนวน | BE6: จำนวนเงิน | BF6: จำนวน | BG6: จำนวนเงิน | BH6: จำนวน | BI6: จำนวนเงิน | BJ6: จำนวน | BK6: จำนวนเงิน | BL6: จำนวน | BM6: จำนวนเงิน | BN6: จำนวน | BO6: จำนวนเงิน | BP6: จำนวน | BQ6: จำนวนเงิน | BR6: จำนวน | BS6: จำนวนเงิน | BT6: จำนวน | BU6: จำนวนเงิน
E7: ประชาชน | J7: เต็ม (ปี) | K7: ทศนิยม (ปี) | L7: (ปี) | AC7: (ราย) | AD7: (บาท) | AE7: 12 เดือน | AF7: 3 เดือน | AG7: 2 เดือน | AH7: 3 เดือน | AI7: 3 เดือน | AN7: เพิ่ม 4 % | AO7: ต่ำกว่า 10,000 | AP7: ต่ำกว่า 11,000 | AQ7: (ราย) | AR7: (บาท) | AS7: 12 เดือน | AT7: 3 เดือน | AU7: 2 เดือน | AV7: 3 เดือน | AW7: 3 เดือน | AX7: (ราย) | AY7: (บาท) | AZ7: (ราย) | BA7: (บาท) | BB7: (ราย) | BC7: (บาท) | BD7: (ราย) | BE7: (บาท) | BF7: (ราย) | BG7: (บาท) | BH7: (ราย) | BI7: (บาท) | BJ7: (ราย) | BK7: (บาท) | BL7: (ราย) | BM7: (บาท) | BN7: (ราย) | BO7: (บาท) | BP7: (ราย) | BQ7: (บาท) | BR7: (ราย) | BS7: (บาท) | BT7: (ราย) | BU7: (บาท)
A8: 1 | B8: นาง | C8: พรทิพา | D8: ฉิมแก้ว | I8: 2568-10-01 | Q8: อบต.เขาเขน | R8: ปลายพระยา | S8: กระบี่ | AC8: 1 | AD8: 10,777.20 | AE8: =AD8*12 -> 129,326.40 | AF8: =AD8*3 -> 32,331.60 | AG8: =AD8*2 -> 21,554.40 | AH8: =AD8*3 -> 32,331.60 | AI8: =AD8*3 -> 32,331.60 | AK8: =AD8+AJ8 -> 10,777.20 | AP8: =11000-AO8-AD8 -> 222.80 | AQ8: 1 | AR8: =AJ8+AL8+AO8+AP8 -> 222.80 | AS8: =AR8*12 -> 2,673.60 | AT8: =AR8*3 -> 668.40 | AU8: =AR8*2 -> 445.60 | AV8: =AR8*3 -> 668.40 | AW8: =AR8*3 -> 668.40 | AX8: 1 | AY8: 161,658.00 | BN8: 1.00 | BO8: =AF8+AG8+AT8+AU8+AY8+BA8+BC8+BE8+BG8+BI8+BK8 -> 216,658.00 | BT8: =BN8 -> 1 | BU8: =ROUND(BO8,2) -> 216,658.00
Q9: อบต.เขาเขน ผลรวม | R9: ปลายพระยา | S9: กระบี่ | AC9: =SUBTOTAL(9,AC8:AC8) -> 1 | AD9: =SUBTOTAL(9,AD8:AD8) -> 10,777.20 | AE9: =SUBTOTAL(9,AE8:AE8) -> 129,326.40 | AF9: =SUBTOTAL(9,AF8:AF8) -> 32,331.60 | AG9: =SUBTOTAL(9,AG8:AG8) -> 21,554.40 | AQ9: =SUBTOTAL(9,AQ8:AQ8) -> 1 | AR9: =SUBTOTAL(9,AR8:AR8) -> 222.80 | AS9: =SUBTOTAL(9,AS8:AS8) -> 2,673.60 | AT9: =SUBTOTAL(9,AT8:AT8) -> 668.40 | AU9: =SUBTOTAL(9,AU8:AU8) -> 445.60 | AX9: =SUBTOTAL(9,AX8:AX8) -> 1 | AY9: 161,658.00 | AZ9: 0 | BA9: 0 | BB9: 0 | BC9: 0 | BD9: 0 | BE9: 0 | BF9: 0 | BG9: 0 | BH9: 0 | BI9: 0 | BJ9: 0 | BK9: 0 | BO9: =AF9+AG9+AT9+AU9+AY9+BA9+BC9+BE9+BG9+BI9+BK9 -> 216,658.00 | BT9: =SUBTOTAL(9,BT8:BT8) -> 1 | BU9: =SUBTOTAL(9,BU8:BU8) -> 216,658.00
S10: กระบี่ ผลรวม | AC10: =SUBTOTAL(9,AC8:AC8) -> 1 | AD10: =SUBTOTAL(9,AD8:AD8) -> 10,777.20 | AE10: =SUBTOTAL(9,AE8:AE8) -> 129,326.40 | AF10: =SUBTOTAL(9,AF8:AF8) -> 32,331.60 | AG10: =SUBTOTAL(9,AG8:AG8) -> 21,554.40 | AQ10: =SUBTOTAL(9,AQ8:AQ8) -> 1 | AR10: =SUBTOTAL(9,AR8:AR8) -> 222.80 | AS10: =SUBTOTAL(9,AS8:AS8) -> 2,673.60 | AT10: =SUBTOTAL(9,AT8:AT8) -> 668.40 | AU10: =SUBTOTAL(9,AU8:AU8) -> 445.60 | AX10: =SUBTOTAL(9,AX8:AX8) -> 1 | AY10: 161,658.00 | AZ10: 0 | BA10: 0 | BB10: 0 | BC10: 0 | BD10: 0 | BE10: 0 | BF10: 0 | BG10: 0 | BH10: 0 | BI10: 0 | BJ10: 0 | BK10: 0 | BO10: 216,658.00 | BT10: =SUBTOTAL(9,BT8:BT8) -> 1 | BU10: =SUBTOTAL(9,BU8:BU8) -> 216,658.00
A11: 1 | B11: นาง | C11: ประวาณี | D11: ทาบุเรศ | I11: 2568-06-20 | Q11: อบต.สำราญใต้ | R11: สามชัย | S11: กาฬสินธุ์ | AE11: =AD11*12 -> 0 | AF11: =AD11*3 -> 0 | AG11: =AD11*2 -> 0 | AH11: =AD11*3 -> 0 | AI11: =AD11*3 -> 0 | AK11: =AD11+AJ11 -> 0 | AP11: 0 | AR11: =AJ11+AL11+AO11+AP11 -> 0 | AS11: =AR11*12 -> 0 | AT11: =AR11*3 -> 0 | AU11: =AR11*2 -> 0 | AV11: =AR11*3 -> 0 | AW11: =AR11*3 -> 0 | BD11: 1 | BE11: 461,500.00 | BN11: 1.00 | BO11: 461,500.00 | BT11: =BN11 -> 1 | BU11: =ROUND(BO11,2) -> 461,500.00
Q12: อบต.สำราญใต้ ผลรวม | R12: สามชัย | S12: กาฬสินธุ์ | AC12: =SUBTOTAL(9,AC11:AC11) -> 0 | AD12: =SUBTOTAL(9,AD11:AD11) -> 0 | AE12: =SUBTOTAL(9,AE11:AE11) -> 0 | AF12: =SUBTOTAL(9,AF11:AF11) -> 0 | AG12: =SUBTOTAL(9,AG11:AG11) -> 0 | AQ12: =SUBTOTAL(9,AQ11:AQ11) -> 0 | AR12: =SUBTOTAL(9,AR11:AR11) -> 0 | AS12: =SUBTOTAL(9,AS11:AS11) -> 0 | AT12: =SUBTOTAL(9,AT11:AT11) -> 0 | AU12: =SUBTOTAL(9,AU11:AU11) -> 0 | AX12: =SUBTOTAL(9,AX11:AX11) -> 0 | AY12: 0 | AZ12: 0 | BA12: 0 | BB12: 0 | BC12: 0 | BD12: 1 | BE12: 461,500.00 | BF12: 0 | BG12: 0 | BH12: 0 | BI12: 0 | BJ12: 0 | BK12: 0 | BO12: 461,500.00 | BT12: =SUBTOTAL(9,BT11:BT11) -> 1 | BU12: =SUBTOTAL(9,BU11:BU11) -> 461,500.00
S13: กาฬสินธุ์ ผลรวม | AC13: =SUBTOTAL(9,AC11:AC11) -> 0 | AD13: =SUBTOTAL(9,AD11:AD11) -> 0 | AE13: =SUBTOTAL(9,AE11:AE11) -> 0 | AF13: =SUBTOTAL(9,AF11:AF11) -> 0 | AG13: =SUBTOTAL(9,AG11:AG11) -> 0 | AQ13: =SUBTOTAL(9,AQ11:AQ11) -> 0 | AR13: =SUBTOTAL(9,AR11:AR11) -> 0 | AS13: =SUBTOTAL(9,AS11:AS11) -> 0 | AT13: =SUBTOTAL(9,AT11:AT11) -> 0 | AU13: =SUBTOTAL(9,AU11:AU11) -> 0 | AX13: =SUBTOTAL(9,AX11:AX11) -> 0 | AY13: 0 | AZ13: 0 | BA13: 0 | BB13: 0 | BC13: 0 | BD13: 1 | BE13: 461,500.00 | BF13: 0 | BG13: 0 | BH13: 0 | BI13: 0 | BJ13: 0 | BK13: 0 | BO13: 461,500.00 | BT13: =SUBTOTAL(9,BT11:BT11) -> 1 | BU13: =SUBTOTAL(9,BU11:BU11) -> 461,500.00
A14: 1 | B14: นาง | C14: อรทัย | D14: โคตะคาม | I14: 2568-10-01 | Q14: อบต.ลอมคอม | R14: พล | S14: ขอนแก่น | U14: ครู | AC14: 1 | AD14: 9,338.00 | AE14: =AD14*12 -> 112,056.00 | AF14: =AD14*3 -> 28,014.00 | AG14: =AD14*2 -> 18,676.00 | AH14: =SUM(AD14*3) -> 28,014.00 | AI14: =SUM(AD14*3) -> 28,014.00 | AK14: =AD14+AJ14 -> 9,338.00 | AP14: =11000-AO14-AD14 -> 1,662.00 | AQ14: 1 | AR14: =AJ14+AL14+AO14+AP14 -> 1,662.00 | AS14: =AR14*12 -> 19,944.00 | AT14: =AR14*3 -> 4,986.00 | AU14: =AR14*2 -> 3,324.00 | AV14: =SUM(AR14*3) -> 4,986.00 | AW14: =SUM(AR14*3) -> 4,986.00 | AX14: 1 | AY14: =SUM(AD14*15) -> 140,070.00 | BN14: 1.00 | BO14: 195,070.00 | BT14: =BN14 -> 1 | BU14: =ROUND(BO14,2) -> 195,070.00
Q15: อบต.ลอมคอม ผลรวม | R15: พล | S15: ขอนแก่น | AC15: =SUBTOTAL(9,AC14:AC14) -> 1 | AD15: =SUBTOTAL(9,AD14:AD14) -> 9,338.00 | AE15: =SUBTOTAL(9,AE14:AE14) -> 112,056.00 | AF15: =SUBTOTAL(9,AF14:AF14) -> 28,014.00 | AG15: =SUBTOTAL(9,AG14:AG14) -> 18,676.00 | AQ15: =SUBTOTAL(9,AQ14:AQ14) -> 1 | AR15: =SUBTOTAL(9,AR14:AR14) -> 1,662.00 | AS15: =SUBTOTAL(9,AS14:AS14) -> 19,944.00 | AT15: =SUBTOTAL(9,AT14:AT14) -> 4,986.00 | AU15: =SUBTOTAL(9,AU14:AU14) -> 3,324.00 | AX15: =SUBTOTAL(9,AX14:AX14) -> 1 | AY15: 140,070.00 | AZ15: 0 | BA15: 0 | BB15: 0 | BC15: 0 | BD15: 0 | BE15: 0 | BF15: 0 | BG15: 0 | BH15: 0 | BI15: 0 | BJ15: 0 | BK15: 0 | BO15: 195,070.00 | BT15: =SUBTOTAL(9,BT14:BT14) -> 1 | BU15: =SUBTOTAL(9,BU14:BU14) -> 195,070.00
A16: =A14+1 -> 2 | B16: นาง | C16: สาวิตรี | D16: ชัยย่อย | I16: 2568-10-01 | Q16: อบต.ท่านางแนว | R16: แวงน้อย | S16: ขอนแก่น | U16: ครู | AC16: 1 | AD16: 6,591.20 | AE16: =AD16*12 -> 79,094.40 | AF16: =AD16*3 -> 19,773.60 | AG16: =AD16*2 -> 13,182.40 | AH16: =SUM(AD16*3) -> 19,773.60 | AI16: =SUM(AD16*3) -> 19,773.60 | AK16: =AD16+AJ16 -> 6,591.20 | AP16: =11000-AO16-AD16 -> 4,408.80 | AQ16: 1 | AR16: =AJ16+AL16+AO16+AP16 -> 4,408.80 | AS16: =AR16*12 -> 52,905.60 | AT16: =AR16*3 -> 13,226.40 | AU16: =AR16*2 -> 8,817.60 | AV16: =SUM(AR16*3) -> 13,226.40 | AW16: =SUM(AR16*3) -> 13,226.40 | AX16: 1 | AY16: =SUM(AD16*15) -> 98,868.00 | BN16: 1.00 | BO16: 153,868.00 | BT16: =BN16 -> 1 | BU16: =ROUND(BO16,2) -> 153,868.00
Q17: อบต.ท่านางแนว ผลรวม | R17: แวงน้อย | S17: ขอนแก่น | AC17: =SUBTOTAL(9,AC16:AC16) -> 1 | AD17: =SUBTOTAL(9,AD16:AD16) -> 6,591.20 | AE17: =SUBTOTAL(9,AE16:AE16) -> 79,094.40 | AF17: =SUBTOTAL(9,AF16:AF16) -> 19,773.60 | AG17: =SUBTOTAL(9,AG16:AG16) -> 13,182.40 | AQ17: =SUBTOTAL(9,AQ16:AQ16) -> 1 | AR17: =SUBTOTAL(9,AR16:AR16) -> 4,408.80 | AS17: =SUBTOTAL(9,AS16:AS16) -> 52,905.60 | AT17: =SUBTOTAL(9,AT16:AT16) -> 13,226.40 | AU17: =SUBTOTAL(9,AU16:AU16) -> 8,817.60 | AX17: =SUBTOTAL(9,AX16:AX16) -> 1 | AY17: 98,868.00 | AZ17: 0 | BA17: 0 | BB17: 0 | BC17: 0 | BD17: 0 | BE17: 0 | BF17: 0 | BG17: 0 | BH17: 0 | BI17: 0 | BJ17: 0 | BK17: 0 | BO17: 153,868.00 | BT17: =SUBTOTAL(9,BT16:BT16) -> 1 | BU17: =SUBTOTAL(9,BU16:BU16) -> 153,868.00
A18: =A16+1 -> 3 | B18: นาง | C18: สุปรียา | D18: ดวงแสง | I18: 2568-10-01 | Q18: อบต.ศรีสุข | R18: สีชมพู | S18: ขอนแก่น | U18: ครู | AC18: 1 | AD18: 9,757.80 | AE18: =AD18*12 -> 117,093.60 | AF18: =AD18*3 -> 29,273.40 | AG18: =AD18*2 -> 19,515.60 | AH18: =SUM(AD18*3) -> 29,273.40 | AI18: =SUM(AD18*3) -> 29,273.40 | AK18: =AD18+AJ18 -> 9,757.80 | AP18: =11000-AO18-AD18 -> 1,242.20 | AQ18: 1 | AR18: =AJ18+AL18+AO18+AP18 -> 1,242.20 | AS18: =AR18*12 -> 14,906.40 | AT18: =AR18*3 -> 3,726.60 | AU18: =AR18*2 -> 2,484.40 | AV18: =SUM(AR18*3) -> 3,726.60 | AW18: =SUM(AR18*3) -> 3,726.60 | AX18: 1 | AY18: =SUM(AD18*15) -> 146,367.00 | BN18: 1.00 | BO18: 201,367.00 | BT18: =BN18 -> 1 | BU18: =ROUND(BO18,2) -> 201,367.00
Q19: อบต.ศรีสุข ผลรวม | R19: สีชมพู | S19: ขอนแก่น | AC19: =SUBTOTAL(9,AC18:AC18) -> 1 | AD19: =SUBTOTAL(9,AD18:AD18) -> 9,757.80 | AE19: =SUBTOTAL(9,AE18:AE18) -> 117,093.60 | AF19: =SUBTOTAL(9,AF18:AF18) -> 29,273.40 | AG19: =SUBTOTAL(9,AG18:AG18) -> 19,515.60 | AQ19: =SUBTOTAL(9,AQ18:AQ18) -> 1 | AR19: =SUBTOTAL(9,AR18:AR18) -> 1,242.20 | AS19: =SUBTOTAL(9,AS18:AS18) -> 14,906.40 | AT19: =SUBTOTAL(9,AT18:AT18) -> 3,726.60 | AU19: =SUBTOTAL(9,AU18:AU18) -> 2,484.40 | AX19: =SUBTOTAL(9,AX18:AX18) -> 1 | AY19: 146,367.00 | AZ19: 0 | BA19: 0 | BB19: 0 | BC19: 0 | BD19: 0 | BE19: 0 | BF19: 0 | BG19: 0 | BH19: 0 | BI19: 0 | BJ19: 0 | BK19: 0 | BO19: 201,367.00 | BT19: =SUBTOTAL(9,BT18:BT18) -> 1 | BU19: =SUBTOTAL(9,BU18:BU18) -> 201,367.00
S20: ขอนแก่น ผลรวม | AC20: =SUBTOTAL(9,AC14:AC18) -> 3 | AD20: =SUBTOTAL(9,AD14:AD18) -> 25,687.00 | AE20: =SUBTOTAL(9,AE14:AE18) -> 308,244.00 | AF20: =SUBTOTAL(9,AF14:AF18) -> 77,061.00 | AG20: =SUBTOTAL(9,AG14:AG18) -> 51,374.00 | AQ20: =SUBTOTAL(9,AQ14:AQ18) -> 3 | AR20: =SUBTOTAL(9,AR14:AR18) -> 7,313.00 | AS20: =SUBTOTAL(9,AS14:AS18) -> 87,756.00 | AT20: =SUBTOTAL(9,AT14:AT18) -> 21,939.00 | AU20: =SUBTOTAL(9,AU14:AU18) -> 14,626.00 | AX20: =SUBTOTAL(9,AX14:AX18) -> 3 | AY20: 385,305.00 | AZ20: 0 | BA20: 0 | BB20: 0 | BC20: 0 | BD20: 0 | BE20: 0 | BF20: 0 | BG20: 0 | BH20: 0 | BI20: 0 | BJ20: 0 | BK20: 0 | BO20: 550,305.00 | BT20: =SUBTOTAL(9,BT14:BT18) -> 3 | BU20: =SUBTOTAL(9,BU14:BU18) -> 550,305.00
A21: 1 | B21: นาง | C21: ขนิษฐา | D21: ธรรมจักร์ | I21: 2568-10-01 | Q21: อบต.นาเริก | R21: พนัสนิคม | S21: ชลบุรี | U21: ครู | AC21: 1 | AD21: 6,941.00 | AE21: =AD21*12 -> 83,292.00 | AF21: =AD21*3 -> 20,823.00 | AG21: =AD21*2 -> 13,882.00 | AH21: =AD21*3 -> 20,823.00 | AI21: =AD21*3 -> 20,823.00 | AK21: =AD21+AJ21 -> 6,941.00 | AP21: =11000-AO21-AD21 -> 4,059.00 | AQ21: 1 | AR21: =AJ21+AL21+AO21+AP21 -> 4,059.00 | AS21: =AR21*12 -> 48,708.00 | AT21: =AR21*3 -> 12,177.00 | AU21: =AR21*2 -> 8,118.00 | AV21: =AR21*3 -> 12,177.00 | AW21: =AR21*3 -> 12,177.00 | AX21: 1 | AY21: 104,115.00 | BN21: 1.00 | BO21: 159,115.00 | BT21: =BN21 -> 1 | BU21: =ROUND(BO21,2) -> 159,115.00
Q22: อบต.นาเริก ผลรวม | R22: พนัสนิคม | S22: ชลบุรี | AC22: =SUBTOTAL(9,AC21:AC21) -> 1 | AD22: =SUBTOTAL(9,AD21:AD21) -> 6,941.00 | AE22: =SUBTOTAL(9,AE21:AE21) -> 83,292.00 | AF22: =SUBTOTAL(9,AF21:AF21) -> 20,823.00 | AG22: =SUBTOTAL(9,AG21:AG21) -> 13,882.00 | AQ22: =SUBTOTAL(9,AQ21:AQ21) -> 1 | AR22: =SUBTOTAL(9,AR21:AR21) -> 4,059.00 | AS22: =SUBTOTAL(9,AS21:AS21) -> 48,708.00 | AT22: =SUBTOTAL(9,AT21:AT21) -> 12,177.00 | AU22: =SUBTOTAL(9,AU21:AU21) -> 8,118.00 | AX22: =SUBTOTAL(9,AX21:AX21) -> 1 | AY22: 104,115.00 | AZ22: 0 | BA22: 0 | BB22: 0 | BC22: 0 | BD22: 0 | BE22: 0 | BF22: 0 | BG22: 0 | BH22: 0 | BI22: 0 | BJ22: 0 | BK22: 0 | BO22: 159,115.00 | BT22: =SUBTOTAL(9,BT21:BT21) -> 1 | BU22: =SUBTOTAL(9,BU21:BU21) -> 159,115.00
A23: =A21+1 -> 2 | B23: นาง | C23: แวนด้า | D23: บูรณเจริญกิจ | I23: 2567-10-01 | Q23: อบต.หนองปรือ | R23: พนัสนิคม | S23: ชลบุรี | U23: ครู | AC23: 1 | AD23: 7,920.00 | AE23: =AD23*12 -> 95,040.00 | AF23: =AD23*3 -> 23,760.00 | AG23: =AD23*2 -> 15,840.00 | AH23: =AD23*3 -> 23,760.00 | AI23: =AD23*3 -> 23,760.00 | AK23: =AD23+AJ23 -> 7,920.00 | AP23: =11000-AO23-AD23 -> 3,080.00 | AQ23: 1 | AR23: =AJ23+AL23+AO23+AP23 -> 3,080.00 | AS23: =AR23*12 -> 36,960.00 | AT23: =AR23*3 -> 9,240.00 | AU23: =AR23*2 -> 6,160.00 | AV23: =AR23*3 -> 9,240.00 | AW23: =AR23*3 -> 9,240.00 | AX23: 1 | AY23: 118,800.00 | BN23: 1.00 | BO23: 173,800.00 | BT23: =BN23 -> 1 | BU23: =ROUND(BO23,2) -> 173,800.00
Q24: อบต.หนองปรือ ผลรวม | R24: พนัสนิคม | S24: ชลบุรี | AC24: =SUBTOTAL(9,AC23:AC23) -> 1 | AD24: =SUBTOTAL(9,AD23:AD23) -> 7,920.00 | AE24: =SUBTOTAL(9,AE23:AE23) -> 95,040.00 | AF24: =SUBTOTAL(9,AF23:AF23) -> 23,760.00 | AG24: =SUBTOTAL(9,AG23:AG23) -> 15,840.00 | AQ24: =SUBTOTAL(9,AQ23:AQ23) -> 1 | AR24: =SUBTOTAL(9,AR23:AR23) -> 3,080.00 | AS24: =SUBTOTAL(9,AS23:AS23) -> 36,960.00 | AT24: =SUBTOTAL(9,AT23:AT23) -> 9,240.00 | AU24: =SUBTOTAL(9,AU23:AU23) -> 6,160.00 | AX24: =SUBTOTAL(9,AX23:AX23) -> 1 | AY24: 118,800.00 | AZ24: 0 | BA24: 0 | BB24: 0 | BC24: 0 | BD24: 0 | BE24: 0 | BF24: 0 | BG24: 0 | BH24: 0 | BI24: 0 | BJ24: 0 | BK24: 0 | BO24: 173,800.00 | BT24: =SUBTOTAL(9,BT23:BT23) -> 1 | BU24: =SUBTOTAL(9,BU23:BU23) -> 173,800.00
S25: ชลบุรี ผลรวม | AC25: =SUBTOTAL(9,AC21:AC23) -> 2 | AD25: =SUBTOTAL(9,AD21:AD23) -> 14,861.00 | AE25: =SUBTOTAL(9,AE21:AE23) -> 178,332.00 | AF25: =SUBTOTAL(9,AF21:AF23) -> 44,583.00 | AG25: =SUBTOTAL(9,AG21:AG23) -> 29,722.00 | AQ25: =SUBTOTAL(9,AQ21:AQ23) -> 2 | AR25: =SUBTOTAL(9,AR21:AR23) -> 7,139.00 | AS25: =SUBTOTAL(9,AS21:AS23) -> 85,668.00 | AT25: =SUBTOTAL(9,AT21:AT23) -> 21,417.00 | AU25: =SUBTOTAL(9,AU21:AU23) -> 14,278.00 | AX25: =SUBTOTAL(9,AX21:AX23) -> 2 | AY25: 222,915.00 | AZ25: 0 | BA25: 0 | BB25: 0 | BC25: 0 | BD25: 0 | BE25: 0 | BF25: 0 | BG25: 0 | BH25: 0 | BI25: 0 | BJ25: 0 | BK25: 0 | BO25: 332,915.00 | BT25: =SUBTOTAL(9,BT21:BT23) -> 2 | BU25: =SUBTOTAL(9,BU21:BU23) -> 332,915.00
A26: 1 | B26: นาง | C26: หทัยทิพย์ | D26: จินะ | I26: 2568-10-01 | Q26: อบต.ตับเต่า | R26: เทิง | S26: เชียงราย | AC26: 1 | AD26: 10,432.80 | AE26: =AD26*12 -> 125,193.60 | AF26: =AD26*3 -> 31,298.40 | AG26: =AD26*2 -> 20,865.60 | AH26: =AD26*3 -> 31,298.40 | AI26: =AD26*3 -> 31,298.40 | AK26: =AD26+AJ26 -> 10,432.80 | AO26: 0 | AP26: =11000-AO26-AD26 -> 567.20 | AQ26: =+AC26 -> 1 | AR26: =AJ26+AL26+AO26+AP26 -> 567.20 | AS26: =AR26*12 -> 6,806.40 | AT26: =AR26*3 -> 1,701.60 | AU26: =AR26*2 -> 1,134.40 | AV26: =AR26*3 -> 1,701.60 | AW26: =AR26*3 -> 1,701.60 | AX26: 1 | AY26: 156,492.00 | BN26: 1.00 | BO26: 211,492.00 | BT26: =BN26 -> 1 | BU26: =ROUND(BO26,2) -> 211,492.00
Q27: อบต.ตับเต่า ผลรวม | R27: เทิง | S27: เชียงราย | AC27: =SUBTOTAL(9,AC26:AC26) -> 1 | AD27: =SUBTOTAL(9,AD26:AD26) -> 10,432.80 | AE27: =SUBTOTAL(9,AE26:AE26) -> 125,193.60 | AF27: =SUBTOTAL(9,AF26:AF26) -> 31,298.40 | AG27: =SUBTOTAL(9,AG26:AG26) -> 20,865.60 | AQ27: =SUBTOTAL(9,AQ26:AQ26) -> 1 | AR27: =SUBTOTAL(9,AR26:AR26) -> 567.20 | AS27: =SUBTOTAL(9,AS26:AS26) -> 6,806.40 | AT27: =SUBTOTAL(9,AT26:AT26) -> 1,701.60 | AU27: =SUBTOTAL(9,AU26:AU26) -> 1,134.40 | AX27: =SUBTOTAL(9,AX26:AX26) -> 1 | AY27: 156,492.00 | AZ27: 0 | BA27: 0 | BB27: 0 | BC27: 0 | BD27: 0 | BE27: 0 | BF27: 0 | BG27: 0 | BH27: 0 | BI27: 0 | BJ27: 0 | BK27: 0 | BO27: 211,492.00 | BT27: =SUBTOTAL(9,BT26:BT26) -> 1 | BU27: =SUBTOTAL(9,BU26:BU26) -> 211,492.00
S28: เชียงราย ผลรวม | AC28: =SUBTOTAL(9,AC26:AC26) -> 1 | AD28: =SUBTOTAL(9,AD26:AD26) -> 10,432.80 | AE28: =SUBTOTAL(9,AE26:AE26) -> 125,193.60 | AF28: =SUBTOTAL(9,AF26:AF26) -> 31,298.40 | AG28: =SUBTOTAL(9,AG26:AG26) -> 20,865.60 | AQ28: =SUBTOTAL(9,AQ26:AQ26) -> 1 | AR28: =SUBTOTAL(9,AR26:AR26) -> 567.20 | AS28: =SUBTOTAL(9,AS26:AS26) -> 6,806.40 | AT28: =SUBTOTAL(9,AT26:AT26) -> 1,701.60 | AU28: =SUBTOTAL(9,AU26:AU26) -> 1,134.40 | AX28: =SUBTOTAL(9,AX26:AX26) -> 1 | AY28: 156,492.00 | AZ28: 0 | BA28: 0 | BB28: 0 | BC28: 0 | BD28: 0 | BE28: 0 | BF28: 0 | BG28: 0 | BH28: 0 | BI28: 0 | BJ28: 0 | BK28: 0 | BO28: 211,492.00 | BT28: =SUBTOTAL(9,BT26:BT26) -> 1 | BU28: =SUBTOTAL(9,BU26:BU26) -> 211,492.00
A29: 1 | B29: นาง | C29: รวงทอง | D29: ศรีหน่อ | E29: 3110401148665 | I29: 2568-10-01 | Q29: อบต.แม่คะ | R29: ฝาง | S29: เชียงใหม่ | U29: ครู | AE29: =AD29*12 -> 0 | AF29: =AD29*3 -> 0 | AG29: =AD29*2 -> 0 | AH29: =AD29*3 -> 0 | AI29: =AD29*3 -> 0 | AK29: =AD29+AJ29 -> 0 | AR29: =AJ29+AL29+AO29+AP29 -> 0 | AS29: =AR29*12 -> 0 | AT29: =AR29*3 -> 0 | AU29: =AR29*2 -> 0 | AV29: =AR29*3 -> 0 | AW29: =AR29*3 -> 0 | AX29: 1 | AY29: =137085-133497 -> 3,588.00 | BN29: 1.00 | BO29: 3,588.00 | BT29: =BN29 -> 1 | BU29: =ROUND(BO29,2) -> 3,588.00 | CN29: ตกเบิกดำรงชีพ และต้องเปลี่ยน บำนาญเป็นยอดใหม่เป็น 8,489 บาท (เดิม 8,013.20)
Q30: อบต.แม่คะ ผลรวม | R30: ฝาง | S30: เชียงใหม่ | AC30: =SUBTOTAL(9,AC29:AC29) -> 0 | AD30: =SUBTOTAL(9,AD29:AD29) -> 0 | AE30: =SUBTOTAL(9,AE29:AE29) -> 0 | AF30: =SUBTOTAL(9,AF29:AF29) -> 0 | AG30: =SUBTOTAL(9,AG29:AG29) -> 0 | AQ30: =SUBTOTAL(9,AQ29:AQ29) -> 0 | AR30: =SUBTOTAL(9,AR29:AR29) -> 0 | AS30: =SUBTOTAL(9,AS29:AS29) -> 0 | AT30: =SUBTOTAL(9,AT29:AT29) -> 0 | AU30: =SUBTOTAL(9,AU29:AU29) -> 0 | AX30: =SUBTOTAL(9,AX29:AX29) -> 1 | AY30: 3,588.00 | AZ30: 0 | BA30: 0 | BB30: 0 | BC30: 0 | BD30: 0 | BE30: 0 | BF30: 0 | BG30: 0 | BH30: 0 | BI30: 0 | BJ30: 0 | BK30: 0 | BO30: 3,588.00 | BT30: =SUBTOTAL(9,BT29:BT29) -> 1 | BU30: =SUBTOTAL(9,BU29:BU29) -> 3,588.00
A31: =A29+1 -> 2 | B31: นาง | C31: ประไพ | D31: คำหน้อย | I31: 2568-10-01 | Q31: อบต.เวียง | R31: ฝาง | S31: เชียงใหม่ | U31: ครู | AE31: =AD31*12 -> 0 | AF31: =AD31*3 -> 0 | AG31: =AD31*2 -> 0 | AH31: =AD31*3 -> 0 | AI31: =AD31*3 -> 0 | AK31: =AD31+AJ31 -> 0 | AR31: =AJ31+AL31+AO31+AP31 -> 0 | AS31: =AR31*12 -> 0 | AT31: =AR31*3 -> 0 | AU31: =AR31*2 -> 0 | AV31: =AR31*3 -> 0 | AW31: =AR31*3 -> 0 | AX31: 1 | AY31: =142842-138432 -> 4,410.00 | BN31: 1.00 | BO31: 4,410.00 | BT31: =BN31 -> 1 | BU31: =ROUND(BO31,2) -> 4,410.00
Q32: อบต.เวียง ผลรวม | R32: ฝาง | S32: เชียงใหม่ | AC32: =SUBTOTAL(9,AC31:AC31) -> 0 | AD32: =SUBTOTAL(9,AD31:AD31) -> 0 | AE32: =SUBTOTAL(9,AE31:AE31) -> 0 | AF32: =SUBTOTAL(9,AF31:AF31) -> 0 | AG32: =SUBTOTAL(9,AG31:AG31) -> 0 | AQ32: =SUBTOTAL(9,AQ31:AQ31) -> 0 | AR32: =SUBTOTAL(9,AR31:AR31) -> 0 | AS32: =SUBTOTAL(9,AS31:AS31) -> 0 | AT32: =SUBTOTAL(9,AT31:AT31) -> 0 | AU32: =SUBTOTAL(9,AU31:AU31) -> 0 | AX32: =SUBTOTAL(9,AX31:AX31) -> 1 | AY32: 4,410.00 | AZ32: 0 | BA32: 0 | BB32: 0 | BC32: 0 | BD32: 0 | BE32: 0 | BF32: 0 | BG32: 0 | BH32: 0 | BI32: 0 | BJ32: 0 | BK32: 0 | BO32: 4,410.00 | BT32: =SUBTOTAL(9,BT31:BT31) -> 1 | BU32: =SUBTOTAL(9,BU31:BU31) -> 4,410.00
A33: =A31+1 -> 3 | B33: นาง | C33: อธัญญา | D33: กล้าณรงค์เชาว์ | I33: 2568-10-01 | Q33: อบต.แม่นาจร | R33: แม่แจ่ม | S33: เชียงใหม่ | U33: ครู | AE33: =AD33*12 -> 0 | AF33: =AD33*3 -> 0 | AG33: =AD33*2 -> 0 | AH33: =AD33*3 -> 0 | AI33: =AD33*3 -> 0 | AK33: =AD33+AJ33 -> 0 | AR33: =AJ33+AL33+AO33+AP33 -> 0 | AS33: =AR33*12 -> 0 | AT33: =AR33*3 -> 0 | AU33: =AR33*2 -> 0 | AV33: =AR33*3 -> 0 | AW33: =AR33*3 -> 0 | AX33: 1 | AY33: =100650-98307 -> 2,343.00 | BN33: 1.00 | BO33: 2,343.00 | BT33: =BN33 -> 1 | BU33: =ROUND(BO33,2) -> 2,343.00 | CN33: ตกเบิกดำรงชีพ และต้องเปลี่ยน บำนาญเป็นยอดใหม่เป็น 8,489 บาท (เดิม 8,013.20)
Q34: อบต.แม่นาจร ผลรวม | R34: แม่แจ่ม | S34: เชียงใหม่ | AC34: =SUBTOTAL(9,AC33:AC33) -> 0 | AD34: =SUBTOTAL(9,AD33:AD33) -> 0 | AE34: =SUBTOTAL(9,AE33:AE33) -> 0 | AF34: =SUBTOTAL(9,AF33:AF33) -> 0 | AG34: =SUBTOTAL(9,AG33:AG33) -> 0 | AQ34: =SUBTOTAL(9,AQ33:AQ33) -> 0 | AR34: =SUBTOTAL(9,AR33:AR33) -> 0 | AS34: =SUBTOTAL(9,AS33:AS33) -> 0 | AT34: =SUBTOTAL(9,AT33:AT33) -> 0 | AU34: =SUBTOTAL(9,AU33:AU33) -> 0 | AX34: =SUBTOTAL(9,AX33:AX33) -> 1 | AY34: 2,343.00 | AZ34: 0 | BA34: 0 | BB34: 0 | BC34: 0 | BD34: 0 | BE34: 0 | BF34: 0 | BG34: 0 | BH34: 0 | BI34: 0 | BJ34: 0 | BK34: 0 | BO34: 2,343.00 | BT34: =SUBTOTAL(9,BT33:BT33) -> 1 | BU34: =SUBTOTAL(9,BU33:BU33) -> 2,343.00
A35: =A33+1 -> 4 | B35: นาง | C35: พรพรรณ | D35: แก้วนันตา | I35: 2568-10-01 | Q35: อบต.ทุ่งรวงทอง | R35: แม่วาง | S35: เชียงใหม่ | U35: ครู | AE35: =AD35*12 -> 0 | AF35: =AD35*3 -> 0 | AG35: =AD35*2 -> 0 | AH35: =AD35*3 -> 0 | AI35: =AD35*3 -> 0 | AK35: =AD35+AJ35 -> 0 | AR35: =AJ35+AL35+AO35+AP35 -> 0 | AS35: =AR35*12 -> 0 | AT35: =AR35*3 -> 0 | AU35: =AR35*2 -> 0 | AV35: =AR35*3 -> 0 | AW35: =AR35*3 -> 0 | AX35: 1 | AY35: =100056-97152 -> 2,904.00 | BN35: 1.00 | BO35: 2,904.00 | BT35: =BN35 -> 1 | BU35: =ROUND(BO35,2) -> 2,904.00 | CN35: ตกเบิกดำรงชีพ และต้องเปลี่ยน บำนาญเป็นยอดใหม่เป็น 8,489 บาท (เดิม 8,013.20)
Q36: อบต.ทุ่งรวงทอง ผลรวม | R36: แม่วาง | S36: เชียงใหม่ | AC36: =SUBTOTAL(9,AC35:AC35) -> 0 | AD36: =SUBTOTAL(9,AD35:AD35) -> 0 | AE36: =SUBTOTAL(9,AE35:AE35) -> 0 | AF36: =SUBTOTAL(9,AF35:AF35) -> 0 | AG36: =SUBTOTAL(9,AG35:AG35) -> 0 | AQ36: =SUBTOTAL(9,AQ35:AQ35) -> 0 | AR36: =SUBTOTAL(9,AR35:AR35) -> 0 | AS36: =SUBTOTAL(9,AS35:AS35) -> 0 | AT36: =SUBTOTAL(9,AT35:AT35) -> 0 | AU36: =SUBTOTAL(9,AU35:AU35) -> 0 | AX36: =SUBTOTAL(9,AX35:AX35) -> 1 | AY36: 2,904.00 | AZ36: 0 | BA36: 0 | BB36: 0 | BC36: 0 | BD36: 0 | BE36: 0 | BF36: 0 | BG36: 0 | BH36: 0 | BI36: 0 | BJ36: 0 | BK36: 0 | BO36: 2,904.00 | BT36: =SUBTOTAL(9,BT35:BT35) -> 1 | BU36: =SUBTOTAL(9,BU35:BU35) -> 2,904.00
S37: เชียงใหม่ ผลรวม | AC37: =SUBTOTAL(9,AC29:AC35) -> 0 | AD37: =SUBTOTAL(9,AD29:AD35) -> 0 | AE37: =SUBTOTAL(9,AE29:AE35) -> 0 | AF37: =SUBTOTAL(9,AF29:AF35) -> 0 | AG37: =SUBTOTAL(9,AG29:AG35) -> 0 | AQ37: =SUBTOTAL(9,AQ29:AQ35) -> 0 | AR37: =SUBTOTAL(9,AR29:AR35) -> 0 | AS37: =SUBTOTAL(9,AS29:AS35) -> 0 | AT37: =SUBTOTAL(9,AT29:AT35) -> 0 | AU37: =SUBTOTAL(9,AU29:AU35) -> 0 | AX37: =SUBTOTAL(9,AX29:AX35) -> 4 | AY37: 13,245.00 | AZ37: 0 | BA37: 0 | BB37: 0 | BC37: 0 | BD37: 0 | BE37: 0 | BF37: 0 | BG37: 0 | BH37: 0 | BI37: 0 | BJ37: 0 | BK37: 0 | BO37: 13,245.00 | BT37: =SUBTOTAL(9,BT29:BT35) -> 4 | BU37: =SUBTOTAL(9,BU29:BU35) -> 13,245.00
A38: 1 | B38: นางสาว | C38: กนกวรรณ | D38: กาญจนเพ็ญ | I38: 2568-08-26 | Q38: อบต.เขาวิเศษ | R38: วังวิเศษ | S38: ตรัง | U38: ครู | AE38: =AD38*12 -> 0 | AF38: =AD38*3 -> 0 | AG38: =AD38*2 -> 0 | AS38: =AR38*12 -> 0 | AT38: =AR38*3 -> 0 | AU38: =AR38*2 -> 0 | BJ38: 1 | BK38: 264,693.00 | BN38: 1.00 | BO38: 264,693.00 | BT38: =BN38 -> 1 | BU38: =ROUND(BO38,2) -> 264,693.00 | CG38: .
Q39: อบต.เขาวิเศษ ผลรวม | R39: วังวิเศษ | S39: ตรัง | AC39: =SUBTOTAL(9,AC38:AC38) -> 0 | AD39: =SUBTOTAL(9,AD38:AD38) -> 0 | AE39: =SUBTOTAL(9,AE38:AE38) -> 0 | AF39: =SUBTOTAL(9,AF38:AF38) -> 0 | AG39: =SUBTOTAL(9,AG38:AG38) -> 0 | AQ39: =SUBTOTAL(9,AQ38:AQ38) -> 0 | AR39: =SUBTOTAL(9,AR38:AR38) -> 0 | AS39: =SUBTOTAL(9,AS38:AS38) -> 0 | AT39: =SUBTOTAL(9,AT38:AT38) -> 0 | AU39: =SUBTOTAL(9,AU38:AU38) -> 0 | AX39: =SUBTOTAL(9,AX38:AX38) -> 0 | AY39: 0 | AZ39: 0 | BA39: 0 | BB39: 0 | BC39: 0 | BD39: 0 | BE39: 0 | BF39: 0 | BG39: 0 | BH39: 0 | BI39: 0 | BJ39: 1 | BK39: 264,693.00 | BO39: 264,693.00 | BT39: =SUBTOTAL(9,BT38:BT38) -> 1 | BU39: =SUBTOTAL(9,BU38:BU38) -> 264,693.00
S40: ตรัง ผลรวม | AC40: =SUBTOTAL(9,AC38:AC38) -> 0 | AD40: =SUBTOTAL(9,AD38:AD38) -> 0 | AE40: =SUBTOTAL(9,AE38:AE38) -> 0 | AF40: =SUBTOTAL(9,AF38:AF38) -> 0 | AG40: =SUBTOTAL(9,AG38:AG38) -> 0 | AQ40: =SUBTOTAL(9,AQ38:AQ38) -> 0 | AR40: =SUBTOTAL(9,AR38:AR38) -> 0 | AS40: =SUBTOTAL(9,AS38:AS38) -> 0 | AT40: =SUBTOTAL(9,AT38:AT38) -> 0 | AU40: =SUBTOTAL(9,AU38:AU38) -> 0 | AX40: =SUBTOTAL(9,AX38:AX38) -> 0 | AY40: 0 | AZ40: 0 | BA40: 0 | BB40: 0 | BC40: 0 | BD40: 0 | BE40: 0 | BF40: 0 | BG40: 0 | BH40: 0 | BI40: 0 | BJ40: 1 | BK40: 264,693.00 | BO40: 264,693.00 | BT40: =SUBTOTAL(9,BT38:BT38) -> 1 | BU40: =SUBTOTAL(9,BU38:BU38) -> 264,693.00
A41: 1 | B41: นาง | C41: วิจิตร | D41: ถือทอง | I41: 2568-10-01 | Q41: อบต.พุ่มแก | R41: นาแก | S41: นครพนม | U41: ครู | AC41: 1 | AD41: 6,373.40 | AE41: =AD41*12 -> 76,480.80 | AF41: =AD41*3 -> 19,120.20 | AG41: =AD41*2 -> 12,746.80 | AH41: =AD41*3 -> 19,120.20 | AI41: =AD41*3 -> 19,120.20 | AK41: =AD41+AJ41 -> 6,373.40 | AP41: =11000-AO41-AD41 -> 4,626.60 | AQ41: 1 | AR41: =AJ41+AL41+AN41+AO41+AP41 -> 4,626.60 | AS41: =AR41*12 -> 55,519.20 | AT41: =AR41*3 -> 13,879.80 | AU41: =AR41*2 -> 9,253.20 | AV41: =AR41*3 -> 13,879.80 | AW41: =AR41*3 -> 13,879.80 | AX41: 1 | AY41: =SUM(AD41*15) -> 95,601.00 | BN41: 1.00 | BO41: 150,601.00 | BT41: =BN41 -> 1 | BU41: =ROUND(BO41,2) -> 150,601.00
Q42: อบต.พุ่มแก ผลรวม | R42: นาแก | S42: นครพนม | AC42: =SUBTOTAL(9,AC41:AC41) -> 1 | AD42: =SUBTOTAL(9,AD41:AD41) -> 6,373.40 | AE42: =SUBTOTAL(9,AE41:AE41) -> 76,480.80 | AF42: =SUBTOTAL(9,AF41:AF41) -> 19,120.20 | AG42: =SUBTOTAL(9,AG41:AG41) -> 12,746.80 | AQ42: =SUBTOTAL(9,AQ41:AQ41) -> 1 | AR42: =SUBTOTAL(9,AR41:AR41) -> 4,626.60 | AS42: =SUBTOTAL(9,AS41:AS41) -> 55,519.20 | AT42: =SUBTOTAL(9,AT41:AT41) -> 13,879.80 | AU42: =SUBTOTAL(9,AU41:AU41) -> 9,253.20 | AX42: =SUBTOTAL(9,AX41:AX41) -> 1 | AY42: 95,601.00 | AZ42: 0 | BA42: 0 | BB42: 0 | BC42: 0 | BD42: 0 | BE42: 0 | BF42: 0 | BG42: 0 | BH42: 0 | BI42: 0 | BJ42: 0 | BK42: 0 | BO42: 150,601.00 | BT42: =SUBTOTAL(9,BT41:BT41) -> 1 | BU42: =SUBTOTAL(9,BU41:BU41) -> 150,601.00
A43: =A41+1 -> 2 | B43: นาง | C43: ณัฎฐ์ฎาพร | D43: เทือกขันติ | I43: 2568-10-01 | Q43: อบต.หนองบ่อ | R43: นาแก | S43: นครพนม | U43: ครู | AC43: 1 | AD43: 6,435.00 | AE43: =AD43*12 -> 77,220.00 | AF43: =AD43*3 -> 19,305.00 | AG43: =AD43*2 -> 12,870.00 | AH43: =AD43*3 -> 19,305.00 | AI43: =AD43*3 -> 19,305.00 | AK43: =AD43+AJ43 -> 6,435.00 | AP43: =11000-AO43-AD43 -> 4,565.00 | AQ43: 1 | AR43: =AJ43+AL43+AN43+AO43+AP43 -> 4,565.00 | AS43: =AR43*12 -> 54,780.00 | AT43: =AR43*3 -> 13,695.00 | AU43: =AR43*2 -> 9,130.00 | AV43: =AR43*3 -> 13,695.00 | AW43: =AR43*3 -> 13,695.00 | AX43: 1 | AY43: =SUM(AD43*15) -> 96,525.00 | BN43: 1.00 | BO43: 151,525.00 | BT43: =BN43 -> 1 | BU43: =ROUND(BO43,2) -> 151,525.00
Q44: อบต.หนองบ่อ ผลรวม | R44: นาแก | S44: นครพนม | AC44: =SUBTOTAL(9,AC43:AC43) -> 1 | AD44: =SUBTOTAL(9,AD43:AD43) -> 6,435.00 | AE44: =SUBTOTAL(9,AE43:AE43) -> 77,220.00 | AF44: =SUBTOTAL(9,AF43:AF43) -> 19,305.00 | AG44: =SUBTOTAL(9,AG43:AG43) -> 12,870.00 | AQ44: =SUBTOTAL(9,AQ43:AQ43) -> 1 | AR44: =SUBTOTAL(9,AR43:AR43) -> 4,565.00 | AS44: =SUBTOTAL(9,AS43:AS43) -> 54,780.00 | AT44: =SUBTOTAL(9,AT43:AT43) -> 13,695.00 | AU44: =SUBTOTAL(9,AU43:AU43) -> 9,130.00 | AX44: =SUBTOTAL(9,AX43:AX43) -> 1 | AY44: 96,525.00 | AZ44: 0 | BA44: 0 | BB44: 0 | BC44: 0 | BD44: 0 | BE44: 0 | BF44: 0 | BG44: 0 | BH44: 0 | BI44: 0 | BJ44: 0 | BK44: 0 | BO44: 151,525.00 | BT44: =SUBTOTAL(9,BT43:BT43) -> 1 | BU44: =SUBTOTAL(9,BU43:BU43) -> 151,525.00
A45: =A43+1 -> 3 | B45: นาง | C45: ดวงใจ | D45: แพงโสภา | I45: 2568-10-01 | Q45: อบต.ดอนเตย | R45: นาทม | S45: นครพนม | U45: ครู | AC45: 1 | AD45: 10,581.20 | AE45: =AD45*12 -> 126,974.40 | AF45: =AD45*3 -> 31,743.60 | AG45: =AD45*2 -> 21,162.40 | AH45: =AD45*3 -> 31,743.60 | AI45: =AD45*3 -> 31,743.60 | AK45: =AD45+AJ45 -> 10,581.20 | AP45: =11000-AO45-AD45 -> 418.80 | AQ45: 1 | AR45: =AJ45+AL45+AN45+AO45+AP45 -> 418.80 | AS45: =AR45*12 -> 5,025.60 | AT45: =AR45*3 -> 1,256.40 | AU45: =AR45*2 -> 837.60 | AV45: =AR45*3 -> 1,256.40 | AW45: =AR45*3 -> 1,256.40 | AX45: 1 | AY45: =SUM(AD45*15) -> 158,718.00 | BN45: 1.00 | BO45: 213,718.00 | BT45: =BN45 -> 1 | BU45: =ROUND(BO45,2) -> 213,718.00
Q46: อบต.ดอนเตย ผลรวม | R46: นาทม | S46: นครพนม | AC46: =SUBTOTAL(9,AC45:AC45) -> 1 | AD46: =SUBTOTAL(9,AD45:AD45) -> 10,581.20 | AE46: =SUBTOTAL(9,AE45:AE45) -> 126,974.40 | AF46: =SUBTOTAL(9,AF45:AF45) -> 31,743.60 | AG46: =SUBTOTAL(9,AG45:AG45) -> 21,162.40 | AQ46: =SUBTOTAL(9,AQ45:AQ45) -> 1 | AR46: =SUBTOTAL(9,AR45:AR45) -> 418.80 | AS46: =SUBTOTAL(9,AS45:AS45) -> 5,025.60 | AT46: =SUBTOTAL(9,AT45:AT45) -> 1,256.40 | AU46: =SUBTOTAL(9,AU45:AU45) -> 837.60 | AX46: =SUBTOTAL(9,AX45:AX45) -> 1 | AY46: 158,718.00 | AZ46: 0 | BA46: 0 | BB46: 0 | BC46: 0 | BD46: 0 | BE46: 0 | BF46: 0 | BG46: 0 | BH46: 0 | BI46: 0 | BJ46: 0 | BK46: 0 | BO46: 213,718.00 | BT46: =SUBTOTAL(9,BT45:BT45) -> 1 | BU46: =SUBTOTAL(9,BU45:BU45) -> 213,718.00
A47: =A45+1 -> 4 | B47: นาง | C47: ศรวณีย์ | D47: ออทอลาน | I47: 2568-10-01 | Q47: อบต.นาขมิ้น | R47: โพนสวรรค์ | S47: นครพนม | U47: ครู | AC47: 1 | AD47: 6,795.80 | AE47: =AD47*12 -> 81,549.60 | AF47: =AD47*3 -> 20,387.40 | AG47: =AD47*2 -> 13,591.60 | AH47: =AD47*3 -> 20,387.40 | AI47: =AD47*3 -> 20,387.40 | AK47: =AD47+AJ47 -> 6,795.80 | AP47: =11000-AO47-AD47 -> 4,204.20 | AQ47: 1 | AR47: =AJ47+AL47+AN47+AO47+AP47 -> 4,204.20 | AS47: =AR47*12 -> 50,450.40 | AT47: =AR47*3 -> 12,612.60 | AU47: =AR47*2 -> 8,408.40 | AV47: =AR47*3 -> 12,612.60 | AW47: =AR47*3 -> 12,612.60 | AX47: 1 | AY47: =SUM(AD47*15) -> 101,937.00 | BN47: 1.00 | BO47: 156,937.00 | BT47: =BN47 -> 1 | BU47: =ROUND(BO47,2) -> 156,937.00
Q48: อบต.นาขมิ้น ผลรวม | R48: โพนสวรรค์ | S48: นครพนม | AC48: =SUBTOTAL(9,AC47:AC47) -> 1 | AD48: =SUBTOTAL(9,AD47:AD47) -> 6,795.80 | AE48: =SUBTOTAL(9,AE47:AE47) -> 81,549.60 | AF48: =SUBTOTAL(9,AF47:AF47) -> 20,387.40 | AG48: =SUBTOTAL(9,AG47:AG47) -> 13,591.60 | AQ48: =SUBTOTAL(9,AQ47:AQ47) -> 1 | AR48: =SUBTOTAL(9,AR47:AR47) -> 4,204.20 | AS48: =SUBTOTAL(9,AS47:AS47) -> 50,450.40 | AT48: =SUBTOTAL(9,AT47:AT47) -> 12,612.60 | AU48: =SUBTOTAL(9,AU47:AU47) -> 8,408.40 | AX48: =SUBTOTAL(9,AX47:AX47) -> 1 | AY48: 101,937.00 | AZ48: 0 | BA48: 0 | BB48: 0 | BC48: 0 | BD48: 0 | BE48: 0 | BF48: 0 | BG48: 0 | BH48: 0 | BI48: 0 | BJ48: 0 | BK48: 0 | BO48: 156,937.00 | BT48: =SUBTOTAL(9,BT47:BT47) -> 1 | BU48: =SUBTOTAL(9,BU47:BU47) -> 156,937.00
A49: =A120+1 -> 3 | B49: นาง | C49: สมปอง | D49: ไชยรัตน์ | I49: 2568-10-01 | Q49: อบต.คำเตย | R49: เมืองนครพนม | S49: นครพนม | U49: ครู | AC49: 1 | AD49: 9,926.00 | AE49: =AD49*12 -> 119,112.00 | AF49: =AD49*3 -> 29,778.00 | AG49: =AD49*2 -> 19,852.00 | AH49: =AD49*3 -> 29,778.00 | AI49: =AD49*3 -> 29,778.00 | AK49: =AD49+AJ49 -> 9,926.00 | AP49: =11000-AO49-AD49 -> 1,074.00 | AQ49: 1 | AR49: =AJ49+AL49+AN49+AO49+AP49 -> 1,074.00 | AS49: =AR49*12 -> 12,888.00 | AT49: =AR49*3 -> 3,222.00 | AU49: =AR49*2 -> 2,148.00 | AV49: =AR49*3 -> 3,222.00 | AW49: =AR49*3 -> 3,222.00 | AX49: 1 | AY49: =SUM(AD49*15) -> 148,890.00 | BN49: 1.00 | BO49: 203,890.00 | BT49: =BN49 -> 1 | BU49: =ROUND(BO49,2) -> 203,890.00
Q50: อบต.คำเตย ผลรวม | R50: เมืองนครพนม | S50: นครพนม | AC50: =SUBTOTAL(9,AC49:AC49) -> 1 | AD50: =SUBTOTAL(9,AD49:AD49) -> 9,926.00 | AE50: =SUBTOTAL(9,AE49:AE49) -> 119,112.00 | AF50: =SUBTOTAL(9,AF49:AF49) -> 29,778.00 | AG50: =SUBTOTAL(9,AG49:AG49) -> 19,852.00 | AQ50: =SUBTOTAL(9,AQ49:AQ49) -> 1 | AR50: =SUBTOTAL(9,AR49:AR49) -> 1,074.00 | AS50: =SUBTOTAL(9,AS49:AS49) -> 12,888.00 | AT50: =SUBTOTAL(9,AT49:AT49) -> 3,222.00 | AU50: =SUBTOTAL(9,AU49:AU49) -> 2,148.00 | AX50: =SUBTOTAL(9,AX49:AX49) -> 1 | AY50: 148,890.00 | AZ50: 0 | BA50: 0 | BB50: 0 | BC50: 0 | BD50: 0 | BE50: 0 | BF50: 0 | BG50: 0 | BH50: 0 | BI50: 0 | BJ50: 0 | BK50: 0 | BO50: 203,890.00 | BT50: =SUBTOTAL(9,BT49:BT49) -> 1 | BU50: =SUBTOTAL(9,BU49:BU49) -> 203,890.00
A51: =A47+1 -> 5 | B51: นาย | C51: ธนาคาร | D51: ชนะค้า | I51: 2568-10-01 | Q51: อบต.บ้านกลาง | R51: เมืองนครพนม | S51: นครพนม | U51: ครู | AC51: 1 | AD51: 7,363.20 | AE51: =AD51*12 -> 88,358.40 | AF51: =AD51*3 -> 22,089.60 | AG51: =AD51*2 -> 14,726.40 | AH51: =AD51*3 -> 22,089.60 | AI51: =AD51*3 -> 22,089.60 | AK51: =AD51+AJ51 -> 7,363.20 | AP51: =11000-AO51-AD51 -> 3,636.80 | AQ51: 1 | AR51: =AJ51+AL51+AN51+AO51+AP51 -> 3,636.80 | AS51: =AR51*12 -> 43,641.60 | AT51: =AR51*3 -> 10,910.40 | AU51: =AR51*2 -> 7,273.60 | AV51: =AR51*3 -> 10,910.40 | AW51: =AR51*3 -> 10,910.40 | AX51: 1 | AY51: =SUM(AD51*15) -> 110,448.00 | BN51: 1.00 | BO51: 165,448.00 | BT51: =BN51 -> 1 | BU51: =ROUND(BO51,2) -> 165,448.00
Q52: อบต.บ้านกลาง ผลรวม | R52: เมืองนครพนม | S52: นครพนม | AC52: =SUBTOTAL(9,AC51:AC51) -> 1 | AD52: =SUBTOTAL(9,AD51:AD51) -> 7,363.20 | AE52: =SUBTOTAL(9,AE51:AE51) -> 88,358.40 | AF52: =SUBTOTAL(9,AF51:AF51) -> 22,089.60 | AG52: =SUBTOTAL(9,AG51:AG51) -> 14,726.40 | AQ52: =SUBTOTAL(9,AQ51:AQ51) -> 1 | AR52: =SUBTOTAL(9,AR51:AR51) -> 3,636.80 | AS52: =SUBTOTAL(9,AS51:AS51) -> 43,641.60 | AT52: =SUBTOTAL(9,AT51:AT51) -> 10,910.40 | AU52: =SUBTOTAL(9,AU51:AU51) -> 7,273.60 | AX52: =SUBTOTAL(9,AX51:AX51) -> 1 | AY52: 110,448.00 | AZ52: 0 | BA52: 0 | BB52: 0 | BC52: 0 | BD52: 0 | BE52: 0 | BF52: 0 | BG52: 0 | BH52: 0 | BI52: 0 | BJ52: 0 | BK52: 0 | BO52: 165,448.00 | BT52: =SUBTOTAL(9,BT51:BT51) -> 1 | BU52: =SUBTOTAL(9,BU51:BU51) -> 165,448.00
S53: นครพนม ผลรวม | AC53: =SUBTOTAL(9,AC41:AC51) -> 6 | AD53: =SUBTOTAL(9,AD41:AD51) -> 47,474.60 | AE53: =SUBTOTAL(9,AE41:AE51) -> 569,695.20 | AF53: =SUBTOTAL(9,AF41:AF51) -> 142,423.80 | AG53: =SUBTOTAL(9,AG41:AG51) -> 94,949.20 | AQ53: =SUBTOTAL(9,AQ41:AQ51) -> 6 | AR53: =SUBTOTAL(9,AR41:AR51) -> 18,525.40 | AS53: =SUBTOTAL(9,AS41:AS51) -> 222,304.80 | AT53: =SUBTOTAL(9,AT41:AT51) -> 55,576.20 | AU53: =SUBTOTAL(9,AU41:AU51) -> 37,050.80 | AX53: =SUBTOTAL(9,AX41:AX51) -> 6 | AY53: 712,119.00 | AZ53: 0 | BA53: 0 | BB53: 0 | BC53: 0 | BD53: 0 | BE53: 0 | BF53: 0 | BG53: 0 | BH53: 0 | BI53: 0 | BJ53: 0 | BK53: 0 | BO53: 1,042,119.00 | BT53: =SUBTOTAL(9,BT41:BT51) -> 6 | BU53: =SUBTOTAL(9,BU41:BU51) -> 1,042,119.00
A54: 1 | B54: น.ส. | C54: ธิติมา | D54: กิตติรงค์ | E54: 3309800355415 | I54: 2568-11-06 | Q54: อบต.บ้านเก่า | R54: ด่านขุนทด | S54: นครราชสีมา | U54: ครู | W54: 2568-10-03 | AE54: =AD54*12 -> 0 | AF54: =AD54*3 -> 0 | AG54: =AD54*2 -> 0 | AH54: =AD54*3 -> 0 | AI54: =AD54*3 -> 0 | AK54: =AD54+AJ54 -> 0 | AO54: 0 | AP54: 0 | AR54: =AJ54+AL54+AO54+AP54 -> 0 | AS54: =AR54*12 -> 0 | AT54: =AR54*3 -> 0 | AU54: =AR54*2 -> 0 | AV54: =AR54*3 -> 0 | AW54: =AR54*3 -> 0 | BF54: 1 | BG54: 495,820.00 | BN54: 1.00 | BO54: 495,820.00 | BT54: =BN54 -> 1 | BU54: =ROUND(BO54,2) -> 495,820.00
Q55: อบต.บ้านเก่า ผลรวม | R55: ด่านขุนทด | S55: นครราชสีมา | AC55: =SUBTOTAL(9,AC54:AC54) -> 0 | AD55: =SUBTOTAL(9,AD54:AD54) -> 0 | AE55: =SUBTOTAL(9,AE54:AE54) -> 0 | AF55: =SUBTOTAL(9,AF54:AF54) -> 0 | AG55: =SUBTOTAL(9,AG54:AG54) -> 0 | AQ55: =SUBTOTAL(9,AQ54:AQ54) -> 0 | AR55: =SUBTOTAL(9,AR54:AR54) -> 0 | AS55: =SUBTOTAL(9,AS54:AS54) -> 0 | AT55: =SUBTOTAL(9,AT54:AT54) -> 0 | AU55: =SUBTOTAL(9,AU54:AU54) -> 0 | AX55: =SUBTOTAL(9,AX54:AX54) -> 0 | AY55: 0 | AZ55: 0 | BA55: 0 | BB55: 0 | BC55: 0 | BD55: 0 | BE55: 0 | BF55: 1 | BG55: 495,820.00 | BH55: 0 | BI55: 0 | BJ55: 0 | BK55: 0 | BO55: 495,820.00 | BT55: =SUBTOTAL(9,BT54:BT54) -> 1 | BU55: =SUBTOTAL(9,BU54:BU54) -> 495,820.00
A56: =A54+1 -> 2 | B56: นาง | C56: รำพรวน | D56: วันวาน | E56: 3401400204284 | I56: 2568-10-01 | Q56: อบต.โคกกระเบื้อง | R56: บ้านเหล่อม | S56: นครราชสีมา | U56: ครู | AC56: 1 | AD56: 6,938.80 | AE56: =AD56*12 -> 83,265.60 | AF56: =AD56*3 -> 20,816.40 | AG56: =AD56*2 -> 13,877.60 | AH56: =AD56*3 -> 20,816.40 | AI56: =AD56*3 -> 20,816.40 | AK56: 0 | AO56: =10000-AD56 -> 3,061.20 | AP56: =11000-AO56-AD56 -> 1,000.00 | AQ56: 1 | AR56: =AJ56+AL56+AO56+AP56 -> 4,061.20 | AS56: =AR56*12 -> 48,734.40 | AT56: =AR56*3 -> 12,183.60 | AU56: =AR56*2 -> 8,122.40 | AV56: =AR56*3 -> 12,183.60 | AW56: =AR56*3 -> 12,183.60 | AX56: 1 | AY56: 104,082.00 | BN56: 1.00 | BO56: 159,082.00 | BT56: =BN56 -> 1 | BU56: =ROUND(BO56,2) -> 159,082.00
Q57: อบต.โคกกระเบื้อง ผลรวม | R57: บ้านเหล่อม | S57: นครราชสีมา | AC57: =SUBTOTAL(9,AC56:AC56) -> 1 | AD57: =SUBTOTAL(9,AD56:AD56) -> 6,938.80 | AE57: =SUBTOTAL(9,AE56:AE56) -> 83,265.60 | AF57: =SUBTOTAL(9,AF56:AF56) -> 20,816.40 | AG57: =SUBTOTAL(9,AG56:AG56) -> 13,877.60 | AQ57: =SUBTOTAL(9,AQ56:AQ56) -> 1 | AR57: =SUBTOTAL(9,AR56:AR56) -> 4,061.20 | AS57: =SUBTOTAL(9,AS56:AS56) -> 48,734.40 | AT57: =SUBTOTAL(9,AT56:AT56) -> 12,183.60 | AU57: =SUBTOTAL(9,AU56:AU56) -> 8,122.40 | AX57: =SUBTOTAL(9,AX56:AX56) -> 1 | AY57: 104,082.00 | AZ57: 0 | BA57: 0 | BB57: 0 | BC57: 0 | BD57: 0 | BE57: 0 | BF57: 0 | BG57: 0 | BH57: 0 | BI57: 0 | BJ57: 0 | BK57: 0 | BO57: 159,082.00 | BT57: =SUBTOTAL(9,BT56:BT56) -> 1 | BU57: =SUBTOTAL(9,BU56:BU56) -> 159,082.00
S58: นครราชสีมา ผลรวม | AC58: =SUBTOTAL(9,AC54:AC56) -> 1 | AD58: =SUBTOTAL(9,AD54:AD56) -> 6,938.80 | AE58: =SUBTOTAL(9,AE54:AE56) -> 83,265.60 | AF58: =SUBTOTAL(9,AF54:AF56) -> 20,816.40 | AG58: =SUBTOTAL(9,AG54:AG56) -> 13,877.60 | AQ58: =SUBTOTAL(9,AQ54:AQ56) -> 1 | AR58: =SUBTOTAL(9,AR54:AR56) -> 4,061.20 | AS58: =SUBTOTAL(9,AS54:AS56) -> 48,734.40 | AT58: =SUBTOTAL(9,AT54:AT56) -> 12,183.60 | AU58: =SUBTOTAL(9,AU54:AU56) -> 8,122.40 | AX58: =SUBTOTAL(9,AX54:AX56) -> 1 | AY58: 104,082.00 | AZ58: 0 | BA58: 0 | BB58: 0 | BC58: 0 | BD58: 0 | BE58: 0 | BF58: 1 | BG58: 495,820.00 | BH58: 0 | BI58: 0 | BJ58: 0 | BK58: 0 | BO58: 654,902.00 | BT58: =SUBTOTAL(9,BT54:BT56) -> 2 | BU58: =SUBTOTAL(9,BU54:BU56) -> 654,902.00
A59: 1 | B59: นาง | C59: นิพล | D59: พรหมทอง | I59: 2568-10-01 | Q59: อบต.เคร็ง | R59: ชะอวด | S59: นครศรีธรรมราช | AC59: 1 | AD59: 8,330.40 | AE59: =AD59*12 -> 99,964.80 | AF59: =AD59*3 -> 24,991.20 | AG59: =AD59*2 -> 16,660.80 | AH59: =AD59*3 -> 24,991.20 | AI59: =AD59*3 -> 24,991.20 | AK59: =AD59+AJ59 -> 8,330.40 | AP59: =11000-AO59-AD59 -> 2,669.60 | AQ59: 1 | AR59: =AJ59+AL59+AN59+AO59+AP59 -> 2,669.60 | AS59: =AR59*12 -> 32,035.20 | AT59: =AR59*3 -> 8,008.80 | AU59: =AR59*2 -> 5,339.20 | AV59: =AR59*3 -> 8,008.80 | AW59: =AR59*3 -> 8,008.80 | AX59: 1 | AY59: 124,956.00 | BN59: 1.00 | BO59: 179,956.00 | BT59: =BN59 -> 1 | BU59: =ROUND(BO59,2) -> 179,956.00
Q60: อบต.เคร็ง ผลรวม | R60: ชะอวด | S60: นครศรีธรรมราช | AC60: =SUBTOTAL(9,AC59:AC59) -> 1 | AD60: =SUBTOTAL(9,AD59:AD59) -> 8,330.40 | AE60: =SUBTOTAL(9,AE59:AE59) -> 99,964.80 | AF60: =SUBTOTAL(9,AF59:AF59) -> 24,991.20 | AG60: =SUBTOTAL(9,AG59:AG59) -> 16,660.80 | AQ60: =SUBTOTAL(9,AQ59:AQ59) -> 1 | AR60: =SUBTOTAL(9,AR59:AR59) -> 2,669.60 | AS60: =SUBTOTAL(9,AS59:AS59) -> 32,035.20 | AT60: =SUBTOTAL(9,AT59:AT59) -> 8,008.80 | AU60: =SUBTOTAL(9,AU59:AU59) -> 5,339.20 | AX60: =SUBTOTAL(9,AX59:AX59) -> 1 | AY60: 124,956.00 | AZ60: 0 | BA60: 0 | BB60: 0 | BC60: 0 | BD60: 0 | BE60: 0 | BF60: 0 | BG60: 0 | BH60: 0 | BI60: 0 | BJ60: 0 | BK60: 0 | BO60: 179,956.00 | BT60: =SUBTOTAL(9,BT59:BT59) -> 1 | BU60: =SUBTOTAL(9,BU59:BU59) -> 179,956.00
A61: =A59+1 -> 2 | B61: นาง | C61: บำเพ็ญ | D61: บุตรทอง | I61: 2568-10-01 | Q61: อบต.ท่าซอม | R61: หัวไทร | S61: นครศรีธรรมราช | AC61: 1 | AD61: 9,274.20 | AE61: =AD61*12 -> 111,290.40 | AF61: =AD61*3 -> 27,822.60 | AG61: =AD61*2 -> 18,548.40 | AH61: =AD61*3 -> 27,822.60 | AI61: =AD61*3 -> 27,822.60 | AK61: =AD61+AJ61 -> 9,274.20 | AP61: =11000-AO61-AD61 -> 1,725.80 | AQ61: 1 | AR61: =AJ61+AL61+AO61+AP61 -> 1,725.80 | AS61: =AR61*12 -> 20,709.60 | AT61: =AR61*3 -> 5,177.40 | AU61: =AR61*2 -> 3,451.60 | AV61: =AR61*3 -> 5,177.40 | AW61: =AR61*3 -> 5,177.40 | AX61: 1 | AY61: 139,113.00 | BN61: 1.00 | BO61: 194,113.00 | BT61: =BN61 -> 1 | BU61: =ROUND(BO61,2) -> 194,113.00
Q62: อบต.ท่าซอม ผลรวม | R62: หัวไทร | S62: นครศรีธรรมราช | AC62: =SUBTOTAL(9,AC61:AC61) -> 1 | AD62: =SUBTOTAL(9,AD61:AD61) -> 9,274.20 | AE62: =SUBTOTAL(9,AE61:AE61) -> 111,290.40 | AF62: =SUBTOTAL(9,AF61:AF61) -> 27,822.60 | AG62: =SUBTOTAL(9,AG61:AG61) -> 18,548.40 | AQ62: =SUBTOTAL(9,AQ61:AQ61) -> 1 | AR62: =SUBTOTAL(9,AR61:AR61) -> 1,725.80 | AS62: =SUBTOTAL(9,AS61:AS61) -> 20,709.60 | AT62: =SUBTOTAL(9,AT61:AT61) -> 5,177.40 | AU62: =SUBTOTAL(9,AU61:AU61) -> 3,451.60 | AX62: =SUBTOTAL(9,AX61:AX61) -> 1 | AY62: 139,113.00 | AZ62: 0 | BA62: 0 | BB62: 0 | BC62: 0 | BD62: 0 | BE62: 0 | BF62: 0 | BG62: 0 | BH62: 0 | BI62: 0 | BJ62: 0 | BK62: 0 | BO62: 194,113.00 | BT62: =SUBTOTAL(9,BT61:BT61) -> 1 | BU62: =SUBTOTAL(9,BU61:BU61) -> 194,113.00
S63: นครศรีธรรมราช ผลรวม | AC63: =SUBTOTAL(9,AC59:AC61) -> 2 | AD63: =SUBTOTAL(9,AD59:AD61) -> 17,604.60 | AE63: =SUBTOTAL(9,AE59:AE61) -> 211,255.20 | AF63: =SUBTOTAL(9,AF59:AF61) -> 52,813.80 | AG63: =SUBTOTAL(9,AG59:AG61) -> 35,209.20 | AQ63: =SUBTOTAL(9,AQ59:AQ61) -> 2 | AR63: =SUBTOTAL(9,AR59:AR61) -> 4,395.40 | AS63: =SUBTOTAL(9,AS59:AS61) -> 52,744.80 | AT63: =SUBTOTAL(9,AT59:AT61) -> 13,186.20 | AU63: =SUBTOTAL(9,AU59:AU61) -> 8,790.80 | AX63: =SUBTOTAL(9,AX59:AX61) -> 2 | AY63: 264,069.00 | AZ63: 0 | BA63: 0 | BB63: 0 | BC63: 0 | BD63: 0 | BE63: 0 | BF63: 0 | BG63: 0 | BH63: 0 | BI63: 0 | BJ63: 0 | BK63: 0 | BO63: 374,069.00 | BT63: =SUBTOTAL(9,BT59:BT61) -> 2 | BU63: =SUBTOTAL(9,BU59:BU61) -> 374,069.00
A64: 1 | B64: นาง | C64: สุปราณี | D64: รัตณี | E64: 3960100325382 | I64: 2568-10-16 | Q64: อบต.โคกเคียน | R64: เมืองนราธิวาส | S64: นราธิวาส | U64: ครู | AC64: 1 | AD64: 6,050.00 | AE64: 69,672.58 | AF64: 15,222.58 | AG64: =AD64*2 -> 12,100.00 | AH64: =AD64*3 -> 18,150.00 | AI64: =AD64*3 -> 18,150.00 | AK64: 0 | AO64: =10000-AD64 -> 3,950.00 | AP64: =11000-AO64-AD64 -> 1,000.00 | AQ64: 1 | AR64: =AJ64+AL64+AO64+AP64 -> 4,950.00 | AS64: =AR64*12 -> 59,400.00 | AT64: 12,454.84 | AU64: =AR64*2 -> 9,900.00 | AV64: =AR64*3 -> 14,850.00 | AW64: =AR64*3 -> 14,850.00 | AX64: 1 | AY64: 90,750.00 | BN64: 1.00 | BO64: 140,427.42 | BT64: =BN64 -> 1 | BU64: =ROUND(BO64,2) -> 140,427.42
Q65: อบต.โคกเคียน ผลรวม | R65: เมืองนราธิวาส | S65: นราธิวาส | AC65: =SUBTOTAL(9,AC64:AC64) -> 1 | AD65: =SUBTOTAL(9,AD64:AD64) -> 6,050.00 | AE65: =SUBTOTAL(9,AE64:AE64) -> 69,672.58 | AF65: =SUBTOTAL(9,AF64:AF64) -> 15,222.58 | AG65: =SUBTOTAL(9,AG64:AG64) -> 12,100.00 | AQ65: =SUBTOTAL(9,AQ64:AQ64) -> 1 | AR65: =SUBTOTAL(9,AR64:AR64) -> 4,950.00 | AS65: =SUBTOTAL(9,AS64:AS64) -> 59,400.00 | AT65: =SUBTOTAL(9,AT64:AT64) -> 12,454.84 | AU65: =SUBTOTAL(9,AU64:AU64) -> 9,900.00 | AX65: =SUBTOTAL(9,AX64:AX64) -> 1 | AY65: 90,750.00 | AZ65: 0 | BA65: 0 | BB65: 0 | BC65: 0 | BD65: 0 | BE65: 0 | BF65: 0 | BG65: 0 | BH65: 0 | BI65: 0 | BJ65: 0 | BK65: 0 | BO65: 140,427.42 | BT65: =SUBTOTAL(9,BT64:BT64) -> 1 | BU65: =SUBTOTAL(9,BU64:BU64) -> 140,427.42
A66: =A64+1 -> 2 | B66: น.ส. | C66: ไรมะห์ | D66: สะมะแอ | E66: 3960500442335 | I66: 2568-10-01 | Q66: อบต.เฉลิม | R66: ระแงะ | S66: นราธิวาส | U66: ครู | AC66: 1 | AD66: 6,426.20 | AE66: =AD66*12 -> 77,114.40 | AF66: =AD66*3 -> 19,278.60 | AG66: =AD66*2 -> 12,852.40 | AH66: =AD66*3 -> 19,278.60 | AI66: =AD66*3 -> 19,278.60 | AK66: 0 | AO66: =10000-AD66 -> 3,573.80 | AP66: =11000-AO66-AD66 -> 1,000.00 | AQ66: 1 | AR66: =AJ66+AL66+AO66+AP66 -> 4,573.80 | AS66: =AR66*12 -> 54,885.60 | AT66: =AR66*3 -> 13,721.40 | AU66: =AR66*2 -> 9,147.60 | AV66: =AR66*3 -> 13,721.40 | AW66: =AR66*3 -> 13,721.40 | AX66: 1 | AY66: 96,393.00 | BN66: 1.00 | BO66: 151,393.00 | BT66: =BN66 -> 1 | BU66: =ROUND(BO66,2) -> 151,393.00
Q67: อบต.เฉลิม ผลรวม | R67: ระแงะ | S67: นราธิวาส | AC67: =SUBTOTAL(9,AC66:AC66) -> 1 | AD67: =SUBTOTAL(9,AD66:AD66) -> 6,426.20 | AE67: =SUBTOTAL(9,AE66:AE66) -> 77,114.40 | AF67: =SUBTOTAL(9,AF66:AF66) -> 19,278.60 | AG67: =SUBTOTAL(9,AG66:AG66) -> 12,852.40 | AQ67: =SUBTOTAL(9,AQ66:AQ66) -> 1 | AR67: =SUBTOTAL(9,AR66:AR66) -> 4,573.80 | AS67: =SUBTOTAL(9,AS66:AS66) -> 54,885.60 | AT67: =SUBTOTAL(9,AT66:AT66) -> 13,721.40 | AU67: =SUBTOTAL(9,AU66:AU66) -> 9,147.60 | AX67: =SUBTOTAL(9,AX66:AX66) -> 1 | AY67: 96,393.00 | AZ67: 0 | BA67: 0 | BB67: 0 | BC67: 0 | BD67: 0 | BE67: 0 | BF67: 0 | BG67: 0 | BH67: 0 | BI67: 0 | BJ67: 0 | BK67: 0 | BO67: 151,393.00 | BT67: =SUBTOTAL(9,BT66:BT66) -> 1 | BU67: =SUBTOTAL(9,BU66:BU66) -> 151,393.00
A68: =A66+1 -> 3 | B68: นาง | C68: ปาตีเมาะ | D68: แวมะ | E68: 3960100109868 | I68: 2568-10-01 | Q68: อบต.ศรีสาคร | R68: ศรีสาคร | S68: นราธิวาส | U68: ครู | AC68: 1 | AD68: 10,043.60 | AE68: =AD68*12 -> 120,523.20 | AF68: =AD68*3 -> 30,130.80 | AG68: =AD68*2 -> 20,087.20 | AH68: =AD68*3 -> 30,130.80 | AI68: =AD68*3 -> 30,130.80 | AK68: 0 | AO68: =10000-AD68 -> -43.60 | AP68: =11000-AO68-AD68 -> 1,000.00 | AQ68: 1 | AR68: =AJ68+AL68+AO68+AP68 -> 956.40 | AS68: =AR68*12 -> 11,476.80 | AT68: =AR68*3 -> 2,869.20 | AU68: =AR68*2 -> 1,912.80 | AV68: =AR68*3 -> 2,869.20 | AW68: =AR68*3 -> 2,869.20 | AX68: 1 | AY68: 150,654.00 | BN68: 1.00 | BO68: 205,654.00 | BT68: =BN68 -> 1 | BU68: =ROUND(BO68,2) -> 205,654.00
Q69: อบต.ศรีสาคร ผลรวม | R69: ศรีสาคร | S69: นราธิวาส | AC69: =SUBTOTAL(9,AC68:AC68) -> 1 | AD69: =SUBTOTAL(9,AD68:AD68) -> 10,043.60 | AE69: =SUBTOTAL(9,AE68:AE68) -> 120,523.20 | AF69: =SUBTOTAL(9,AF68:AF68) -> 30,130.80 | AG69: =SUBTOTAL(9,AG68:AG68) -> 20,087.20 | AQ69: =SUBTOTAL(9,AQ68:AQ68) -> 1 | AR69: =SUBTOTAL(9,AR68:AR68) -> 956.40 | AS69: =SUBTOTAL(9,AS68:AS68) -> 11,476.80 | AT69: =SUBTOTAL(9,AT68:AT68) -> 2,869.20 | AU69: =SUBTOTAL(9,AU68:AU68) -> 1,912.80 | AX69: =SUBTOTAL(9,AX68:AX68) -> 1 | AY69: 150,654.00 | AZ69: 0 | BA69: 0 | BB69: 0 | BC69: 0 | BD69: 0 | BE69: 0 | BF69: 0 | BG69: 0 | BH69: 0 | BI69: 0 | BJ69: 0 | BK69: 0 | BO69: 205,654.00 | BT69: =SUBTOTAL(9,BT68:BT68) -> 1 | BU69: =SUBTOTAL(9,BU68:BU68) -> 205,654.00
S70: นราธิวาส ผลรวม | AC70: =SUBTOTAL(9,AC64:AC68) -> 3 | AD70: =SUBTOTAL(9,AD64:AD68) -> 22,519.80 | AE70: =SUBTOTAL(9,AE64:AE68) -> 267,310.18 | AF70: =SUBTOTAL(9,AF64:AF68) -> 64,631.98 | AG70: =SUBTOTAL(9,AG64:AG68) -> 45,039.60 | AQ70: =SUBTOTAL(9,AQ64:AQ68) -> 3 | AR70: =SUBTOTAL(9,AR64:AR68) -> 10,480.20 | AS70: =SUBTOTAL(9,AS64:AS68) -> 125,762.40 | AT70: =SUBTOTAL(9,AT64:AT68) -> 29,045.44 | AU70: =SUBTOTAL(9,AU64:AU68) -> 20,960.40 | AX70: =SUBTOTAL(9,AX64:AX68) -> 3 | AY70: 337,797.00 | AZ70: 0 | BA70: 0 | BB70: 0 | BC70: 0 | BD70: 0 | BE70: 0 | BF70: 0 | BG70: 0 | BH70: 0 | BI70: 0 | BJ70: 0 | BK70: 0 | BO70: 497,474.42 | BT70: =SUBTOTAL(9,BT64:BT68) -> 3 | BU70: =SUBTOTAL(9,BU64:BU68) -> 497,474.42
A71: 1 | B71: นาง | C71: ณัฐจิยา | D71: พรหมเหรียญชัย | I71: 2568-10-01 | Q71: อบต.จอมพระ | R71: ท่าวังผา | S71: น่าน | AC71: 1 | AD71: 10,250.80 | AE71: =AD71*12 -> 123,009.60 | AF71: =AD71*3 -> 30,752.40 | AG71: =AD71*2 -> 20,501.60 | AH71: =AD71*3 -> 30,752.40 | AI71: =AD71*3 -> 30,752.40 | AK71: =AD71+AJ71 -> 10,250.80 | AO71: 0 | AP71: =11000-AO71-AD71 -> 749.20 | AQ71: =+AC71 -> 1 | AR71: =AJ71+AL71+AO71+AP71 -> 749.20 | AS71: =AR71*12 -> 8,990.40 | AT71: =AR71*3 -> 2,247.60 | AU71: =AR71*2 -> 1,498.40 | AV71: =AR71*3 -> 2,247.60 | AW71: =AR71*3 -> 2,247.60 | AX71: 1 | AY71: 153,762.00 | BN71: 1.00 | BO71: 208,762.00 | BT71: =BN71 -> 1 | BU71: =ROUND(BO71,2) -> 208,762.00
Q72: อบต.จอมพระ ผลรวม | R72: ท่าวังผา | S72: น่าน | AC72: =SUBTOTAL(9,AC71:AC71) -> 1 | AD72: =SUBTOTAL(9,AD71:AD71) -> 10,250.80 | AE72: =SUBTOTAL(9,AE71:AE71) -> 123,009.60 | AF72: =SUBTOTAL(9,AF71:AF71) -> 30,752.40 | AG72: =SUBTOTAL(9,AG71:AG71) -> 20,501.60 | AQ72: =SUBTOTAL(9,AQ71:AQ71) -> 1 | AR72: =SUBTOTAL(9,AR71:AR71) -> 749.20 | AS72: =SUBTOTAL(9,AS71:AS71) -> 8,990.40 | AT72: =SUBTOTAL(9,AT71:AT71) -> 2,247.60 | AU72: =SUBTOTAL(9,AU71:AU71) -> 1,498.40 | AX72: =SUBTOTAL(9,AX71:AX71) -> 1 | AY72: 153,762.00 | AZ72: 0 | BA72: 0 | BB72: 0 | BC72: 0 | BD72: 0 | BE72: 0 | BF72: 0 | BG72: 0 | BH72: 0 | BI72: 0 | BJ72: 0 | BK72: 0 | BO72: 208,762.00 | BT72: =SUBTOTAL(9,BT71:BT71) -> 1 | BU72: =SUBTOTAL(9,BU71:BU71) -> 208,762.00
S73: น่าน ผลรวม | AC73: =SUBTOTAL(9,AC71:AC71) -> 1 | AD73: =SUBTOTAL(9,AD71:AD71) -> 10,250.80 | AE73: =SUBTOTAL(9,AE71:AE71) -> 123,009.60 | AF73: =SUBTOTAL(9,AF71:AF71) -> 30,752.40 | AG73: =SUBTOTAL(9,AG71:AG71) -> 20,501.60 | AQ73: =SUBTOTAL(9,AQ71:AQ71) -> 1 | AR73: =SUBTOTAL(9,AR71:AR71) -> 749.20 | AS73: =SUBTOTAL(9,AS71:AS71) -> 8,990.40 | AT73: =SUBTOTAL(9,AT71:AT71) -> 2,247.60 | AU73: =SUBTOTAL(9,AU71:AU71) -> 1,498.40 | AX73: =SUBTOTAL(9,AX71:AX71) -> 1 | AY73: 153,762.00 | AZ73: 0 | BA73: 0 | BB73: 0 | BC73: 0 | BD73: 0 | BE73: 0 | BF73: 0 | BG73: 0 | BH73: 0 | BI73: 0 | BJ73: 0 | BK73: 0 | BO73: =AF73+AG73+AT73+AU73+AY73+BA73+BC73+BE73+BG73+BI73+BK73 -> 208,762.00 | BT73: =SUBTOTAL(9,BT71:BT71) -> 1 | BU73: =SUBTOTAL(9,BU71:BU71) -> 208,762.00
A74: 1 | B74: นาง | C74: อุทิศ | D74: ต้นสิน | I74: 2568-10-01 | Q74: อบต.โซ่ | R74: โซ่พิสัย | S74: บึงกาฬ | U74: ครู | AC74: 1 | AD74: 8,710.00 | AE74: =AD74*12 -> 104,520.00 | AF74: =AD74*3 -> 26,130.00 | AG74: =AD74*2 -> 17,420.00 | AH74: =AD74*3 -> 26,130.00 | AI74: =AD74*3 -> 26,130.00 | AK74: =AD74+AJ74 -> 8,710.00 | AP74: =11000-AO74-AD74 -> 2,290.00 | AQ74: 1 | AR74: =AJ74+AL74+AN74+AO74+AP74 -> 2,290.00 | AS74: =AR74*12 -> 27,480.00 | AT74: =AR74*3 -> 6,870.00 | AU74: =AR74*2 -> 4,580.00 | AV74: =AR74*3 -> 6,870.00 | AW74: =AR74*3 -> 6,870.00 | AX74: 1 | AY74: =SUM(AD74*15) -> 130,650.00 | BN74: 1.00 | BO74: 185,650.00 | BT74: =BN74 -> 1 | BU74: =ROUND(BO74,2) -> 185,650.00
Q75: อบต.โซ่ ผลรวม | R75: โซ่พิสัย | S75: บึงกาฬ | AC75: =SUBTOTAL(9,AC74:AC74) -> 1 | AD75: =SUBTOTAL(9,AD74:AD74) -> 8,710.00 | AE75: =SUBTOTAL(9,AE74:AE74) -> 104,520.00 | AF75: =SUBTOTAL(9,AF74:AF74) -> 26,130.00 | AG75: =SUBTOTAL(9,AG74:AG74) -> 17,420.00 | AQ75: =SUBTOTAL(9,AQ74:AQ74) -> 1 | AR75: =SUBTOTAL(9,AR74:AR74) -> 2,290.00 | AS75: =SUBTOTAL(9,AS74:AS74) -> 27,480.00 | AT75: =SUBTOTAL(9,AT74:AT74) -> 6,870.00 | AU75: =SUBTOTAL(9,AU74:AU74) -> 4,580.00 | AX75: =SUBTOTAL(9,AX74:AX74) -> 1 | AY75: 130,650.00 | AZ75: 0 | BA75: 0 | BB75: 0 | BC75: 0 | BD75: 0 | BE75: 0 | BF75: 0 | BG75: 0 | BH75: 0 | BI75: 0 | BJ75: 0 | BK75: 0 | BO75: 185,650.00 | BT75: =SUBTOTAL(9,BT74:BT74) -> 1 | BU75: =SUBTOTAL(9,BU74:BU74) -> 185,650.00
A76: =A74+1 -> 2 | B76: นาง | C76: บุญเพ็ญ | D76: ใจกว้าง | I76: 2568-10-01 | Q76: อบต.ศรีชมภู | R76: โซ่พิสัย | S76: บึงกาฬ | U76: ครู | AC76: 1 | AD76: 6,010.00 | AE76: =AD76*12 -> 72,120.00 | AF76: =AD76*3 -> 18,030.00 | AG76: =AD76*2 -> 12,020.00 | AH76: =AD76*3 -> 18,030.00 | AI76: =AD76*3 -> 18,030.00 | AK76: =AD76+AJ76 -> 6,010.00 | AP76: =11000-AO76-AD76 -> 4,990.00 | AQ76: 1 | AR76: =AJ76+AL76+AN76+AO76+AP76 -> 4,990.00 | AS76: =AR76*12 -> 59,880.00 | AT76: =AR76*3 -> 14,970.00 | AU76: =AR76*2 -> 9,980.00 | AV76: =AR76*3 -> 14,970.00 | AW76: =AR76*3 -> 14,970.00 | AX76: 1 | AY76: =SUM(AD76*15) -> 90,150.00 | BN76: 1.00 | BO76: 145,150.00 | BT76: =BN76 -> 1 | BU76: =ROUND(BO76,2) -> 145,150.00
Q77: อบต.ศรีชมภู ผลรวม | R77: โซ่พิสัย | S77: บึงกาฬ | AC77: =SUBTOTAL(9,AC76:AC76) -> 1 | AD77: =SUBTOTAL(9,AD76:AD76) -> 6,010.00 | AE77: =SUBTOTAL(9,AE76:AE76) -> 72,120.00 | AF77: =SUBTOTAL(9,AF76:AF76) -> 18,030.00 | AG77: =SUBTOTAL(9,AG76:AG76) -> 12,020.00 | AQ77: =SUBTOTAL(9,AQ76:AQ76) -> 1 | AR77: =SUBTOTAL(9,AR76:AR76) -> 4,990.00 | AS77: =SUBTOTAL(9,AS76:AS76) -> 59,880.00 | AT77: =SUBTOTAL(9,AT76:AT76) -> 14,970.00 | AU77: =SUBTOTAL(9,AU76:AU76) -> 9,980.00 | AX77: =SUBTOTAL(9,AX76:AX76) -> 1 | AY77: 90,150.00 | AZ77: 0 | BA77: 0 | BB77: 0 | BC77: 0 | BD77: 0 | BE77: 0 | BF77: 0 | BG77: 0 | BH77: 0 | BI77: 0 | BJ77: 0 | BK77: 0 | BO77: 145,150.00 | BT77: =SUBTOTAL(9,BT76:BT76) -> 1 | BU77: =SUBTOTAL(9,BU76:BU76) -> 145,150.00
A78: =A76+1 -> 3 | B78: นาง | C78: ประเจียด | D78: สุขผ่อง | I78: 2568-10-01 | Q78: อบต.โพธิ์หมากแข้ง | R78: บึงโขงหลง | S78: บึงกาฬ | U78: ครู | AC78: 1 | AD78: 10,455.20 | AE78: =AD78*12 -> 125,462.40 | AF78: =AD78*3 -> 31,365.60 | AG78: =AD78*2 -> 20,910.40 | AH78: =AD78*3 -> 31,365.60 | AI78: =AD78*3 -> 31,365.60 | AK78: =AD78+AJ78 -> 10,455.20 | AP78: =11000-AO78-AD78 -> 544.80 | AQ78: 1 | AR78: =AJ78+AL78+AN78+AO78+AP78 -> 544.80 | AS78: =AR78*12 -> 6,537.60 | AT78: =AR78*3 -> 1,634.40 | AU78: =AR78*2 -> 1,089.60 | AV78: =AR78*3 -> 1,634.40 | AW78: =AR78*3 -> 1,634.40 | AX78: 1 | AY78: =SUM(AD78*15) -> 156,828.00 | BN78: 1.00 | BO78: 211,828.00 | BT78: =BN78 -> 1 | BU78: =ROUND(BO78,2) -> 211,828.00
Q79: อบต.โพธิ์หมากแข้ง ผลรวม | R79: บึงโขงหลง | S79: บึงกาฬ | AC79: =SUBTOTAL(9,AC78:AC78) -> 1 | AD79: =SUBTOTAL(9,AD78:AD78) -> 10,455.20 | AE79: =SUBTOTAL(9,AE78:AE78) -> 125,462.40 | AF79: =SUBTOTAL(9,AF78:AF78) -> 31,365.60 | AG79: =SUBTOTAL(9,AG78:AG78) -> 20,910.40 | AQ79: =SUBTOTAL(9,AQ78:AQ78) -> 1 | AR79: =SUBTOTAL(9,AR78:AR78) -> 544.80 | AS79: =SUBTOTAL(9,AS78:AS78) -> 6,537.60 | AT79: =SUBTOTAL(9,AT78:AT78) -> 1,634.40 | AU79: =SUBTOTAL(9,AU78:AU78) -> 1,089.60 | AX79: =SUBTOTAL(9,AX78:AX78) -> 1 | AY79: 156,828.00 | AZ79: 0 | BA79: 0 | BB79: 0 | BC79: 0 | BD79: 0 | BE79: 0 | BF79: 0 | BG79: 0 | BH79: 0 | BI79: 0 | BJ79: 0 | BK79: 0 | BO79: 211,828.00 | BT79: =SUBTOTAL(9,BT78:BT78) -> 1 | BU79: =SUBTOTAL(9,BU78:BU78) -> 211,828.00
A80: =A78+1 -> 4 | B80: นางสาว | C80: ทัศนีย์ | D80: แสงเลิศ | I80: 2568-10-01 | Q80: อบต.นาแสง | R80: ศรีวิไล | S80: บึงกาฬ | U80: ครู | AC80: 1 | AD80: 10,413.20 | AE80: =AD80*12 -> 124,958.40 | AF80: =AD80*3 -> 31,239.60 | AG80: =AD80*2 -> 20,826.40 | AH80: =AD80*3 -> 31,239.60 | AI80: =AD80*3 -> 31,239.60 | AK80: =AD80+AJ80 -> 10,413.20 | AP80: =11000-AO80-AD80 -> 586.80 | AQ80: 1 | AR80: =AJ80+AL80+AN80+AO80+AP80 -> 586.80 | AS80: =AR80*12 -> 7,041.60 | AT80: =AR80*3 -> 1,760.40 | AU80: =AR80*2 -> 1,173.60 | AV80: =AR80*3 -> 1,760.40 | AW80: =AR80*3 -> 1,760.40 | AX80: 1 | AY80: =SUM(AD80*15) -> 156,198.00 | BN80: 1.00 | BO80: 211,198.00 | BT80: =BN80 -> 1 | BU80: =ROUND(BO80,2) -> 211,198.00
Q81: อบต.นาแสง ผลรวม | R81: ศรีวิไล | S81: บึงกาฬ | AC81: =SUBTOTAL(9,AC80:AC80) -> 1 | AD81: =SUBTOTAL(9,AD80:AD80) -> 10,413.20 | AE81: =SUBTOTAL(9,AE80:AE80) -> 124,958.40 | AF81: =SUBTOTAL(9,AF80:AF80) -> 31,239.60 | AG81: =SUBTOTAL(9,AG80:AG80) -> 20,826.40 | AQ81: =SUBTOTAL(9,AQ80:AQ80) -> 1 | AR81: =SUBTOTAL(9,AR80:AR80) -> 586.80 | AS81: =SUBTOTAL(9,AS80:AS80) -> 7,041.60 | AT81: =SUBTOTAL(9,AT80:AT80) -> 1,760.40 | AU81: =SUBTOTAL(9,AU80:AU80) -> 1,173.60 | AX81: =SUBTOTAL(9,AX80:AX80) -> 1 | AY81: 156,198.00 | AZ81: 0 | BA81: 0 | BB81: 0 | BC81: 0 | BD81: 0 | BE81: 0 | BF81: 0 | BG81: 0 | BH81: 0 | BI81: 0 | BJ81: 0 | BK81: 0 | BO81: 211,198.00 | BT81: =SUBTOTAL(9,BT80:BT80) -> 1 | BU81: =SUBTOTAL(9,BU80:BU80) -> 211,198.00
S82: บึงกาฬ ผลรวม | AC82: =SUBTOTAL(9,AC74:AC80) -> 4 | AD82: =SUBTOTAL(9,AD74:AD80) -> 35,588.40 | AE82: =SUBTOTAL(9,AE74:AE80) -> 427,060.80 | AF82: =SUBTOTAL(9,AF74:AF80) -> 106,765.20 | AG82: =SUBTOTAL(9,AG74:AG80) -> 71,176.80 | AQ82: =SUBTOTAL(9,AQ74:AQ80) -> 4 | AR82: =SUBTOTAL(9,AR74:AR80) -> 8,411.60 | AS82: =SUBTOTAL(9,AS74:AS80) -> 100,939.20 | AT82: =SUBTOTAL(9,AT74:AT80) -> 25,234.80 | AU82: =SUBTOTAL(9,AU74:AU80) -> 16,823.20 | AX82: =SUBTOTAL(9,AX74:AX80) -> 4 | AY82: 533,826.00 | AZ82: 0 | BA82: 0 | BB82: 0 | BC82: 0 | BD82: 0 | BE82: 0 | BF82: 0 | BG82: 0 | BH82: 0 | BI82: 0 | BJ82: 0 | BK82: 0 | BO82: 753,826.00 | BT82: =SUBTOTAL(9,BT74:BT80) -> 4 | BU82: =SUBTOTAL(9,BU74:BU80) -> 753,826.00
A83: 1 | B83: น.ส. | C83: ธัญวรรณ | D83: พิศงาม | E83: 331100127188 | I83: 2568-10-01 | Q83: อบต.ร่อนทอง | R83: สตึก | S83: บุรีรัมย์ | U83: ครู | AC83: 1 | AD83: 10,368.40 | AE83: =AD83*12 -> 124,420.80 | AF83: =AD83*3 -> 31,105.20 | AG83: =AD83*2 -> 20,736.80 | AH83: =AD83*3 -> 31,105.20 | AI83: =AD83*3 -> 31,105.20 | AK83: 0 | AO83: =10000-AD83 -> -368.40 | AP83: =11000-AO83-AD83 -> 1,000.00 | AQ83: 1 | AR83: =AJ83+AL83+AO83+AP83 -> 631.60 | AS83: =AR83*12 -> 7,579.20 | AT83: =AR83*3 -> 1,894.80 | AU83: =AR83*2 -> 1,263.20 | AV83: =AR83*3 -> 1,894.80 | AW83: =AR83*3 -> 1,894.80 | AX83: 1 | AY83: 155,526.00 | BN83: 1.00 | BO83: 210,526.00 | BT83: =BN83 -> 1 | BU83: =ROUND(BO83,2) -> 210,526.00
Q84: อบต.ร่อนทอง ผลรวม | R84: สตึก | S84: บุรีรัมย์ | AC84: =SUBTOTAL(9,AC83:AC83) -> 1 | AD84: =SUBTOTAL(9,AD83:AD83) -> 10,368.40 | AE84: =SUBTOTAL(9,AE83:AE83) -> 124,420.80 | AF84: =SUBTOTAL(9,AF83:AF83) -> 31,105.20 | AG84: =SUBTOTAL(9,AG83:AG83) -> 20,736.80 | AQ84: =SUBTOTAL(9,AQ83:AQ83) -> 1 | AR84: =SUBTOTAL(9,AR83:AR83) -> 631.60 | AS84: =SUBTOTAL(9,AS83:AS83) -> 7,579.20 | AT84: =SUBTOTAL(9,AT83:AT83) -> 1,894.80 | AU84: =SUBTOTAL(9,AU83:AU83) -> 1,263.20 | AX84: =SUBTOTAL(9,AX83:AX83) -> 1 | AY84: 155,526.00 | AZ84: 0 | BA84: 0 | BB84: 0 | BC84: 0 | BD84: 0 | BE84: 0 | BF84: 0 | BG84: 0 | BH84: 0 | BI84: 0 | BJ84: 0 | BK84: 0 | BO84: 210,526.00 | BT84: =SUBTOTAL(9,BT83:BT83) -> 1 | BU84: =SUBTOTAL(9,BU83:BU83) -> 210,526.00
S85: บุรีรัมย์ ผลรวม | AC85: =SUBTOTAL(9,AC83:AC83) -> 1 | AD85: =SUBTOTAL(9,AD83:AD83) -> 10,368.40 | AE85: =SUBTOTAL(9,AE83:AE83) -> 124,420.80 | AF85: =SUBTOTAL(9,AF83:AF83) -> 31,105.20 | AG85: =SUBTOTAL(9,AG83:AG83) -> 20,736.80 | AQ85: =SUBTOTAL(9,AQ83:AQ83) -> 1 | AR85: =SUBTOTAL(9,AR83:AR83) -> 631.60 | AS85: =SUBTOTAL(9,AS83:AS83) -> 7,579.20 | AT85: =SUBTOTAL(9,AT83:AT83) -> 1,894.80 | AU85: =SUBTOTAL(9,AU83:AU83) -> 1,263.20 | AX85: =SUBTOTAL(9,AX83:AX83) -> 1 | AY85: 155,526.00 | AZ85: 0 | BA85: 0 | BB85: 0 | BC85: 0 | BD85: 0 | BE85: 0 | BF85: 0 | BG85: 0 | BH85: 0 | BI85: 0 | BJ85: 0 | BK85: 0 | BO85: 210,526.00 | BT85: =SUBTOTAL(9,BT83:BT83) -> 1 | BU85: =SUBTOTAL(9,BU83:BU83) -> 210,526.00
A86: 1 | B86: นาง | C86: เฉลิม | D86: ปัจจุสนันท์ | E86: 3820700060887 | I86: 2568-10-01 | Q86: อบต.ระแหง | R86: ลาดหลุมแก้ว | S86: ปทุมธานี | U86: ครู | AC86: 1 | AD86: 9,170.20 | AE86: =AD86*12 -> 110,042.40 | AF86: =AD86*3 -> 27,510.60 | AG86: =AD86*2 -> 18,340.40 | AH86: =AD86*3 -> 27,510.60 | AI86: =AD86*3 -> 27,510.60 | AK86: =AD86+AJ86 -> 9,170.20 | AP86: =11000-AO86-AD86 -> 1,829.80 | AQ86: 1 | AR86: 1,829.80 | AS86: =AR86*12 -> 21,957.60 | AT86: =AR86*3 -> 5,489.40 | AU86: =AR86*2 -> 3,659.60 | AV86: =AR86*3 -> 5,489.40 | AW86: =AR86*3 -> 5,489.40 | AX86: 1 | AY86: 137,553.00 | BN86: 1.00 | BO86: 192,553.00 | BT86: =BN86 -> 1 | BU86: =ROUND(BO86,2) -> 192,553.00
Q87: อบต.ระแหง ผลรวม | R87: ลาดหลุมแก้ว | S87: ปทุมธานี | AC87: =SUBTOTAL(9,AC86:AC86) -> 1 | AD87: =SUBTOTAL(9,AD86:AD86) -> 9,170.20 | AE87: =SUBTOTAL(9,AE86:AE86) -> 110,042.40 | AF87: =SUBTOTAL(9,AF86:AF86) -> 27,510.60 | AG87: =SUBTOTAL(9,AG86:AG86) -> 18,340.40 | AQ87: =SUBTOTAL(9,AQ86:AQ86) -> 1 | AR87: =SUBTOTAL(9,AR86:AR86) -> 1,829.80 | AS87: =SUBTOTAL(9,AS86:AS86) -> 21,957.60 | AT87: =SUBTOTAL(9,AT86:AT86) -> 5,489.40 | AU87: =SUBTOTAL(9,AU86:AU86) -> 3,659.60 | AX87: =SUBTOTAL(9,AX86:AX86) -> 1 | AY87: 137,553.00 | AZ87: 0 | BA87: 0 | BB87: 0 | BC87: 0 | BD87: 0 | BE87: 0 | BF87: 0 | BG87: 0 | BH87: 0 | BI87: 0 | BJ87: 0 | BK87: 0 | BO87: 192,553.00 | BT87: =SUBTOTAL(9,BT86:BT86) -> 1 | BU87: =SUBTOTAL(9,BU86:BU86) -> 192,553.00
A88: =A86+1 -> 2 | B88: นาง | C88: นิตยา | D88: บุญเกษม | E88: 3770600244332 | I88: 2568-10-01 | Q88: อบต.บึงคำพร้อย | R88: ลำลูกกา | S88: ปทุมธานี | U88: ครู | AC88: 1 | AD88: 9,730.00 | AE88: =AD88*12 -> 116,760.00 | AF88: =AD88*3 -> 29,190.00 | AG88: =AD88*2 -> 19,460.00 | AH88: =AD88*3 -> 29,190.00 | AI88: =AD88*3 -> 29,190.00 | AK88: =AD88+AJ88 -> 9,730.00 | AP88: =11000-AO88-AD88 -> 1,270.00 | AQ88: 1 | AR88: 1,270.00 | AS88: =AR88*12 -> 15,240.00 | AT88: =AR88*3 -> 3,810.00 | AU88: =AR88*2 -> 2,540.00 | AV88: =AR88*3 -> 3,810.00 | AW88: =AR88*3 -> 3,810.00 | AX88: 1 | AY88: 145,950.00 | BN88: 1.00 | BO88: 200,950.00 | BT88: =BN88 -> 1 | BU88: =ROUND(BO88,2) -> 200,950.00
Q89: อบต.บึงคำพร้อย ผลรวม | R89: ลำลูกกา | S89: ปทุมธานี | AC89: =SUBTOTAL(9,AC88:AC88) -> 1 | AD89: =SUBTOTAL(9,AD88:AD88) -> 9,730.00 | AE89: =SUBTOTAL(9,AE88:AE88) -> 116,760.00 | AF89: =SUBTOTAL(9,AF88:AF88) -> 29,190.00 | AG89: =SUBTOTAL(9,AG88:AG88) -> 19,460.00 | AQ89: =SUBTOTAL(9,AQ88:AQ88) -> 1 | AR89: =SUBTOTAL(9,AR88:AR88) -> 1,270.00 | AS89: =SUBTOTAL(9,AS88:AS88) -> 15,240.00 | AT89: =SUBTOTAL(9,AT88:AT88) -> 3,810.00 | AU89: =SUBTOTAL(9,AU88:AU88) -> 2,540.00 | AX89: =SUBTOTAL(9,AX88:AX88) -> 1 | AY89: 145,950.00 | AZ89: 0 | BA89: 0 | BB89: 0 | BC89: 0 | BD89: 0 | BE89: 0 | BF89: 0 | BG89: 0 | BH89: 0 | BI89: 0 | BJ89: 0 | BK89: 0 | BO89: 200,950.00 | BT89: =SUBTOTAL(9,BT88:BT88) -> 1 | BU89: =SUBTOTAL(9,BU88:BU88) -> 200,950.00
S90: ปทุมธานี ผลรวม | AC90: =SUBTOTAL(9,AC86:AC88) -> 2 | AD90: =SUBTOTAL(9,AD86:AD88) -> 18,900.20 | AE90: =SUBTOTAL(9,AE86:AE88) -> 226,802.40 | AF90: =SUBTOTAL(9,AF86:AF88) -> 56,700.60 | AG90: =SUBTOTAL(9,AG86:AG88) -> 37,800.40 | AQ90: =SUBTOTAL(9,AQ86:AQ88) -> 2 | AR90: =SUBTOTAL(9,AR86:AR88) -> 3,099.80 | AS90: =SUBTOTAL(9,AS86:AS88) -> 37,197.60 | AT90: =SUBTOTAL(9,AT86:AT88) -> 9,299.40 | AU90: =SUBTOTAL(9,AU86:AU88) -> 6,199.60 | AX90: =SUBTOTAL(9,AX86:AX88) -> 2 | AY90: 283,503.00 | AZ90: 0 | BA90: 0 | BB90: 0 | BC90: 0 | BD90: 0 | BE90: 0 | BF90: 0 | BG90: 0 | BH90: 0 | BI90: 0 | BJ90: 0 | BK90: 0 | BO90: 393,503.00 | BT90: =SUBTOTAL(9,BT86:BT88) -> 2 | BU90: =SUBTOTAL(9,BU86:BU88) -> 393,503.00
A91: 1 | B91: นาง | C91: บุญเรือง | D91: พวงแฉล้ม | E91: 3770100449555 | I91: 2564-10-01 | Q91: อบต.ปากน้ำปราณ | R91: ปราณบุรี | S91: ประจวบคีรีขันธ์ | U91: ครู | AE91: =AD91*12 -> 0 | AF91: =AD91*3 -> 0 | AG91: =AD91*2 -> 0 | AH91: =AD91*3 -> 0 | AI91: =AD91*3 -> 0 | AK91: =AD91+AJ91 -> 0 | AP91: =11000-AO91-AD91 -> 11,000.00 | AS91: =AR91*12 -> 0 | AT91: =AR91*3 -> 0 | AU91: =AR91*2 -> 0 | AV91: =AR91*3 -> 0 | AW91: =AR91*3 -> 0 | AZ91: 1 | BA91: 200,000.00 | BN91: 1.00 | BO91: 200,000.00 | BT91: =BN91 -> 1 | BU91: =ROUND(BO91,2) -> 200,000.00
Q92: อบต.ปากน้ำปราณ ผลรวม | R92: ปราณบุรี | S92: ประจวบคีรีขันธ์ | AC92: =SUBTOTAL(9,AC91:AC91) -> 0 | AD92: =SUBTOTAL(9,AD91:AD91) -> 0 | AE92: =SUBTOTAL(9,AE91:AE91) -> 0 | AF92: =SUBTOTAL(9,AF91:AF91) -> 0 | AG92: =SUBTOTAL(9,AG91:AG91) -> 0 | AQ92: =SUBTOTAL(9,AQ91:AQ91) -> 0 | AR92: =SUBTOTAL(9,AR91:AR91) -> 0 | AS92: =SUBTOTAL(9,AS91:AS91) -> 0 | AT92: =SUBTOTAL(9,AT91:AT91) -> 0 | AU92: =SUBTOTAL(9,AU91:AU91) -> 0 | AX92: =SUBTOTAL(9,AX91:AX91) -> 0 | AY92: 0 | AZ92: 1 | BA92: 200,000.00 | BB92: 0 | BC92: 0 | BD92: 0 | BE92: 0 | BF92: 0 | BG92: 0 | BH92: 0 | BI92: 0 | BJ92: 0 | BK92: 0 | BO92: 200,000.00 | BT92: =SUBTOTAL(9,BT91:BT91) -> 1 | BU92: =SUBTOTAL(9,BU91:BU91) -> 200,000.00
A93: =A91+1 -> 2 | B93: นางสาว | C93: เกตุชญา | D93: สุขพวง | E93: 3770100449555 | I93: 2568-11-22 | Q93: อบต.ทับใต้ | R93: หัวหิน | S93: ประจวบคีรีขันธ์ | U93: ครู | AE93: =AD93*12 -> 0 | AF93: =AD93*3 -> 0 | AG93: =AD93*2 -> 0 | AH93: =AD93*3 -> 0 | AI93: =AD93*3 -> 0 | AK93: =AD93+AJ93 -> 0 | AP93: =11000-AO93-AD93 -> 11,000.00 | AS93: =AR93*12 -> 0 | AT93: =AR93*3 -> 0 | AU93: =AR93*2 -> 0 | AV93: =AR93*3 -> 0 | AW93: =AR93*3 -> 0 | BF93: 1 | BG93: 497,560.00 | BN93: 1.00 | BO93: 497,560.00 | BT93: =BN93 -> 1 | BU93: =ROUND(BO93,2) -> 497,560.00
Q94: อบต.ทับใต้ ผลรวม | R94: หัวหิน | S94: ประจวบคีรีขันธ์ | AC94: =SUBTOTAL(9,AC93:AC93) -> 0 | AD94: =SUBTOTAL(9,AD93:AD93) -> 0 | AE94: =SUBTOTAL(9,AE93:AE93) -> 0 | AF94: =SUBTOTAL(9,AF93:AF93) -> 0 | AG94: =SUBTOTAL(9,AG93:AG93) -> 0 | AQ94: =SUBTOTAL(9,AQ93:AQ93) -> 0 | AR94: =SUBTOTAL(9,AR93:AR93) -> 0 | AS94: =SUBTOTAL(9,AS93:AS93) -> 0 | AT94: =SUBTOTAL(9,AT93:AT93) -> 0 | AU94: =SUBTOTAL(9,AU93:AU93) -> 0 | AX94: =SUBTOTAL(9,AX93:AX93) -> 0 | AY94: 0 | AZ94: 0 | BA94: 0 | BB94: 0 | BC94: 0 | BD94: 0 | BE94: 0 | BF94: 1 | BG94: 497,560.00 | BH94: 0 | BI94: 0 | BJ94: 0 | BK94: 0 | BO94: 497,560.00 | BT94: =SUBTOTAL(9,BT93:BT93) -> 1 | BU94: =SUBTOTAL(9,BU93:BU93) -> 497,560.00
S95: ประจวบคีรีขันธ์ ผลรวม | AC95: =SUBTOTAL(9,AC91:AC93) -> 0 | AD95: =SUBTOTAL(9,AD91:AD93) -> 0 | AE95: =SUBTOTAL(9,AE91:AE93) -> 0 | AF95: =SUBTOTAL(9,AF91:AF93) -> 0 | AG95: =SUBTOTAL(9,AG91:AG93) -> 0 | AQ95: =SUBTOTAL(9,AQ91:AQ93) -> 0 | AR95: =SUBTOTAL(9,AR91:AR93) -> 0 | AS95: =SUBTOTAL(9,AS91:AS93) -> 0 | AT95: =SUBTOTAL(9,AT91:AT93) -> 0 | AU95: =SUBTOTAL(9,AU91:AU93) -> 0 | AX95: =SUBTOTAL(9,AX91:AX93) -> 0 | AY95: 0 | AZ95: 1 | BA95: 200,000.00 | BB95: 0 | BC95: 0 | BD95: 0 | BE95: 0 | BF95: 1 | BG95: 497,560.00 | BH95: 0 | BI95: 0 | BJ95: 0 | BK95: 0 | BO95: 697,560.00 | BT95: =SUBTOTAL(9,BT91:BT93) -> 2 | BU95: =SUBTOTAL(9,BU91:BU93) -> 697,560.00
A96: 1 | B96: นาง | C96: วัลภา | D96: วาสแดง | E96: 3850100188564 | I96: 2568-10-01 | Q96: อบต.บางโกระ | R96: โคกโพธิ์ | S96: ปัตตานี | U96: ครู | AD96: 0 | AE96: =AD96*12 -> 0 | AF96: =AD96*3 -> 0 | AG96: =AD96*2 -> 0 | AH96: =AD96*3 -> 0 | AI96: =AD96*3 -> 0 | AK96: 0 | AO96: 0 | AP96: 0 | AR96: =AJ96+AL96+AO96+AP96 -> 0 | AS96: =AR96*12 -> 0 | AT96: =AR96*3 -> 0 | AU96: =AR96*2 -> 0 | AV96: =AR96*3 -> 0 | AW96: =AR96*3 -> 0 | AX96: 1 | AY96: =158760 -> 158,760.00 | BN96: 1.00 | BO96: 158,760.00 | BT96: =BN96 -> 1 | BU96: =ROUND(BO96,2) -> 158,760.00
Q97: อบต.บางโกระ ผลรวม | R97: โคกโพธิ์ | S97: ปัตตานี | AC97: =SUBTOTAL(9,AC96:AC96) -> 0 | AD97: =SUBTOTAL(9,AD96:AD96) -> 0 | AE97: =SUBTOTAL(9,AE96:AE96) -> 0 | AF97: =SUBTOTAL(9,AF96:AF96) -> 0 | AG97: =SUBTOTAL(9,AG96:AG96) -> 0 | AQ97: =SUBTOTAL(9,AQ96:AQ96) -> 0 | AR97: =SUBTOTAL(9,AR96:AR96) -> 0 | AS97: =SUBTOTAL(9,AS96:AS96) -> 0 | AT97: =SUBTOTAL(9,AT96:AT96) -> 0 | AU97: =SUBTOTAL(9,AU96:AU96) -> 0 | AX97: =SUBTOTAL(9,AX96:AX96) -> 1 | AY97: 158,760.00 | AZ97: 0 | BA97: 0 | BB97: 0 | BC97: 0 | BD97: 0 | BE97: 0 | BF97: 0 | BG97: 0 | BH97: 0 | BI97: 0 | BJ97: 0 | BK97: 0 | BO97: 158,760.00 | BT97: =SUBTOTAL(9,BT96:BT96) -> 1 | BU97: =SUBTOTAL(9,BU96:BU96) -> 158,760.00
A98: =A96+1 -> 2 | B98: นาง | C98: นิตยา | D98: เมาะแล | E98: 3940600100011 | I98: 2568-10-01 | Q98: อบต.พิเทน | R98: ทุ่งยางแดง | S98: ปัตตานี | U98: ครู | AC98: 1 | AD98: 10,169.60 | AE98: =AD98*12 -> 122,035.20 | AF98: =AD98*3 -> 30,508.80 | AG98: =AD98*2 -> 20,339.20 | AH98: =AD98*3 -> 30,508.80 | AI98: =AD98*3 -> 30,508.80 | AK98: 0 | AO98: =10000-AD98 -> -169.60 | AP98: =11000-AO98-AD98 -> 1,000.00 | AQ98: 1 | AR98: =AJ98+AL98+AO98+AP98 -> 830.40 | AS98: =AR98*12 -> 9,964.80 | AT98: =AR98*3 -> 2,491.20 | AU98: =AR98*2 -> 1,660.80 | AV98: =AR98*3 -> 2,491.20 | AW98: =AR98*3 -> 2,491.20 | AX98: 1 | AY98: 152,544.00 | BN98: 1.00 | BO98: 207,544.00 | BT98: =BN98 -> 1 | BU98: =ROUND(BO98,2) -> 207,544.00
Q99: อบต.พิเทน ผลรวม | R99: ทุ่งยางแดง | S99: ปัตตานี | AC99: =SUBTOTAL(9,AC98:AC98) -> 1 | AD99: =SUBTOTAL(9,AD98:AD98) -> 10,169.60 | AE99: =SUBTOTAL(9,AE98:AE98) -> 122,035.20 | AF99: =SUBTOTAL(9,AF98:AF98) -> 30,508.80 | AG99: =SUBTOTAL(9,AG98:AG98) -> 20,339.20 | AQ99: =SUBTOTAL(9,AQ98:AQ98) -> 1 | AR99: =SUBTOTAL(9,AR98:AR98) -> 830.40 | AS99: =SUBTOTAL(9,AS98:AS98) -> 9,964.80 | AT99: =SUBTOTAL(9,AT98:AT98) -> 2,491.20 | AU99: =SUBTOTAL(9,AU98:AU98) -> 1,660.80 | AX99: =SUBTOTAL(9,AX98:AX98) -> 1 | AY99: 152,544.00 | AZ99: 0 | BA99: 0 | BB99: 0 | BC99: 0 | BD99: 0 | BE99: 0 | BF99: 0 | BG99: 0 | BH99: 0 | BI99: 0 | BJ99: 0 | BK99: 0 | BO99: 207,544.00 | BT99: =SUBTOTAL(9,BT98:BT98) -> 1 | BU99: =SUBTOTAL(9,BU98:BU98) -> 207,544.00
S100: ปัตตานี ผลรวม | AC100: =SUBTOTAL(9,AC96:AC98) -> 1 | AD100: =SUBTOTAL(9,AD96:AD98) -> 10,169.60 | AE100: =SUBTOTAL(9,AE96:AE98) -> 122,035.20 | AF100: =SUBTOTAL(9,AF96:AF98) -> 30,508.80 | AG100: =SUBTOTAL(9,AG96:AG98) -> 20,339.20 | AQ100: =SUBTOTAL(9,AQ96:AQ98) -> 1 | AR100: =SUBTOTAL(9,AR96:AR98) -> 830.40 | AS100: =SUBTOTAL(9,AS96:AS98) -> 9,964.80 | AT100: =SUBTOTAL(9,AT96:AT98) -> 2,491.20 | AU100: =SUBTOTAL(9,AU96:AU98) -> 1,660.80 | AX100: =SUBTOTAL(9,AX96:AX98) -> 2 | AY100: 311,304.00 | AZ100: 0 | BA100: 0 | BB100: 0 | BC100: 0 | BD100: 0 | BE100: 0 | BF100: 0 | BG100: 0 | BH100: 0 | BI100: 0 | BJ100: 0 | BK100: 0 | BO100: 366,304.00 | BT100: =SUBTOTAL(9,BT96:BT98) -> 2 | BU100: =SUBTOTAL(9,BU96:BU98) -> 366,304.00
A101: 1 | B101: นาง | C101: พัชรา | D101: อุบลรัตน์ | Q101: อบต.กระแชง | R101: บางไทร | S101: พระนครศรีอยุธยา | W101: 2568-06-18 | AE101: =AD101*12 -> 0 | AF101: =AD101*3 -> 0 | AG101: =AD101*2 -> 0 | AH101: =AD101*3 -> 0 | AI101: =AD101*3 -> 0 | AK101: =AD101+AJ101 -> 0 | AO101: 0 | AQ101: =+AC101 -> 0 | AR101: =AJ101+AL101+AO101+AP101 -> 0 | AS101: =AR101*12 -> 0 | AT101: =AR101*3 -> 0 | AU101: =AR101*2 -> 0 | AV101: =AR101*3 -> 0 | AW101: =AR101*3 -> 0 | BJ101: 1 | BK101: 246,039.00 | BN101: 1.00 | BO101: 246,039.00 | BT101: =BN101 -> 1 | BU101: =ROUND(BO101,2) -> 246,039.00
Q102: อบต.กระแชง ผลรวม | R102: บางไทร | S102: พระนครศรีอยุธยา | AC102: =SUBTOTAL(9,AC101:AC101) -> 0 | AD102: =SUBTOTAL(9,AD101:AD101) -> 0 | AE102: =SUBTOTAL(9,AE101:AE101) -> 0 | AF102: =SUBTOTAL(9,AF101:AF101) -> 0 | AG102: =SUBTOTAL(9,AG101:AG101) -> 0 | AQ102: =SUBTOTAL(9,AQ101:AQ101) -> 0 | AR102: =SUBTOTAL(9,AR101:AR101) -> 0 | AS102: =SUBTOTAL(9,AS101:AS101) -> 0 | AT102: =SUBTOTAL(9,AT101:AT101) -> 0 | AU102: =SUBTOTAL(9,AU101:AU101) -> 0 | AX102: =SUBTOTAL(9,AX101:AX101) -> 0 | AY102: 0 | AZ102: 0 | BA102: 0 | BB102: 0 | BC102: 0 | BD102: 0 | BE102: 0 | BF102: 0 | BG102: 0 | BH102: 0 | BI102: 0 | BJ102: 1 | BK102: 246,039.00 | BO102: 246,039.00 | BT102: =SUBTOTAL(9,BT101:BT101) -> 1 | BU102: =SUBTOTAL(9,BU101:BU101) -> 246,039.00
S103: พระนครศรีอยุธยา ผลรวม | AC103: =SUBTOTAL(9,AC101:AC101) -> 0 | AD103: =SUBTOTAL(9,AD101:AD101) -> 0 | AE103: =SUBTOTAL(9,AE101:AE101) -> 0 | AF103: =SUBTOTAL(9,AF101:AF101) -> 0 | AG103: =SUBTOTAL(9,AG101:AG101) -> 0 | AQ103: =SUBTOTAL(9,AQ101:AQ101) -> 0 | AR103: =SUBTOTAL(9,AR101:AR101) -> 0 | AS103: =SUBTOTAL(9,AS101:AS101) -> 0 | AT103: =SUBTOTAL(9,AT101:AT101) -> 0 | AU103: =SUBTOTAL(9,AU101:AU101) -> 0 | AX103: =SUBTOTAL(9,AX101:AX101) -> 0 | AY103: 0 | AZ103: 0 | BA103: 0 | BB103: 0 | BC103: 0 | BD103: 0 | BE103: 0 | BF103: 0 | BG103: 0 | BH103: 0 | BI103: 0 | BJ103: 1 | BK103: 246,039.00 | BO103: 246,039.00 | BT103: =SUBTOTAL(9,BT101:BT101) -> 1 | BU103: =SUBTOTAL(9,BU101:BU101) -> 246,039.00
A104: 1 | B104: นาง | C104: ประภา | D104: ทองศรีจันทร์ | I104: 2568-10-01 | Q104: อบต.โคกทราย | R104: ป่าบอน | S104: พัทลุง | AC104: 1 | AD104: 6,716.60 | AE104: =AD104*12 -> 80,599.20 | AF104: =AD104*3 -> 20,149.80 | AG104: =AD104*2 -> 13,433.20 | AH104: =AD104*3 -> 20,149.80 | AI104: =AD104*3 -> 20,149.80 | AK104: =AD104+AJ104 -> 6,716.60 | AO104: 0 | AP104: =11000-AO104-AD104 -> 4,283.40 | AQ104: =+AC104 -> 1 | AR104: =AJ104+AL104+AO104+AP104 -> 4,283.40 | AS104: =AR104*12 -> 51,400.80 | AT104: =AR104*3 -> 12,850.20 | AU104: =AR104*2 -> 8,566.80 | AV104: =AR104*3 -> 12,850.20 | AW104: =AR104*3 -> 12,850.20 | AX104: 1 | AY104: 100,749.00 | BN104: 1.00 | BO104: 155,749.00 | BT104: =BN104 -> 1 | BU104: =ROUND(BO104,2) -> 155,749.00
Q105: อบต.โคกทราย ผลรวม | R105: ป่าบอน | S105: พัทลุง | AC105: =SUBTOTAL(9,AC104:AC104) -> 1 | AD105: =SUBTOTAL(9,AD104:AD104) -> 6,716.60 | AE105: =SUBTOTAL(9,AE104:AE104) -> 80,599.20 | AF105: =SUBTOTAL(9,AF104:AF104) -> 20,149.80 | AG105: =SUBTOTAL(9,AG104:AG104) -> 13,433.20 | AQ105: =SUBTOTAL(9,AQ104:AQ104) -> 1 | AR105: =SUBTOTAL(9,AR104:AR104) -> 4,283.40 | AS105: =SUBTOTAL(9,AS104:AS104) -> 51,400.80 | AT105: =SUBTOTAL(9,AT104:AT104) -> 12,850.20 | AU105: =SUBTOTAL(9,AU104:AU104) -> 8,566.80 | AX105: =SUBTOTAL(9,AX104:AX104) -> 1 | AY105: 100,749.00 | AZ105: 0 | BA105: 0 | BB105: 0 | BC105: 0 | BD105: 0 | BE105: 0 | BF105: 0 | BG105: 0 | BH105: 0 | BI105: 0 | BJ105: 0 | BK105: 0 | BO105: 155,749.00 | BT105: =SUBTOTAL(9,BT104:BT104) -> 1 | BU105: =SUBTOTAL(9,BU104:BU104) -> 155,749.00
S106: พัทลุง ผลรวม | AC106: =SUBTOTAL(9,AC104:AC104) -> 1 | AD106: =SUBTOTAL(9,AD104:AD104) -> 6,716.60 | AE106: =SUBTOTAL(9,AE104:AE104) -> 80,599.20 | AF106: =SUBTOTAL(9,AF104:AF104) -> 20,149.80 | AG106: =SUBTOTAL(9,AG104:AG104) -> 13,433.20 | AQ106: =SUBTOTAL(9,AQ104:AQ104) -> 1 | AR106: =SUBTOTAL(9,AR104:AR104) -> 4,283.40 | AS106: =SUBTOTAL(9,AS104:AS104) -> 51,400.80 | AT106: =SUBTOTAL(9,AT104:AT104) -> 12,850.20 | AU106: =SUBTOTAL(9,AU104:AU104) -> 8,566.80 | AX106: =SUBTOTAL(9,AX104:AX104) -> 1 | AY106: 100,749.00 | AZ106: 0 | BA106: 0 | BB106: 0 | BC106: 0 | BD106: 0 | BE106: 0 | BF106: 0 | BG106: 0 | BH106: 0 | BI106: 0 | BJ106: 0 | BK106: 0 | BO106: 155,749.00 | BT106: =SUBTOTAL(9,BT104:BT104) -> 1 | BU106: =SUBTOTAL(9,BU104:BU104) -> 155,749.00
A107: 1 | B107: นาง | C107: ธนัชพร | D107: ขันมณี | Q107: อบต.เวียงทอง | R107: สูงเม่น | S107: แพร่ | W107: 2568-12-06 | AD107: 0 | AE107: =AD107*12 -> 0 | AF107: =AD107*3 -> 0 | AG107: =AD107*2 -> 0 | AH107: =AD107*3 -> 0 | AI107: =AD107*3 -> 0 | AK107: =AD107+AJ107 -> 0 | AP107: 0 | AR107: =AJ107+AL107+AO107+AP107 -> 0 | AS107: =AR107*12 -> 0 | AT107: =AR107*3 -> 0 | AU107: =AR107*2 -> 0 | AV107: =AR107*3 -> 0 | AW107: =AR107*3 -> 0 | AY107: 0 | BJ107: 1 | BK107: 278,370.00 | BN107: 1.00 | BO107: 278,370.00 | BT107: =BN107 -> 1 | BU107: =ROUND(BO107,2) -> 278,370.00
Q108: อบต.เวียงทอง ผลรวม | R108: สูงเม่น | S108: แพร่ | AC108: =SUBTOTAL(9,AC107:AC107) -> 0 | AD108: =SUBTOTAL(9,AD107:AD107) -> 0 | AE108: =SUBTOTAL(9,AE107:AE107) -> 0 | AF108: =SUBTOTAL(9,AF107:AF107) -> 0 | AG108: =SUBTOTAL(9,AG107:AG107) -> 0 | AQ108: =SUBTOTAL(9,AQ107:AQ107) -> 0 | AR108: =SUBTOTAL(9,AR107:AR107) -> 0 | AS108: =SUBTOTAL(9,AS107:AS107) -> 0 | AT108: =SUBTOTAL(9,AT107:AT107) -> 0 | AU108: =SUBTOTAL(9,AU107:AU107) -> 0 | AX108: =SUBTOTAL(9,AX107:AX107) -> 0 | AY108: 0 | AZ108: 0 | BA108: 0 | BB108: 0 | BC108: 0 | BD108: 0 | BE108: 0 | BF108: 0 | BG108: 0 | BH108: 0 | BI108: 0 | BJ108: 1 | BK108: 278,370.00 | BO108: 278,370.00 | BT108: =SUBTOTAL(9,BT107:BT107) -> 1 | BU108: =SUBTOTAL(9,BU107:BU107) -> 278,370.00
S109: แพร่ ผลรวม | AC109: =SUBTOTAL(9,AC107:AC107) -> 0 | AD109: =SUBTOTAL(9,AD107:AD107) -> 0 | AE109: =SUBTOTAL(9,AE107:AE107) -> 0 | AF109: =SUBTOTAL(9,AF107:AF107) -> 0 | AG109: =SUBTOTAL(9,AG107:AG107) -> 0 | AQ109: =SUBTOTAL(9,AQ107:AQ107) -> 0 | AR109: =SUBTOTAL(9,AR107:AR107) -> 0 | AS109: =SUBTOTAL(9,AS107:AS107) -> 0 | AT109: =SUBTOTAL(9,AT107:AT107) -> 0 | AU109: =SUBTOTAL(9,AU107:AU107) -> 0 | AX109: =SUBTOTAL(9,AX107:AX107) -> 0 | AY109: 0 | AZ109: 0 | BA109: 0 | BB109: 0 | BC109: 0 | BD109: 0 | BE109: 0 | BF109: 0 | BG109: 0 | BH109: 0 | BI109: 0 | BJ109: 1 | BK109: 278,370.00 | BO109: 278,370.00 | BT109: =SUBTOTAL(9,BT107:BT107) -> 1 | BU109: =SUBTOTAL(9,BU107:BU107) -> 278,370.00
A110: 1 | B110: นางสาว | C110: บรรจง | D110: งามเฉลียว | I110: 2568-10-01 | Q110: อบต.แม่น้ำคู้ | R110: ปลวกแดง | S110: ระยอง | AC110: 1 | AD110: 9,760.80 | AE110: =AD110*12 -> 117,129.60 | AF110: =AD110*3 -> 29,282.40 | AG110: =AD110*2 -> 19,521.60 | AH110: =AD110*3 -> 29,282.40 | AI110: =AD110*3 -> 29,282.40 | AK110: =AD110+AJ110 -> 9,760.80 | AP110: =11000-AO110-AD110 -> 1,239.20 | AQ110: 1 | AR110: =AJ110+AL110+AO110+AP110 -> 1,239.20 | AS110: =AR110*12 -> 14,870.40 | AT110: =AR110*3 -> 3,717.60 | AU110: =AR110*2 -> 2,478.40 | AV110: =AR110*3 -> 3,717.60 | AW110: =AR110*3 -> 3,717.60 | AX110: 1 | AY110: 146,412.00 | BN110: 1.00 | BO110: 201,412.00 | BT110: =BN110 -> 1 | BU110: =ROUND(BO110,2) -> 201,412.00
Q111: อบต.แม่น้ำคู้ ผลรวม | R111: ปลวกแดง | S111: ระยอง | AC111: =SUBTOTAL(9,AC110:AC110) -> 1 | AD111: =SUBTOTAL(9,AD110:AD110) -> 9,760.80 | AE111: =SUBTOTAL(9,AE110:AE110) -> 117,129.60 | AF111: =SUBTOTAL(9,AF110:AF110) -> 29,282.40 | AG111: =SUBTOTAL(9,AG110:AG110) -> 19,521.60 | AQ111: =SUBTOTAL(9,AQ110:AQ110) -> 1 | AR111: =SUBTOTAL(9,AR110:AR110) -> 1,239.20 | AS111: =SUBTOTAL(9,AS110:AS110) -> 14,870.40 | AT111: =SUBTOTAL(9,AT110:AT110) -> 3,717.60 | AU111: =SUBTOTAL(9,AU110:AU110) -> 2,478.40 | AX111: =SUBTOTAL(9,AX110:AX110) -> 1 | AY111: 146,412.00 | AZ111: 0 | BA111: 0 | BB111: 0 | BC111: 0 | BD111: 0 | BE111: 0 | BF111: 0 | BG111: 0 | BH111: 0 | BI111: 0 | BJ111: 0 | BK111: 0 | BO111: 201,412.00 | BT111: =SUBTOTAL(9,BT110:BT110) -> 1 | BU111: =SUBTOTAL(9,BU110:BU110) -> 201,412.00
S112: ระยอง ผลรวม | AC112: =SUBTOTAL(9,AC110:AC110) -> 1 | AD112: =SUBTOTAL(9,AD110:AD110) -> 9,760.80 | AE112: =SUBTOTAL(9,AE110:AE110) -> 117,129.60 | AF112: =SUBTOTAL(9,AF110:AF110) -> 29,282.40 | AG112: =SUBTOTAL(9,AG110:AG110) -> 19,521.60 | AQ112: =SUBTOTAL(9,AQ110:AQ110) -> 1 | AR112: =SUBTOTAL(9,AR110:AR110) -> 1,239.20 | AS112: =SUBTOTAL(9,AS110:AS110) -> 14,870.40 | AT112: =SUBTOTAL(9,AT110:AT110) -> 3,717.60 | AU112: =SUBTOTAL(9,AU110:AU110) -> 2,478.40 | AX112: =SUBTOTAL(9,AX110:AX110) -> 1 | AY112: 146,412.00 | AZ112: 0 | BA112: 0 | BB112: 0 | BC112: 0 | BD112: 0 | BE112: 0 | BF112: 0 | BG112: 0 | BH112: 0 | BI112: 0 | BJ112: 0 | BK112: 0 | BO112: 201,412.00 | BT112: =SUBTOTAL(9,BT110:BT110) -> 1 | BU112: =SUBTOTAL(9,BU110:BU110) -> 201,412.00
A113: 1 | B113: นาง | C113: ไพรวรรณ | D113: อินทวงศ์ | I113: 2568-10-01 | Q113: อบต.สบป้าด | R113: แม่เมาะ | S113: ลำปาง | U113: ครู | AC113: 1 | AD113: 9,942.80 | AE113: =AD113*12 -> 119,313.60 | AF113: =AD113*3 -> 29,828.40 | AG113: =AD113*2 -> 19,885.60 | AH113: =AD113*3 -> 29,828.40 | AI113: =AD113*3 -> 29,828.40 | AK113: =AD113+AJ113 -> 9,942.80 | AP113: =11000-AO113-AD113 -> 1,057.20 | AQ113: 1 | AR113: =AJ113+AL113+AN113+AO113+AP113 -> 1,057.20 | AS113: =AR113*12 -> 12,686.40 | AT113: =AR113*3 -> 3,171.60 | AU113: =AR113*2 -> 2,114.40 | AV113: =AR113*3 -> 3,171.60 | AW113: =AR113*3 -> 3,171.60 | AX113: 1 | AY113: =SUM(AD113*15) -> 149,142.00 | BN113: 1.00 | BO113: 204,142.00 | BT113: =BN113 -> 1 | BU113: =ROUND(BO113,2) -> 204,142.00
Q114: อบต.สบป้าด ผลรวม | R114: แม่เมาะ | S114: ลำปาง | AC114: =SUBTOTAL(9,AC113:AC113) -> 1 | AD114: =SUBTOTAL(9,AD113:AD113) -> 9,942.80 | AE114: =SUBTOTAL(9,AE113:AE113) -> 119,313.60 | AF114: =SUBTOTAL(9,AF113:AF113) -> 29,828.40 | AG114: =SUBTOTAL(9,AG113:AG113) -> 19,885.60 | AQ114: =SUBTOTAL(9,AQ113:AQ113) -> 1 | AR114: =SUBTOTAL(9,AR113:AR113) -> 1,057.20 | AS114: =SUBTOTAL(9,AS113:AS113) -> 12,686.40 | AT114: =SUBTOTAL(9,AT113:AT113) -> 3,171.60 | AU114: =SUBTOTAL(9,AU113:AU113) -> 2,114.40 | AX114: =SUBTOTAL(9,AX113:AX113) -> 1 | AY114: 149,142.00 | AZ114: 0 | BA114: 0 | BB114: 0 | BC114: 0 | BD114: 0 | BE114: 0 | BF114: 0 | BG114: 0 | BH114: 0 | BI114: 0 | BJ114: 0 | BK114: 0 | BO114: 204,142.00 | BT114: =SUBTOTAL(9,BT113:BT113) -> 1 | BU114: =SUBTOTAL(9,BU113:BU113) -> 204,142.00
A115: =A113+1 -> 2 | B115: นาง | C115: แสงจันทร์ | D115: ประสมนาม | I115: 2569-01-01 | Q115: อบต.นายาง | R115: สบปราบ | S115: ลำปาง | U115: ครู | AC115: 1 | AD115: 8,660.60 | AE115: =AD115*10 -> 86,606.00 | AG115: =AD115*2 -> 17,321.20 | AH115: =AD115*3 -> 25,981.80 | AI115: =AD115*3 -> 25,981.80 | AK115: =AD115+AJ115 -> 8,660.60 | AP115: =11000-AO115-AD115 -> 2,339.40 | AQ115: 1 | AR115: =AJ115+AL115+AN115+AO115+AP115 -> 2,339.40 | AS115: =AR115*10 -> 23,394.00 | AU115: =AR115*2 -> 4,678.80 | AV115: =AR115*3 -> 7,018.20 | AW115: =AR115*3 -> 7,018.20 | AX115: 1 | AY115: =SUM(AD115*15) -> 129,909.00 | BN115: 1.00 | BO115: 151,909.00 | BT115: =BN115 -> 1 | BU115: =ROUND(BO115,2) -> 151,909.00
Q116: อบต.นายาง ผลรวม | R116: สบปราบ | S116: ลำปาง | AC116: =SUBTOTAL(9,AC115:AC115) -> 1 | AD116: =SUBTOTAL(9,AD115:AD115) -> 8,660.60 | AE116: =SUBTOTAL(9,AE115:AE115) -> 86,606.00 | AF116: =SUBTOTAL(9,AF115:AF115) -> 0 | AG116: =SUBTOTAL(9,AG115:AG115) -> 17,321.20 | AQ116: =SUBTOTAL(9,AQ115:AQ115) -> 1 | AR116: =SUBTOTAL(9,AR115:AR115) -> 2,339.40 | AS116: =SUBTOTAL(9,AS115:AS115) -> 23,394.00 | AT116: =SUBTOTAL(9,AT115:AT115) -> 0 | AU116: =SUBTOTAL(9,AU115:AU115) -> 4,678.80 | AX116: =SUBTOTAL(9,AX115:AX115) -> 1 | AY116: 129,909.00 | AZ116: 0 | BA116: 0 | BB116: 0 | BC116: 0 | BD116: 0 | BE116: 0 | BF116: 0 | BG116: 0 | BH116: 0 | BI116: 0 | BJ116: 0 | BK116: 0 | BO116: 151,909.00 | BT116: =SUBTOTAL(9,BT115:BT115) -> 1 | BU116: =SUBTOTAL(9,BU115:BU115) -> 151,909.00
S117: ลำปาง ผลรวม | AC117: =SUBTOTAL(9,AC113:AC115) -> 2 | AD117: =SUBTOTAL(9,AD113:AD115) -> 18,603.40 | AE117: =SUBTOTAL(9,AE113:AE115) -> 205,919.60 | AF117: =SUBTOTAL(9,AF113:AF115) -> 29,828.40 | AG117: =SUBTOTAL(9,AG113:AG115) -> 37,206.80 | AQ117: =SUBTOTAL(9,AQ113:AQ115) -> 2 | AR117: =SUBTOTAL(9,AR113:AR115) -> 3,396.60 | AS117: =SUBTOTAL(9,AS113:AS115) -> 36,080.40 | AT117: =SUBTOTAL(9,AT113:AT115) -> 3,171.60 | AU117: =SUBTOTAL(9,AU113:AU115) -> 6,793.20 | AX117: =SUBTOTAL(9,AX113:AX115) -> 2 | AY117: 279,051.00 | AZ117: 0 | BA117: 0 | BB117: 0 | BC117: 0 | BD117: 0 | BE117: 0 | BF117: 0 | BG117: 0 | BH117: 0 | BI117: 0 | BJ117: 0 | BK117: 0 | BO117: 356,051.00 | BT117: =SUBTOTAL(9,BT113:BT115) -> 2 | BU117: =SUBTOTAL(9,BU113:BU115) -> 356,051.00
A118: 1 | B118: นาง | C118: บัวคำ | D118: จิตรสุข | I118: 2568-10-01 | Q118: อบต.บ้านปวง | R118: ทุ่งหัวช้าง | S118: ลำพูน | U118: ครู | AE118: =AD118*12 -> 0 | AF118: =AD118*3 -> 0 | AG118: =AD118*2 -> 0 | AS118: =AR118*12 -> 0 | AT118: =AR118*3 -> 0 | AU118: =AR118*2 -> 0 | AV118: =AR118*3 -> 0 | AW118: =AR118*3 -> 0 | AX118: 1 | AY118: 4,134.00 | BN118: 1.00 | BO118: 4,134.00 | BT118: =BN118 -> 1 | BU118: =ROUND(BO118,2) -> 4,134.00
Q119: อบต.บ้านปวง ผลรวม | R119: ทุ่งหัวช้าง | S119: ลำพูน | AC119: =SUBTOTAL(9,AC118:AC118) -> 0 | AD119: =SUBTOTAL(9,AD118:AD118) -> 0 | AE119: =SUBTOTAL(9,AE118:AE118) -> 0 | AF119: =SUBTOTAL(9,AF118:AF118) -> 0 | AG119: =SUBTOTAL(9,AG118:AG118) -> 0 | AQ119: =SUBTOTAL(9,AQ118:AQ118) -> 0 | AR119: =SUBTOTAL(9,AR118:AR118) -> 0 | AS119: =SUBTOTAL(9,AS118:AS118) -> 0 | AT119: =SUBTOTAL(9,AT118:AT118) -> 0 | AU119: =SUBTOTAL(9,AU118:AU118) -> 0 | AX119: =SUBTOTAL(9,AX118:AX118) -> 1 | AY119: 4,134.00 | AZ119: 0 | BA119: 0 | BB119: 0 | BC119: 0 | BD119: 0 | BE119: 0 | BF119: 0 | BG119: 0 | BH119: 0 | BI119: 0 | BJ119: 0 | BK119: 0 | BO119: 4,134.00 | BT119: =SUBTOTAL(9,BT118:BT118) -> 1 | BU119: =SUBTOTAL(9,BU118:BU118) -> 4,134.00
A120: =A118+1 -> 2 | B120: นาง | C120: เทียมใจ | D120: วงศ์ฝั้น | I120: 2568-01-01 | Q120: อบต.เวียงกานต์ | R120: บ้านโฮ่ง | S120: ลำพูน | U120: ครู | AE120: =AD120*12 -> 0 | AF120: =AD120*3 -> 0 | AG120: =AD120*2 -> 0 | AS120: =AR120*12 -> 0 | AT120: =AR120*3 -> 0 | AU120: =AR120*2 -> 0 | AV120: =AR120*3 -> 0 | AW120: =AR120*3 -> 0 | AX120: 1 | AY120: 4,017.00 | BN120: 1.00 | BO120: 4,017.00 | BT120: =BN120 -> 1 | BU120: =ROUND(BO120,2) -> 4,017.00
Q121: อบต.เวียงกานต์ ผลรวม | R121: บ้านโฮ่ง | S121: ลำพูน | AC121: =SUBTOTAL(9,AC120:AC120) -> 0 | AD121: =SUBTOTAL(9,AD120:AD120) -> 0 | AE121: =SUBTOTAL(9,AE120:AE120) -> 0 | AF121: =SUBTOTAL(9,AF120:AF120) -> 0 | AG121: =SUBTOTAL(9,AG120:AG120) -> 0 | AQ121: =SUBTOTAL(9,AQ120:AQ120) -> 0 | AR121: =SUBTOTAL(9,AR120:AR120) -> 0 | AS121: =SUBTOTAL(9,AS120:AS120) -> 0 | AT121: =SUBTOTAL(9,AT120:AT120) -> 0 | AU121: =SUBTOTAL(9,AU120:AU120) -> 0 | AX121: =SUBTOTAL(9,AX120:AX120) -> 1 | AY121: 4,017.00 | AZ121: 0 | BA121: 0 | BB121: 0 | BC121: 0 | BD121: 0 | BE121: 0 | BF121: 0 | BG121: 0 | BH121: 0 | BI121: 0 | BJ121: 0 | BK121: 0 | BO121: 4,017.00 | BT121: =SUBTOTAL(9,BT120:BT120) -> 1 | BU121: =SUBTOTAL(9,BU120:BU120) -> 4,017.00
A122: =A49+1 -> 4 | B122: นาง | C122: ทัศนีย์ | D122: ชัยชาติตระกูล | I122: 2568-10-01 | Q122: อบต.นาทราย | R122: ลี้ | S122: ลำพูน | U122: ครู | AC122: 1 | AD122: 6,910.20 | AE122: =AD122*12 -> 82,922.40 | AF122: =AD122*3 -> 20,730.60 | AG122: =AD122*2 -> 13,820.40 | AH122: =AD122*3 -> 20,730.60 | AI122: =AD122*3 -> 20,730.60 | AK122: =AD122+AJ122 -> 6,910.20 | AP122: =11000-AO122-AD122 -> 4,089.80 | AQ122: 1 | AR122: =AJ122+AL122+AN122+AO122+AP122 -> 4,089.80 | AS122: =AR122*12 -> 49,077.60 | AT122: =AR122*3 -> 12,269.40 | AU122: =AR122*2 -> 8,179.60 | AV122: =AR122*3 -> 12,269.40 | AW122: =AR122*3 -> 12,269.40 | AX122: 1 | AY122: =SUM(AD122*15) -> 103,653.00 | BN122: 1.00 | BO122: 158,653.00 | BT122: =BN122 -> 1 | BU122: =ROUND(BO122,2) -> 158,653.00
Q123: อบต.นาทราย ผลรวม | R123: ลี้ | S123: ลำพูน | AC123: =SUBTOTAL(9,AC122:AC122) -> 1 | AD123: =SUBTOTAL(9,AD122:AD122) -> 6,910.20 | AE123: =SUBTOTAL(9,AE122:AE122) -> 82,922.40 | AF123: =SUBTOTAL(9,AF122:AF122) -> 20,730.60 | AG123: =SUBTOTAL(9,AG122:AG122) -> 13,820.40 | AQ123: =SUBTOTAL(9,AQ122:AQ122) -> 1 | AR123: =SUBTOTAL(9,AR122:AR122) -> 4,089.80 | AS123: =SUBTOTAL(9,AS122:AS122) -> 49,077.60 | AT123: =SUBTOTAL(9,AT122:AT122) -> 12,269.40 | AU123: =SUBTOTAL(9,AU122:AU122) -> 8,179.60 | AX123: =SUBTOTAL(9,AX122:AX122) -> 1 | AY123: 103,653.00 | AZ123: 0 | BA123: 0 | BB123: 0 | BC123: 0 | BD123: 0 | BE123: 0 | BF123: 0 | BG123: 0 | BH123: 0 | BI123: 0 | BJ123: 0 | BK123: 0 | BO123: 158,653.00 | BT123: =SUBTOTAL(9,BT122:BT122) -> 1 | BU123: =SUBTOTAL(9,BU122:BU122) -> 158,653.00
S124: ลำพูน ผลรวม | AC124: =SUBTOTAL(9,AC118:AC122) -> 1 | AD124: =SUBTOTAL(9,AD118:AD122) -> 6,910.20 | AE124: =SUBTOTAL(9,AE118:AE122) -> 82,922.40 | AF124: =SUBTOTAL(9,AF118:AF122) -> 20,730.60 | AG124: =SUBTOTAL(9,AG118:AG122) -> 13,820.40 | AQ124: =SUBTOTAL(9,AQ118:AQ122) -> 1 | AR124: =SUBTOTAL(9,AR118:AR122) -> 4,089.80 | AS124: =SUBTOTAL(9,AS118:AS122) -> 49,077.60 | AT124: =SUBTOTAL(9,AT118:AT122) -> 12,269.40 | AU124: =SUBTOTAL(9,AU118:AU122) -> 8,179.60 | AX124: =SUBTOTAL(9,AX118:AX122) -> 3 | AY124: 111,804.00 | AZ124: 0 | BA124: 0 | BB124: 0 | BC124: 0 | BD124: 0 | BE124: 0 | BF124: 0 | BG124: 0 | BH124: 0 | BI124: 0 | BJ124: 0 | BK124: 0 | BO124: 166,804.00 | BT124: =SUBTOTAL(9,BT118:BT122) -> 3 | BU124: =SUBTOTAL(9,BU118:BU122) -> 166,804.00
A125: 1 | B125: นาง | C125: หนูพิศ | D125: แย้มฎีกา | I125: 2568-10-01 | Q125: อบต.ศรีฐาน | R125: ภูกระดึง | S125: เลย | U125: ครู | AC125: 1 | AD125: 9,489.20 | AE125: =AD125*12 -> 113,870.40 | AF125: =AD125*3 -> 28,467.60 | AG125: =AD125*2 -> 18,978.40 | AH125: =AD125*3 -> 28,467.60 | AI125: =AD125*3 -> 28,467.60 | AK125: =AD125+AJ125 -> 9,489.20 | AP125: =11000-AO125-AD125 -> 1,510.80 | AQ125: 1 | AR125: =AJ125+AL125+AN125+AO125+AP125 -> 1,510.80 | AS125: =AR125*12 -> 18,129.60 | AT125: =AR125*3 -> 4,532.40 | AU125: =AR125*2 -> 3,021.60 | AV125: =AR125*3 -> 4,532.40 | AW125: =AR125*3 -> 4,532.40 | AX125: 1 | AY125: =SUM(AD125*15) -> 142,338.00 | BN125: 1.00 | BO125: 197,338.00 | BT125: =BN125 -> 1 | BU125: =ROUND(BO125,2) -> 197,338.00
Q126: อบต.ศรีฐาน ผลรวม | R126: ภูกระดึง | S126: เลย | AC126: =SUBTOTAL(9,AC125:AC125) -> 1 | AD126: =SUBTOTAL(9,AD125:AD125) -> 9,489.20 | AE126: =SUBTOTAL(9,AE125:AE125) -> 113,870.40 | AF126: =SUBTOTAL(9,AF125:AF125) -> 28,467.60 | AG126: =SUBTOTAL(9,AG125:AG125) -> 18,978.40 | AQ126: =SUBTOTAL(9,AQ125:AQ125) -> 1 | AR126: =SUBTOTAL(9,AR125:AR125) -> 1,510.80 | AS126: =SUBTOTAL(9,AS125:AS125) -> 18,129.60 | AT126: =SUBTOTAL(9,AT125:AT125) -> 4,532.40 | AU126: =SUBTOTAL(9,AU125:AU125) -> 3,021.60 | AX126: =SUBTOTAL(9,AX125:AX125) -> 1 | AY126: 142,338.00 | AZ126: 0 | BA126: 0 | BB126: 0 | BC126: 0 | BD126: 0 | BE126: 0 | BF126: 0 | BG126: 0 | BH126: 0 | BI126: 0 | BJ126: 0 | BK126: 0 | BO126: 197,338.00 | BT126: =SUBTOTAL(9,BT125:BT125) -> 1 | BU126: =SUBTOTAL(9,BU125:BU125) -> 197,338.00
S127: เลย ผลรวม | AC127: =SUBTOTAL(9,AC125:AC125) -> 1 | AD127: =SUBTOTAL(9,AD125:AD125) -> 9,489.20 | AE127: =SUBTOTAL(9,AE125:AE125) -> 113,870.40 | AF127: =SUBTOTAL(9,AF125:AF125) -> 28,467.60 | AG127: =SUBTOTAL(9,AG125:AG125) -> 18,978.40 | AQ127: =SUBTOTAL(9,AQ125:AQ125) -> 1 | AR127: =SUBTOTAL(9,AR125:AR125) -> 1,510.80 | AS127: =SUBTOTAL(9,AS125:AS125) -> 18,129.60 | AT127: =SUBTOTAL(9,AT125:AT125) -> 4,532.40 | AU127: =SUBTOTAL(9,AU125:AU125) -> 3,021.60 | AX127: =SUBTOTAL(9,AX125:AX125) -> 1 | AY127: 142,338.00 | AZ127: 0 | BA127: 0 | BB127: 0 | BC127: 0 | BD127: 0 | BE127: 0 | BF127: 0 | BG127: 0 | BH127: 0 | BI127: 0 | BJ127: 0 | BK127: 0 | BO127: 197,338.00 | BT127: =SUBTOTAL(9,BT125:BT125) -> 1 | BU127: =SUBTOTAL(9,BU125:BU125) -> 197,338.00
A128: 1 | B128: นาง | C128: ทองวรรณ | D128: มะณีวัน | I128: 2568-10-01 | Q128: อบต.สังเม็ก | R128: กันทรลักษ์ | S128: ศรีสะเกษ | AC128: 1 | AD128: 8,200.80 | AE128: =AD128*12 -> 98,409.60 | AF128: =AD128*3 -> 24,602.40 | AG128: =AD128*2 -> 16,401.60 | AH128: =AD128*3 -> 24,602.40 | AI128: =AD128*3 -> 24,602.40 | AK128: =AD128+AJ128 -> 8,200.80 | AO128: 0 | AP128: =11000-AO128-AD128 -> 2,799.20 | AQ128: =+AC128 -> 1 | AR128: =AJ128+AL128+AO128+AP128 -> 2,799.20 | AS128: =AR128*12 -> 33,590.40 | AT128: =AR128*3 -> 8,397.60 | AU128: =AR128*2 -> 5,598.40 | AV128: =AR128*3 -> 8,397.60 | AW128: =AR128*3 -> 8,397.60 | AX128: 1 | AY128: 123,012.00 | BN128: 1.00 | BO128: 178,012.00 | BT128: =BN128 -> 1 | BU128: =ROUND(BO128,2) -> 178,012.00
Q129: อบต.สังเม็ก ผลรวม | R129: กันทรลักษ์ | S129: ศรีสะเกษ | AC129: =SUBTOTAL(9,AC128:AC128) -> 1 | AD129: =SUBTOTAL(9,AD128:AD128) -> 8,200.80 | AE129: =SUBTOTAL(9,AE128:AE128) -> 98,409.60 | AF129: =SUBTOTAL(9,AF128:AF128) -> 24,602.40 | AG129: =SUBTOTAL(9,AG128:AG128) -> 16,401.60 | AQ129: =SUBTOTAL(9,AQ128:AQ128) -> 1 | AR129: =SUBTOTAL(9,AR128:AR128) -> 2,799.20 | AS129: =SUBTOTAL(9,AS128:AS128) -> 33,590.40 | AT129: =SUBTOTAL(9,AT128:AT128) -> 8,397.60 | AU129: =SUBTOTAL(9,AU128:AU128) -> 5,598.40 | AX129: =SUBTOTAL(9,AX128:AX128) -> 1 | AY129: 123,012.00 | AZ129: 0 | BA129: 0 | BB129: 0 | BC129: 0 | BD129: 0 | BE129: 0 | BF129: 0 | BG129: 0 | BH129: 0 | BI129: 0 | BJ129: 0 | BK129: 0 | BO129: 178,012.00 | BT129: =SUBTOTAL(9,BT128:BT128) -> 1 | BU129: =SUBTOTAL(9,BU128:BU128) -> 178,012.00
A130: =A128+1 -> 2 | B130: นาง | C130: นิพัทธา | D130: บุญจันทร์ | I130: 2568-10-01 | Q130: อบต.จาน | R130: กันทรารมย์ | S130: ศรีสะเกษ | AC130: 1 | AD130: 8,777.60 | AE130: =AD130*12 -> 105,331.20 | AF130: =AD130*3 -> 26,332.80 | AG130: =AD130*2 -> 17,555.20 | AH130: =AD130*3 -> 26,332.80 | AI130: =AD130*3 -> 26,332.80 | AK130: =AD130+AJ130 -> 8,777.60 | AO130: 0 | AP130: =11000-AO130-AD130 -> 2,222.40 | AQ130: =+AC130 -> 1 | AR130: =AJ130+AL130+AO130+AP130 -> 2,222.40 | AS130: =AR130*12 -> 26,668.80 | AT130: =AR130*3 -> 6,667.20 | AU130: =AR130*2 -> 4,444.80 | AV130: =AR130*3 -> 6,667.20 | AW130: =AR130*3 -> 6,667.20 | AX130: 1 | AY130: 131,664.00 | BN130: 1.00 | BO130: 186,664.00 | BT130: =BN130 -> 1 | BU130: =ROUND(BO130,2) -> 186,664.00
Q131: อบต.จาน ผลรวม | R131: กันทรารมย์ | S131: ศรีสะเกษ | AC131: =SUBTOTAL(9,AC130:AC130) -> 1 | AD131: =SUBTOTAL(9,AD130:AD130) -> 8,777.60 | AE131: =SUBTOTAL(9,AE130:AE130) -> 105,331.20 | AF131: =SUBTOTAL(9,AF130:AF130) -> 26,332.80 | AG131: =SUBTOTAL(9,AG130:AG130) -> 17,555.20 | AQ131: =SUBTOTAL(9,AQ130:AQ130) -> 1 | AR131: =SUBTOTAL(9,AR130:AR130) -> 2,222.40 | AS131: =SUBTOTAL(9,AS130:AS130) -> 26,668.80 | AT131: =SUBTOTAL(9,AT130:AT130) -> 6,667.20 | AU131: =SUBTOTAL(9,AU130:AU130) -> 4,444.80 | AX131: =SUBTOTAL(9,AX130:AX130) -> 1 | AY131: 131,664.00 | AZ131: 0 | BA131: 0 | BB131: 0 | BC131: 0 | BD131: 0 | BE131: 0 | BF131: 0 | BG131: 0 | BH131: 0 | BI131: 0 | BJ131: 0 | BK131: 0 | BO131: 186,664.00 | BT131: =SUBTOTAL(9,BT130:BT130) -> 1 | BU131: =SUBTOTAL(9,BU130:BU130) -> 186,664.00
A132: =A130+1 -> 3 | B132: นาง | C132: วิไลรัตน์ | D132: บุญสว่าง | I132: 2568-01-30 | Q132: อบต.ดู่ | R132: กันทรารมย์ | S132: ศรีสะเกษ | W132: =+I132 -> 2568-01-30 | AE132: =AD132*12 -> 0 | AF132: =AD132*3 -> 0 | AG132: =AD132*2 -> 0 | AH132: =AD132*3 -> 0 | AI132: =AD132*3 -> 0 | AK132: =AD132+AJ132 -> 0 | AO132: 0 | AQ132: =+AC132 -> 0 | AR132: =AJ132+AL132+AO132+AP132 -> 0 | AS132: =AR132*12 -> 0 | AT132: =AR132*3 -> 0 | AU132: =AR132*2 -> 0 | AV132: =AR132*3 -> 0 | AW132: =AR132*3 -> 0 | BF132: 1 | BG132: 454,610.00 | BN132: 1.00 | BO132: 454,610.00 | BT132: =BN132 -> 1 | BU132: =ROUND(BO132,2) -> 454,610.00
Q133: อบต.ดู่ ผลรวม | R133: กันทรารมย์ | S133: ศรีสะเกษ | AC133: =SUBTOTAL(9,AC132:AC132) -> 0 | AD133: =SUBTOTAL(9,AD132:AD132) -> 0 | AE133: =SUBTOTAL(9,AE132:AE132) -> 0 | AF133: =SUBTOTAL(9,AF132:AF132) -> 0 | AG133: =SUBTOTAL(9,AG132:AG132) -> 0 | AQ133: =SUBTOTAL(9,AQ132:AQ132) -> 0 | AR133: =SUBTOTAL(9,AR132:AR132) -> 0 | AS133: =SUBTOTAL(9,AS132:AS132) -> 0 | AT133: =SUBTOTAL(9,AT132:AT132) -> 0 | AU133: =SUBTOTAL(9,AU132:AU132) -> 0 | AX133: =SUBTOTAL(9,AX132:AX132) -> 0 | AY133: 0 | AZ133: 0 | BA133: 0 | BB133: 0 | BC133: 0 | BD133: 0 | BE133: 0 | BF133: 1 | BG133: 454,610.00 | BH133: 0 | BI133: 0 | BJ133: 0 | BK133: 0 | BO133: 454,610.00 | BT133: =SUBTOTAL(9,BT132:BT132) -> 1 | BU133: =SUBTOTAL(9,BU132:BU132) -> 454,610.00
A134: =A132+1 -> 4 | B134: นาง | C134: จันทร์ฉาย | D134: สะเดา | I134: 2568-10-01 | Q134: อบต.โคกเพชร | R134: ขุขันธ์ | S134: ศรีสะเกษ | AC134: 1 | AD134: 9,482.20 | AE134: 113,786.40 | AF134: 28,446.60 | AG134: 18,964.40 | AQ134: 1 | AR134: 1,517.80 | AS134: 18,213.60 | AT134: 4,553.40 | AU134: 3,035.60 | AX134: 1 | AY134: 142,233.00 | AZ134: 0 | BA134: 0 | BB134: 0 | BC134: 0 | BD134: 0 | BE134: 0 | BF134: 0 | BG134: 0 | BH134: 0 | BI134: 0 | BJ134: 0 | BK134: 0 | BO134: 197,233.00 | BT134: 1 | BU134: 197,233.00
Q135: อบต.โคกเพชร ผลรวม | R135: ขุขันธ์ | S135: ศรีสะเกษ | AC135: =SUBTOTAL(9,AC134:AC134) -> 1 | AD135: =SUBTOTAL(9,AD134:AD134) -> 9,482.20 | AE135: =SUBTOTAL(9,AE134:AE134) -> 113,786.40 | AF135: =SUBTOTAL(9,AF134:AF134) -> 28,446.60 | AG135: =SUBTOTAL(9,AG134:AG134) -> 18,964.40 | AQ135: =SUBTOTAL(9,AQ134:AQ134) -> 1 | AR135: =SUBTOTAL(9,AR134:AR134) -> 1,517.80 | AS135: =SUBTOTAL(9,AS134:AS134) -> 18,213.60 | AT135: =SUBTOTAL(9,AT134:AT134) -> 4,553.40 | AU135: =SUBTOTAL(9,AU134:AU134) -> 3,035.60 | AX135: =SUBTOTAL(9,AX134:AX134) -> 1 | AY135: 142,233.00 | AZ135: 0 | BA135: 0 | BB135: 0 | BC135: 0 | BD135: 0 | BE135: 0 | BF135: 0 | BG135: 0 | BH135: 0 | BI135: 0 | BJ135: 0 | BK135: 0 | BO135: 197,233.00 | BT135: =SUBTOTAL(9,BT134:BT134) -> 1 | BU135: =SUBTOTAL(9,BU134:BU134) -> 197,233.00
S136: ศรีสะเกษ ผลรวม | AC136: =SUBTOTAL(9,AC128:AC134) -> 3 | AD136: =SUBTOTAL(9,AD128:AD134) -> 26,460.60 | AE136: =SUBTOTAL(9,AE128:AE134) -> 317,527.20 | AF136: =SUBTOTAL(9,AF128:AF134) -> 79,381.80 | AG136: =SUBTOTAL(9,AG128:AG134) -> 52,921.20 | AQ136: =SUBTOTAL(9,AQ128:AQ134) -> 3 | AR136: =SUBTOTAL(9,AR128:AR134) -> 6,539.40 | AS136: =SUBTOTAL(9,AS128:AS134) -> 78,472.80 | AT136: =SUBTOTAL(9,AT128:AT134) -> 19,618.20 | AU136: =SUBTOTAL(9,AU128:AU134) -> 13,078.80 | AX136: =SUBTOTAL(9,AX128:AX134) -> 3 | AY136: 396,909.00 | AZ136: 0 | BA136: 0 | BB136: 0 | BC136: 0 | BD136: 0 | BE136: 0 | BF136: 1 | BG136: 454,610.00 | BH136: 0 | BI136: 0 | BJ136: 0 | BK136: 0 | BO136: 1,016,519.00 | BT136: =SUBTOTAL(9,BT128:BT134) -> 4 | BU136: =SUBTOTAL(9,BU128:BU134) -> 1,016,519.00
A137: 1 | B137: นาย | C137: เสถียร | D137: ศรีนา | I137: 2568-10-02 | Q137: อบต.ห้วยยาง | R137: เมืองสกลนคร | S137: สกลนคร | AC137: 1 | AD137: 8,585.20 | AE137: =AD137*12 -> 103,022.40 | AF137: 25,478.66 | AG137: =AD137*2 -> 17,170.40 | AH137: =AD137*3 -> 25,755.60 | AI137: =AD137*3 -> 25,755.60 | AK137: =AD137+AJ137 -> 8,585.20 | AP137: =11000-AO137-AD137 -> 2,414.80 | AQ137: 1 | AR137: =AJ137+AL137+AO137+AP137 -> 2,414.80 | AS137: =AR137*12 -> 28,977.60 | AT137: 7,166.50 | AU137: =AR137*2 -> 4,829.60 | AV137: =AR137*3 -> 7,244.40 | AW137: =AR137*3 -> 7,244.40 | AX137: 1 | AY137: 128,778.00 | BN137: 1.00 | BO137: =AF137+AG137+AT137+AU137+AY137+BA137+BC137+BE137+BG137+BI137+BK137 -> 183,423.16 | BT137: =BN137 -> 1 | BU137: =ROUND(BO137,2) -> 183,423.16
Q138: อบต.ห้วยยาง ผลรวม | R138: เมืองสกลนคร | S138: สกลนคร | AC138: =SUBTOTAL(9,AC137:AC137) -> 1 | AD138: =SUBTOTAL(9,AD137:AD137) -> 8,585.20 | AE138: =SUBTOTAL(9,AE137:AE137) -> 103,022.40 | AF138: =SUBTOTAL(9,AF137:AF137) -> 25,478.66 | AG138: =SUBTOTAL(9,AG137:AG137) -> 17,170.40 | AQ138: =SUBTOTAL(9,AQ137:AQ137) -> 1 | AR138: =SUBTOTAL(9,AR137:AR137) -> 2,414.80 | AS138: =SUBTOTAL(9,AS137:AS137) -> 28,977.60 | AT138: =SUBTOTAL(9,AT137:AT137) -> 7,166.50 | AU138: =SUBTOTAL(9,AU137:AU137) -> 4,829.60 | AX138: =SUBTOTAL(9,AX137:AX137) -> 1 | AY138: 128,778.00 | AZ138: 0 | BA138: 0 | BB138: 0 | BC138: 0 | BD138: 0 | BE138: 0 | BF138: 0 | BG138: 0 | BH138: 0 | BI138: 0 | BJ138: 0 | BK138: 0 | BO138: 183,423.16 | BT138: =SUBTOTAL(9,BT137:BT137) -> 1 | BU138: =SUBTOTAL(9,BU137:BU137) -> 183,423.16
S139: สกลนคร ผลรวม | AC139: =SUBTOTAL(9,AC137:AC137) -> 1 | AD139: =SUBTOTAL(9,AD137:AD137) -> 8,585.20 | AE139: =SUBTOTAL(9,AE137:AE137) -> 103,022.40 | AF139: =SUBTOTAL(9,AF137:AF137) -> 25,478.66 | AG139: =SUBTOTAL(9,AG137:AG137) -> 17,170.40 | AQ139: =SUBTOTAL(9,AQ137:AQ137) -> 1 | AR139: =SUBTOTAL(9,AR137:AR137) -> 2,414.80 | AS139: =SUBTOTAL(9,AS137:AS137) -> 28,977.60 | AT139: =SUBTOTAL(9,AT137:AT137) -> 7,166.50 | AU139: =SUBTOTAL(9,AU137:AU137) -> 4,829.60 | AX139: =SUBTOTAL(9,AX137:AX137) -> 1 | AY139: 128,778.00 | AZ139: 0 | BA139: 0 | BB139: 0 | BC139: 0 | BD139: 0 | BE139: 0 | BF139: 0 | BG139: 0 | BH139: 0 | BI139: 0 | BJ139: 0 | BK139: 0 | BO139: 183,423.16 | BT139: =SUBTOTAL(9,BT137:BT137) -> 1 | BU139: =SUBTOTAL(9,BU137:BU137) -> 183,423.16
A140: 1 | B140: นาง | C140: ฮาลีเมาะ | D140: วาหะรักษ์ | I140: 2568-10-01 | Q140: อบต.ท่าม่วง | R140: เทพา | S140: สงขลา | U140: ครู | AC140: 1 | AD140: 8,629.40 | AE140: =AD140*12 -> 103,552.80 | AF140: =AD140*3 -> 25,888.20 | AG140: =AD140*2 -> 17,258.80 | AH140: =AD140*3 -> 25,888.20 | AI140: =AD140*3 -> 25,888.20 | AK140: =AD140+AJ140 -> 8,629.40 | AP140: =11000-AO140-AD140 -> 2,370.60 | AQ140: 1 | AR140: =AJ140+AL140+AO140+AP140 -> 2,370.60 | AS140: =AR140*12 -> 28,447.20 | AT140: =AR140*3 -> 7,111.80 | AU140: =AR140*2 -> 4,741.20 | AV140: =AR140*3 -> 7,111.80 | AW140: =AR140*3 -> 7,111.80 | AX140: 1 | AY140: 129,441.00 | BN140: 1.00 | BO140: 184,441.00 | BT140: =BN140 -> 1 | BU140: =ROUND(BO140,2) -> 184,441.00
Q141: อบต.ท่าม่วง ผลรวม | R141: เทพา | S141: สงขลา | AC141: =SUBTOTAL(9,AC140:AC140) -> 1 | AD141: =SUBTOTAL(9,AD140:AD140) -> 8,629.40 | AE141: =SUBTOTAL(9,AE140:AE140) -> 103,552.80 | AF141: =SUBTOTAL(9,AF140:AF140) -> 25,888.20 | AG141: =SUBTOTAL(9,AG140:AG140) -> 17,258.80 | AQ141: =SUBTOTAL(9,AQ140:AQ140) -> 1 | AR141: =SUBTOTAL(9,AR140:AR140) -> 2,370.60 | AS141: =SUBTOTAL(9,AS140:AS140) -> 28,447.20 | AT141: =SUBTOTAL(9,AT140:AT140) -> 7,111.80 | AU141: =SUBTOTAL(9,AU140:AU140) -> 4,741.20 | AX141: =SUBTOTAL(9,AX140:AX140) -> 1 | AY141: 129,441.00 | AZ141: 0 | BA141: 0 | BB141: 0 | BC141: 0 | BD141: 0 | BE141: 0 | BF141: 0 | BG141: 0 | BH141: 0 | BI141: 0 | BJ141: 0 | BK141: 0 | BO141: 184,441.00 | BT141: =SUBTOTAL(9,BT140:BT140) -> 1 | BU141: =SUBTOTAL(9,BU140:BU140) -> 184,441.00
A142: =A140+1 -> 2 | B142: นาง | C142: กัณฐภรณ์ | D142: ชูช่วย | I142: 2568-10-01 | Q142: อบต.ปากบาง | R142: เทพา | S142: สงขลา | U142: ครู | AC142: 1 | AD142: 9,100.00 | AE142: =AD142*12 -> 109,200.00 | AF142: =AD142*3 -> 27,300.00 | AG142: =AD142*2 -> 18,200.00 | AH142: =AD142*3 -> 27,300.00 | AI142: =AD142*3 -> 27,300.00 | AK142: =AD142+AJ142 -> 9,100.00 | AP142: =11000-AO142-AD142 -> 1,900.00 | AQ142: 1 | AR142: =AJ142+AL142+AO142+AP142 -> 1,900.00 | AS142: =AR142*12 -> 22,800.00 | AT142: =AR142*3 -> 5,700.00 | AU142: =AR142*2 -> 3,800.00 | AV142: =AR142*3 -> 5,700.00 | AW142: =AR142*3 -> 5,700.00 | AX142: 1 | AY142: 136,500.00 | BN142: 1.00 | BO142: 191,500.00 | BT142: =BN142 -> 1 | BU142: =ROUND(BO142,2) -> 191,500.00
Q143: อบต.ปากบาง ผลรวม | R143: เทพา | S143: สงขลา | AC143: =SUBTOTAL(9,AC142:AC142) -> 1 | AD143: =SUBTOTAL(9,AD142:AD142) -> 9,100.00 | AE143: =SUBTOTAL(9,AE142:AE142) -> 109,200.00 | AF143: =SUBTOTAL(9,AF142:AF142) -> 27,300.00 | AG143: =SUBTOTAL(9,AG142:AG142) -> 18,200.00 | AQ143: =SUBTOTAL(9,AQ142:AQ142) -> 1 | AR143: =SUBTOTAL(9,AR142:AR142) -> 1,900.00 | AS143: =SUBTOTAL(9,AS142:AS142) -> 22,800.00 | AT143: =SUBTOTAL(9,AT142:AT142) -> 5,700.00 | AU143: =SUBTOTAL(9,AU142:AU142) -> 3,800.00 | AX143: =SUBTOTAL(9,AX142:AX142) -> 1 | AY143: 136,500.00 | AZ143: 0 | BA143: 0 | BB143: 0 | BC143: 0 | BD143: 0 | BE143: 0 | BF143: 0 | BG143: 0 | BH143: 0 | BI143: 0 | BJ143: 0 | BK143: 0 | BO143: 191,500.00 | BT143: =SUBTOTAL(9,BT142:BT142) -> 1 | BU143: =SUBTOTAL(9,BU142:BU142) -> 191,500.00
A144: =A142+1 -> 3 | B144: นาง | C144: อารี | D144: แสงสีดำ | I144: 2568-10-01 | Q144: อบต.คลองแดน | R144: ระโนด | S144: สงขลา | U144: ครู | AC144: 1 | AD144: 9,365.20 | AE144: =AD144*12 -> 112,382.40 | AF144: =AD144*3 -> 28,095.60 | AG144: =AD144*2 -> 18,730.40 | AH144: =AD144*3 -> 28,095.60 | AI144: =AD144*3 -> 28,095.60 | AK144: =AD144+AJ144 -> 9,365.20 | AP144: =11000-AO144-AD144 -> 1,634.80 | AQ144: 1 | AR144: =AJ144+AL144+AO144+AP144 -> 1,634.80 | AS144: =AR144*12 -> 19,617.60 | AT144: =AR144*3 -> 4,904.40 | AU144: =AR144*2 -> 3,269.60 | AV144: =AR144*3 -> 4,904.40 | AW144: =AR144*3 -> 4,904.40 | AX144: 1 | AY144: 140,478.00 | BN144: 1.00 | BO144: 195,478.00 | BT144: =BN144 -> 1 | BU144: =ROUND(BO144,2) -> 195,478.00
Q145: อบต.คลองแดน ผลรวม | R145: ระโนด | S145: สงขลา | AC145: =SUBTOTAL(9,AC144:AC144) -> 1 | AD145: =SUBTOTAL(9,AD144:AD144) -> 9,365.20 | AE145: =SUBTOTAL(9,AE144:AE144) -> 112,382.40 | AF145: =SUBTOTAL(9,AF144:AF144) -> 28,095.60 | AG145: =SUBTOTAL(9,AG144:AG144) -> 18,730.40 | AQ145: =SUBTOTAL(9,AQ144:AQ144) -> 1 | AR145: =SUBTOTAL(9,AR144:AR144) -> 1,634.80 | AS145: =SUBTOTAL(9,AS144:AS144) -> 19,617.60 | AT145: =SUBTOTAL(9,AT144:AT144) -> 4,904.40 | AU145: =SUBTOTAL(9,AU144:AU144) -> 3,269.60 | AX145: =SUBTOTAL(9,AX144:AX144) -> 1 | AY145: 140,478.00 | AZ145: 0 | BA145: 0 | BB145: 0 | BC145: 0 | BD145: 0 | BE145: 0 | BF145: 0 | BG145: 0 | BH145: 0 | BI145: 0 | BJ145: 0 | BK145: 0 | BO145: 195,478.00 | BT145: =SUBTOTAL(9,BT144:BT144) -> 1 | BU145: =SUBTOTAL(9,BU144:BU144) -> 195,478.00
A146: =A144+1 -> 4 | B146: นาง | C146: เพลิน | D146: พุทธาศรี | I146: 2568-10-01 | Q146: อบต.ท่าข้าม | R146: หาดใหญ่ | S146: สงขลา | U146: ครู | AC146: 1 | AD146: 9,875.60 | AE146: =AD146*12 -> 118,507.20 | AF146: =AD146*3 -> 29,626.80 | AG146: =AD146*2 -> 19,751.20 | AH146: =AD146*3 -> 29,626.80 | AI146: =AD146*3 -> 29,626.80 | AK146: =AD146+AJ146 -> 9,875.60 | AP146: =11000-AO146-AD146 -> 1,124.40 | AQ146: 1 | AR146: =AJ146+AL146+AO146+AP146 -> 1,124.40 | AS146: =AR146*12 -> 13,492.80 | AT146: =AR146*3 -> 3,373.20 | AU146: =AR146*2 -> 2,248.80 | AV146: =AR146*3 -> 3,373.20 | AW146: =AR146*3 -> 3,373.20 | AX146: 1 | AY146: 148,134.00 | BN146: 1.00 | BO146: 203,134.00 | BT146: =BN146 -> 1 | BU146: =ROUND(BO146,2) -> 203,134.00
Q147: อบต.ท่าข้าม ผลรวม | R147: หาดใหญ่ | S147: สงขลา | AC147: =SUBTOTAL(9,AC146:AC146) -> 1 | AD147: =SUBTOTAL(9,AD146:AD146) -> 9,875.60 | AE147: =SUBTOTAL(9,AE146:AE146) -> 118,507.20 | AF147: =SUBTOTAL(9,AF146:AF146) -> 29,626.80 | AG147: =SUBTOTAL(9,AG146:AG146) -> 19,751.20 | AQ147: =SUBTOTAL(9,AQ146:AQ146) -> 1 | AR147: =SUBTOTAL(9,AR146:AR146) -> 1,124.40 | AS147: =SUBTOTAL(9,AS146:AS146) -> 13,492.80 | AT147: =SUBTOTAL(9,AT146:AT146) -> 3,373.20 | AU147: =SUBTOTAL(9,AU146:AU146) -> 2,248.80 | AX147: =SUBTOTAL(9,AX146:AX146) -> 1 | AY147: 148,134.00 | AZ147: 0 | BA147: 0 | BB147: 0 | BC147: 0 | BD147: 0 | BE147: 0 | BF147: 0 | BG147: 0 | BH147: 0 | BI147: 0 | BJ147: 0 | BK147: 0 | BO147: 203,134.00 | BT147: =SUBTOTAL(9,BT146:BT146) -> 1 | BU147: =SUBTOTAL(9,BU146:BU146) -> 203,134.00
S148: สงขลา ผลรวม | AC148: =SUBTOTAL(9,AC140:AC146) -> 4 | AD148: =SUBTOTAL(9,AD140:AD146) -> 36,970.20 | AE148: =SUBTOTAL(9,AE140:AE146) -> 443,642.40 | AF148: =SUBTOTAL(9,AF140:AF146) -> 110,910.60 | AG148: =SUBTOTAL(9,AG140:AG146) -> 73,940.40 | AQ148: =SUBTOTAL(9,AQ140:AQ146) -> 4 | AR148: =SUBTOTAL(9,AR140:AR146) -> 7,029.80 | AS148: =SUBTOTAL(9,AS140:AS146) -> 84,357.60 | AT148: =SUBTOTAL(9,AT140:AT146) -> 21,089.40 | AU148: =SUBTOTAL(9,AU140:AU146) -> 14,059.60 | AX148: =SUBTOTAL(9,AX140:AX146) -> 4 | AY148: 554,553.00 | AZ148: 0 | BA148: 0 | BB148: 0 | BC148: 0 | BD148: 0 | BE148: 0 | BF148: 0 | BG148: 0 | BH148: 0 | BI148: 0 | BJ148: 0 | BK148: 0 | BO148: 774,553.00 | BT148: =SUBTOTAL(9,BT140:BT146) -> 4 | BU148: =SUBTOTAL(9,BU140:BU146) -> 774,553.00
A149: 1 | B149: นาง | C149: ฮะลิมะ | D149: เจะดะ | E149: 3260300162092 | I149: 2568-10-01 | Q149: อบต.วังประจัน | R149: ควนโดน | S149: สตูล | U149: ครู | AC149: 1 | AD149: 9,443.20 | AE149: =AD149*12 -> 113,318.40 | AF149: =AD149*3 -> 28,329.60 | AG149: =AD149*2 -> 18,886.40 | AH149: =AD149*3 -> 28,329.60 | AI149: =AD149*3 -> 28,329.60 | AK149: =AD149+AJ149 -> 9,443.20 | AP149: =11000-AO149-AD149 -> 1,556.80 | AQ149: 1 | AR149: 1,556.80 | AS149: =AR149*12 -> 18,681.60 | AT149: =AR149*3 -> 4,670.40 | AU149: =AR149*2 -> 3,113.60 | AV149: =AR149*3 -> 4,670.40 | AW149: =AR149*3 -> 4,670.40 | AX149: 1 | AY149: 141,648.00 | BN149: 1.00 | BO149: 196,648.00 | BT149: =BN149 -> 1 | BU149: =ROUND(BO149,2) -> 196,648.00
Q150: อบต.วังประจัน ผลรวม | R150: ควนโดน | S150: สตูล | AC150: =SUBTOTAL(9,AC149:AC149) -> 1 | AD150: =SUBTOTAL(9,AD149:AD149) -> 9,443.20 | AE150: =SUBTOTAL(9,AE149:AE149) -> 113,318.40 | AF150: =SUBTOTAL(9,AF149:AF149) -> 28,329.60 | AG150: =SUBTOTAL(9,AG149:AG149) -> 18,886.40 | AQ150: =SUBTOTAL(9,AQ149:AQ149) -> 1 | AR150: =SUBTOTAL(9,AR149:AR149) -> 1,556.80 | AS150: =SUBTOTAL(9,AS149:AS149) -> 18,681.60 | AT150: =SUBTOTAL(9,AT149:AT149) -> 4,670.40 | AU150: =SUBTOTAL(9,AU149:AU149) -> 3,113.60 | AX150: =SUBTOTAL(9,AX149:AX149) -> 1 | AY150: 141,648.00 | AZ150: 0 | BA150: 0 | BB150: 0 | BC150: 0 | BD150: 0 | BE150: 0 | BF150: 0 | BG150: 0 | BH150: 0 | BI150: 0 | BJ150: 0 | BK150: 0 | BO150: 196,648.00 | BT150: =SUBTOTAL(9,BT149:BT149) -> 1 | BU150: =SUBTOTAL(9,BU149:BU149) -> 196,648.00
A151: =A149+1 -> 2 | B151: นาง | C151: เสาด๊ะ | D151: นาคสง่า | E151: 3260300521769 | I151: 2568-10-01 | Q151: อบต.ละงู | R151: ละงู | S151: สตูล | U151: ครู | AE151: =AD151*12 -> 0 | AF151: =AD151*3 -> 0 | AG151: =AD151*2 -> 0 | AH151: =AD151*3 -> 0 | AI151: =AD151*3 -> 0 | AK151: =AD151+AJ151 -> 0 | AP151: =11000-AO151-AD151 -> 11,000.00 | AS151: =AR151*12 -> 0 | AT151: =AR151*3 -> 0 | AU151: =AR151*2 -> 0 | AV151: =AR151*3 -> 0 | AW151: =AR151*3 -> 0 | BD151: 1 | BE151: 224,640.00 | BN151: 1.00 | BO151: 224,640.00 | BT151: =BN151 -> 1 | BU151: =ROUND(BO151,2) -> 224,640.00
Q152: อบต.ละงู ผลรวม | R152: ละงู | S152: สตูล | AC152: =SUBTOTAL(9,AC151:AC151) -> 0 | AD152: =SUBTOTAL(9,AD151:AD151) -> 0 | AE152: =SUBTOTAL(9,AE151:AE151) -> 0 | AF152: =SUBTOTAL(9,AF151:AF151) -> 0 | AG152: =SUBTOTAL(9,AG151:AG151) -> 0 | AQ152: =SUBTOTAL(9,AQ151:AQ151) -> 0 | AR152: =SUBTOTAL(9,AR151:AR151) -> 0 | AS152: =SUBTOTAL(9,AS151:AS151) -> 0 | AT152: =SUBTOTAL(9,AT151:AT151) -> 0 | AU152: =SUBTOTAL(9,AU151:AU151) -> 0 | AX152: =SUBTOTAL(9,AX151:AX151) -> 0 | AY152: 0 | AZ152: 0 | BA152: 0 | BB152: 0 | BC152: 0 | BD152: 1 | BE152: 224,640.00 | BF152: 0 | BG152: 0 | BH152: 0 | BI152: 0 | BJ152: 0 | BK152: 0 | BO152: 224,640.00 | BT152: =SUBTOTAL(9,BT151:BT151) -> 1 | BU152: =SUBTOTAL(9,BU151:BU151) -> 224,640.00
S153: สตูล ผลรวม | AC153: =SUBTOTAL(9,AC149:AC151) -> 1 | AD153: =SUBTOTAL(9,AD149:AD151) -> 9,443.20 | AE153: =SUBTOTAL(9,AE149:AE151) -> 113,318.40 | AF153: =SUBTOTAL(9,AF149:AF151) -> 28,329.60 | AG153: =SUBTOTAL(9,AG149:AG151) -> 18,886.40 | AQ153: =SUBTOTAL(9,AQ149:AQ151) -> 1 | AR153: =SUBTOTAL(9,AR149:AR151) -> 1,556.80 | AS153: =SUBTOTAL(9,AS149:AS151) -> 18,681.60 | AT153: =SUBTOTAL(9,AT149:AT151) -> 4,670.40 | AU153: =SUBTOTAL(9,AU149:AU151) -> 3,113.60 | AX153: =SUBTOTAL(9,AX149:AX151) -> 1 | AY153: 141,648.00 | AZ153: 0 | BA153: 0 | BB153: 0 | BC153: 0 | BD153: 1 | BE153: 224,640.00 | BF153: 0 | BG153: 0 | BH153: 0 | BI153: 0 | BJ153: 0 | BK153: 0 | BO153: 421,288.00 | BT153: =SUBTOTAL(9,BT149:BT151) -> 2 | BU153: =SUBTOTAL(9,BU149:BU151) -> 421,288.00
A154: 1 | B154: นาง | C154: ตะเพียนทอง | D154: เคนลัง | E154: 3940200301388 | I154: 2568-11-01 | Q154: อบต.คลองทับจันทร์ | R154: อรัญประเทศ | S154: สระแก้ว | U154: ครู | AC154: 1 | AD154: 9,688.00 | AE154: =AD154*11 -> 106,568.00 | AF154: =AD154*2 -> 19,376.00 | AG154: =AD154*2 -> 19,376.00 | AH154: =AD154*3 -> 29,064.00 | AI154: =AD154*3 -> 29,064.00 | AK154: =AD154+AJ154 -> 9,688.00 | AP154: =11000-AO154-AD154 -> 1,312.00 | AQ154: 1 | AR154: 1,312.00 | AS154: =AR154*11 -> 14,432.00 | AT154: =AR154*2 -> 2,624.00 | AU154: =AR154*2 -> 2,624.00 | AV154: =AR154*3 -> 3,936.00 | AW154: =AR154*3 -> 3,936.00 | AX154: 1 | AY154: 145,320.00 | BN154: 1.00 | BO154: 189,320.00 | BT154: =BN154 -> 1 | BU154: =ROUND(BO154,2) -> 189,320.00
Q155: อบต.คลองทับจันทร์ ผลรวม | R155: อรัญประเทศ | S155: สระแก้ว | AC155: =SUBTOTAL(9,AC154:AC154) -> 1 | AD155: =SUBTOTAL(9,AD154:AD154) -> 9,688.00 | AE155: =SUBTOTAL(9,AE154:AE154) -> 106,568.00 | AF155: =SUBTOTAL(9,AF154:AF154) -> 19,376.00 | AG155: =SUBTOTAL(9,AG154:AG154) -> 19,376.00 | AQ155: =SUBTOTAL(9,AQ154:AQ154) -> 1 | AR155: =SUBTOTAL(9,AR154:AR154) -> 1,312.00 | AS155: =SUBTOTAL(9,AS154:AS154) -> 14,432.00 | AT155: =SUBTOTAL(9,AT154:AT154) -> 2,624.00 | AU155: =SUBTOTAL(9,AU154:AU154) -> 2,624.00 | AX155: =SUBTOTAL(9,AX154:AX154) -> 1 | AY155: 145,320.00 | AZ155: 0 | BA155: 0 | BB155: 0 | BC155: 0 | BD155: 0 | BE155: 0 | BF155: 0 | BG155: 0 | BH155: 0 | BI155: 0 | BJ155: 0 | BK155: 0 | BO155: 189,320.00 | BT155: =SUBTOTAL(9,BT154:BT154) -> 1 | BU155: =SUBTOTAL(9,BU154:BU154) -> 189,320.00
S156: สระแก้ว ผลรวม | AC156: =SUBTOTAL(9,AC154:AC154) -> 1 | AD156: =SUBTOTAL(9,AD154:AD154) -> 9,688.00 | AE156: =SUBTOTAL(9,AE154:AE154) -> 106,568.00 | AF156: =SUBTOTAL(9,AF154:AF154) -> 19,376.00 | AG156: =SUBTOTAL(9,AG154:AG154) -> 19,376.00 | AQ156: =SUBTOTAL(9,AQ154:AQ154) -> 1 | AR156: =SUBTOTAL(9,AR154:AR154) -> 1,312.00 | AS156: =SUBTOTAL(9,AS154:AS154) -> 14,432.00 | AT156: =SUBTOTAL(9,AT154:AT154) -> 2,624.00 | AU156: =SUBTOTAL(9,AU154:AU154) -> 2,624.00 | AX156: =SUBTOTAL(9,AX154:AX154) -> 1 | AY156: 145,320.00 | AZ156: 0 | BA156: 0 | BB156: 0 | BC156: 0 | BD156: 0 | BE156: 0 | BF156: 0 | BG156: 0 | BH156: 0 | BI156: 0 | BJ156: 0 | BK156: 0 | BO156: 189,320.00 | BT156: =SUBTOTAL(9,BT154:BT154) -> 1 | BU156: =SUBTOTAL(9,BU154:BU154) -> 189,320.00
A157: 1 | B157: นาง | C157: เฉลียว | D157: คงกระพันธ์ | I157: 2568-10-01 | Q157: อบต.วังทอง | R157: ศรีสำโรง | S157: สุโขทัย | U157: ครู | AC157: 1 | AD157: 9,696.40 | AE157: =AD157*12 -> 116,356.80 | AF157: =AD157*3 -> 29,089.20 | AG157: =AD157*2 -> 19,392.80 | AH157: =AD157*3 -> 29,089.20 | AI157: =AD157*3 -> 29,089.20 | AK157: =AD157+AJ157 -> 9,696.40 | AP157: =11000-AO157-AD157 -> 1,303.60 | AQ157: 1 | AR157: =AJ157+AL157+AN157+AO157+AP157 -> 1,303.60 | AS157: =AR157*12 -> 15,643.20 | AT157: =AR157*3 -> 3,910.80 | AU157: =AR157*2 -> 2,607.20 | AV157: =AR157*3 -> 3,910.80 | AW157: =AR157*3 -> 3,910.80 | AX157: 1 | AY157: =SUM(AD157*15) -> 145,446.00 | BN157: 1.00 | BO157: 200,446.00 | BT157: =BN157 -> 1 | BU157: =ROUND(BO157,2) -> 200,446.00
Q158: อบต.วังทอง ผลรวม | R158: ศรีสำโรง | S158: สุโขทัย | AC158: =SUBTOTAL(9,AC157:AC157) -> 1 | AD158: =SUBTOTAL(9,AD157:AD157) -> 9,696.40 | AE158: =SUBTOTAL(9,AE157:AE157) -> 116,356.80 | AF158: =SUBTOTAL(9,AF157:AF157) -> 29,089.20 | AG158: =SUBTOTAL(9,AG157:AG157) -> 19,392.80 | AQ158: =SUBTOTAL(9,AQ157:AQ157) -> 1 | AR158: =SUBTOTAL(9,AR157:AR157) -> 1,303.60 | AS158: =SUBTOTAL(9,AS157:AS157) -> 15,643.20 | AT158: =SUBTOTAL(9,AT157:AT157) -> 3,910.80 | AU158: =SUBTOTAL(9,AU157:AU157) -> 2,607.20 | AX158: =SUBTOTAL(9,AX157:AX157) -> 1 | AY158: 145,446.00 | AZ158: 0 | BA158: 0 | BB158: 0 | BC158: 0 | BD158: 0 | BE158: 0 | BF158: 0 | BG158: 0 | BH158: 0 | BI158: 0 | BJ158: 0 | BK158: 0 | BO158: 200,446.00 | BT158: =SUBTOTAL(9,BT157:BT157) -> 1 | BU158: =SUBTOTAL(9,BU157:BU157) -> 200,446.00
S159: สุโขทัย ผลรวม | AC159: =SUBTOTAL(9,AC157:AC157) -> 1 | AD159: =SUBTOTAL(9,AD157:AD157) -> 9,696.40 | AE159: =SUBTOTAL(9,AE157:AE157) -> 116,356.80 | AF159: =SUBTOTAL(9,AF157:AF157) -> 29,089.20 | AG159: =SUBTOTAL(9,AG157:AG157) -> 19,392.80 | AQ159: =SUBTOTAL(9,AQ157:AQ157) -> 1 | AR159: =SUBTOTAL(9,AR157:AR157) -> 1,303.60 | AS159: =SUBTOTAL(9,AS157:AS157) -> 15,643.20 | AT159: =SUBTOTAL(9,AT157:AT157) -> 3,910.80 | AU159: =SUBTOTAL(9,AU157:AU157) -> 2,607.20 | AX159: =SUBTOTAL(9,AX157:AX157) -> 1 | AY159: 145,446.00 | AZ159: 0 | BA159: 0 | BB159: 0 | BC159: 0 | BD159: 0 | BE159: 0 | BF159: 0 | BG159: 0 | BH159: 0 | BI159: 0 | BJ159: 0 | BK159: 0 | BO159: 200,446.00 | BT159: =SUBTOTAL(9,BT157:BT157) -> 1 | BU159: =SUBTOTAL(9,BU157:BU157) -> 200,446.00
A160: 1 | B160: นาง | C160: ลักขณา | D160: เพชโรภาส | I160: 2568-10-01 | Q160: อบต.ท่าอุแท | R160: กาญจนดิษฐ์ | S160: สุราษฎร์ธานี | U160: ครู | AC160: 1 | AD160: 10,234.00 | AE160: =AD160*12 -> 122,808.00 | AF160: =AD160*3 -> 30,702.00 | AG160: =AD160*2 -> 20,468.00 | AH160: =AD160*3 -> 30,702.00 | AI160: =AD160*3 -> 30,702.00 | AK160: =AD160+AJ160 -> 10,234.00 | AP160: =11000-AO160-AD160 -> 766.00 | AQ160: 1 | AR160: =AJ160+AL160+AO160+AP160 -> 766.00 | AS160: =AR160*12 -> 9,192.00 | AT160: =AR160*3 -> 2,298.00 | AU160: =AR160*2 -> 1,532.00 | AV160: =AR160*3 -> 2,298.00 | AW160: =AR160*3 -> 2,298.00 | AX160: 1 | AY160: 153,510.00 | BN160: 1.00 | BO160: 208,510.00 | BT160: =BN160 -> 1 | BU160: =ROUND(BO160,2) -> 208,510.00
Q161: อบต.ท่าอุแท ผลรวม | R161: กาญจนดิษฐ์ | S161: สุราษฎร์ธานี | AC161: =SUBTOTAL(9,AC160:AC160) -> 1 | AD161: =SUBTOTAL(9,AD160:AD160) -> 10,234.00 | AE161: =SUBTOTAL(9,AE160:AE160) -> 122,808.00 | AF161: =SUBTOTAL(9,AF160:AF160) -> 30,702.00 | AG161: =SUBTOTAL(9,AG160:AG160) -> 20,468.00 | AQ161: =SUBTOTAL(9,AQ160:AQ160) -> 1 | AR161: =SUBTOTAL(9,AR160:AR160) -> 766.00 | AS161: =SUBTOTAL(9,AS160:AS160) -> 9,192.00 | AT161: =SUBTOTAL(9,AT160:AT160) -> 2,298.00 | AU161: =SUBTOTAL(9,AU160:AU160) -> 1,532.00 | AX161: =SUBTOTAL(9,AX160:AX160) -> 1 | AY161: 153,510.00 | AZ161: 0 | BA161: 0 | BB161: 0 | BC161: 0 | BD161: 0 | BE161: 0 | BF161: 0 | BG161: 0 | BH161: 0 | BI161: 0 | BJ161: 0 | BK161: 0 | BO161: 208,510.00 | BT161: =SUBTOTAL(9,BT160:BT160) -> 1 | BU161: =SUBTOTAL(9,BU160:BU160) -> 208,510.00
A162: =A160+1 -> 2 | B162: นาง | C162: กรรณิกา | D162: ยืนยั่ง | I162: 2568-10-01 | Q162: อบต.ท่าขนอน | R162: คีรีรัฐนิคม | S162: สุราษฎร์ธานี | U162: ครู | AC162: 1 | AD162: 6,347.00 | AE162: =AD162*12 -> 76,164.00 | AF162: =AD162*3 -> 19,041.00 | AG162: =AD162*2 -> 12,694.00 | AH162: =AD162*3 -> 19,041.00 | AI162: =AD162*3 -> 19,041.00 | AK162: =AD162+AJ162 -> 6,347.00 | AP162: =11000-AO162-AD162 -> 4,653.00 | AQ162: 1 | AR162: =AJ162+AL162+AO162+AP162 -> 4,653.00 | AS162: =AR162*12 -> 55,836.00 | AT162: =AR162*3 -> 13,959.00 | AU162: =AR162*2 -> 9,306.00 | AV162: =AR162*3 -> 13,959.00 | AW162: =AR162*3 -> 13,959.00 | AX162: 1 | AY162: 95,205.00 | BN162: 1.00 | BO162: 150,205.00 | BT162: =BN162 -> 1 | BU162: =ROUND(BO162,2) -> 150,205.00
Q163: อบต.ท่าขนอน ผลรวม | R163: คีรีรัฐนิคม | S163: สุราษฎร์ธานี | AC163: =SUBTOTAL(9,AC162:AC162) -> 1 | AD163: =SUBTOTAL(9,AD162:AD162) -> 6,347.00 | AE163: =SUBTOTAL(9,AE162:AE162) -> 76,164.00 | AF163: =SUBTOTAL(9,AF162:AF162) -> 19,041.00 | AG163: =SUBTOTAL(9,AG162:AG162) -> 12,694.00 | AQ163: =SUBTOTAL(9,AQ162:AQ162) -> 1 | AR163: =SUBTOTAL(9,AR162:AR162) -> 4,653.00 | AS163: =SUBTOTAL(9,AS162:AS162) -> 55,836.00 | AT163: =SUBTOTAL(9,AT162:AT162) -> 13,959.00 | AU163: =SUBTOTAL(9,AU162:AU162) -> 9,306.00 | AX163: =SUBTOTAL(9,AX162:AX162) -> 1 | AY163: 95,205.00 | AZ163: 0 | BA163: 0 | BB163: 0 | BC163: 0 | BD163: 0 | BE163: 0 | BF163: 0 | BG163: 0 | BH163: 0 | BI163: 0 | BJ163: 0 | BK163: 0 | BO163: 150,205.00 | BT163: =SUBTOTAL(9,BT162:BT162) -> 1 | BU163: =SUBTOTAL(9,BU162:BU162) -> 150,205.00
S164: สุราษฎร์ธานี ผลรวม | AC164: =SUBTOTAL(9,AC160:AC162) -> 2 | AD164: =SUBTOTAL(9,AD160:AD162) -> 16,581.00 | AE164: =SUBTOTAL(9,AE160:AE162) -> 198,972.00 | AF164: =SUBTOTAL(9,AF160:AF162) -> 49,743.00 | AG164: =SUBTOTAL(9,AG160:AG162) -> 33,162.00 | AQ164: =SUBTOTAL(9,AQ160:AQ162) -> 2 | AR164: =SUBTOTAL(9,AR160:AR162) -> 5,419.00 | AS164: =SUBTOTAL(9,AS160:AS162) -> 65,028.00 | AT164: =SUBTOTAL(9,AT160:AT162) -> 16,257.00 | AU164: =SUBTOTAL(9,AU160:AU162) -> 10,838.00 | AX164: =SUBTOTAL(9,AX160:AX162) -> 2 | AY164: 248,715.00 | AZ164: 0 | BA164: 0 | BB164: 0 | BC164: 0 | BD164: 0 | BE164: 0 | BF164: 0 | BG164: 0 | BH164: 0 | BI164: 0 | BJ164: 0 | BK164: 0 | BO164: 358,715.00 | BT164: =SUBTOTAL(9,BT160:BT162) -> 2 | BU164: =SUBTOTAL(9,BU160:BU162) -> 358,715.00
A165: 1 | B165: นาง | C165: มยุรี | D165: อยู่กรุง | I165: 2568-10-01 | Q165: อบต.ลำดวน | R165: ลำดวน | S165: สุรินทร์ | AE165: =AD165*12 -> 0 | AF165: =AD165*3 -> 0 | AG165: =AD165*2 -> 0 | AH165: =AD165*3 -> 0 | AI165: =AD165*3 -> 0 | AK165: =AD165+AJ165 -> 0 | AP165: =11000-AO165-AD165 -> 11,000.00 | AS165: =AR165*12 -> 0 | AT165: =AR165*3 -> 0 | AU165: =AR165*2 -> 0 | AV165: =AR165*3 -> 0 | AW165: =AR165*3 -> 0 | AX165: 1 | AY165: =151116-146958 -> 4,158.00 | BN165: 1.00 | BO165: 4,158.00 | BT165: =BN165 -> 1 | BU165: =ROUND(BO165,2) -> 4,158.00
Q166: อบต.ลำดวน ผลรวม | R166: ลำดวน | S166: สุรินทร์ | AC166: =SUBTOTAL(9,AC165:AC165) -> 0 | AD166: =SUBTOTAL(9,AD165:AD165) -> 0 | AE166: =SUBTOTAL(9,AE165:AE165) -> 0 | AF166: =SUBTOTAL(9,AF165:AF165) -> 0 | AG166: =SUBTOTAL(9,AG165:AG165) -> 0 | AQ166: =SUBTOTAL(9,AQ165:AQ165) -> 0 | AR166: =SUBTOTAL(9,AR165:AR165) -> 0 | AS166: =SUBTOTAL(9,AS165:AS165) -> 0 | AT166: =SUBTOTAL(9,AT165:AT165) -> 0 | AU166: =SUBTOTAL(9,AU165:AU165) -> 0 | AX166: =SUBTOTAL(9,AX165:AX165) -> 1 | AY166: 4,158.00 | AZ166: 0 | BA166: 0 | BB166: 0 | BC166: 0 | BD166: 0 | BE166: 0 | BF166: 0 | BG166: 0 | BH166: 0 | BI166: 0 | BJ166: 0 | BK166: 0 | BO166: 4,158.00 | BT166: =SUBTOTAL(9,BT165:BT165) -> 1 | BU166: =SUBTOTAL(9,BU165:BU165) -> 4,158.00
A167: =A165+1 -> 2 | B167: นาง | C167: กาญจนาพร | D167: วรรณสิน | I167: 2568-10-01 | Q167: อบต.กระออม | R167: สำโรงทาบ | S167: สุรินทร์ | AC167: 1 | AD167: 10,374.00 | AE167: =AD167*12 -> 124,488.00 | AF167: =AD167*3 -> 31,122.00 | AG167: =AD167*2 -> 20,748.00 | AH167: =AD167*3 -> 31,122.00 | AI167: =AD167*3 -> 31,122.00 | AK167: =AD167+AJ167 -> 10,374.00 | AP167: =11000-AO167-AD167 -> 626.00 | AQ167: 1 | AR167: =AJ167+AL167+AO167+AP167 -> 626.00 | AS167: =AR167*12 -> 7,512.00 | AT167: =AR167*3 -> 1,878.00 | AU167: =AR167*2 -> 1,252.00 | AV167: =AR167*3 -> 1,878.00 | AW167: =AR167*3 -> 1,878.00 | AX167: 1 | AY167: 155,610.00 | BN167: 1.00 | BO167: 210,610.00 | BT167: =BN167 -> 1 | BU167: =ROUND(BO167,2) -> 210,610.00
Q168: อบต.กระออม ผลรวม | R168: สำโรงทาบ | S168: สุรินทร์ | AC168: =SUBTOTAL(9,AC167:AC167) -> 1 | AD168: =SUBTOTAL(9,AD167:AD167) -> 10,374.00 | AE168: =SUBTOTAL(9,AE167:AE167) -> 124,488.00 | AF168: =SUBTOTAL(9,AF167:AF167) -> 31,122.00 | AG168: =SUBTOTAL(9,AG167:AG167) -> 20,748.00 | AQ168: =SUBTOTAL(9,AQ167:AQ167) -> 1 | AR168: =SUBTOTAL(9,AR167:AR167) -> 626.00 | AS168: =SUBTOTAL(9,AS167:AS167) -> 7,512.00 | AT168: =SUBTOTAL(9,AT167:AT167) -> 1,878.00 | AU168: =SUBTOTAL(9,AU167:AU167) -> 1,252.00 | AX168: =SUBTOTAL(9,AX167:AX167) -> 1 | AY168: 155,610.00 | AZ168: 0 | BA168: 0 | BB168: 0 | BC168: 0 | BD168: 0 | BE168: 0 | BF168: 0 | BG168: 0 | BH168: 0 | BI168: 0 | BJ168: 0 | BK168: 0 | BO168: 210,610.00 | BT168: =SUBTOTAL(9,BT167:BT167) -> 1 | BU168: =SUBTOTAL(9,BU167:BU167) -> 210,610.00
S169: สุรินทร์ ผลรวม | AC169: =SUBTOTAL(9,AC165:AC167) -> 1 | AD169: =SUBTOTAL(9,AD165:AD167) -> 10,374.00 | AE169: =SUBTOTAL(9,AE165:AE167) -> 124,488.00 | AF169: =SUBTOTAL(9,AF165:AF167) -> 31,122.00 | AG169: =SUBTOTAL(9,AG165:AG167) -> 20,748.00 | AQ169: =SUBTOTAL(9,AQ165:AQ167) -> 1 | AR169: =SUBTOTAL(9,AR165:AR167) -> 626.00 | AS169: =SUBTOTAL(9,AS165:AS167) -> 7,512.00 | AT169: =SUBTOTAL(9,AT165:AT167) -> 1,878.00 | AU169: =SUBTOTAL(9,AU165:AU167) -> 1,252.00 | AX169: =SUBTOTAL(9,AX165:AX167) -> 2 | AY169: 159,768.00 | AZ169: 0 | BA169: 0 | BB169: 0 | BC169: 0 | BD169: 0 | BE169: 0 | BF169: 0 | BG169: 0 | BH169: 0 | BI169: 0 | BJ169: 0 | BK169: 0 | BO169: 214,768.00 | BT169: =SUBTOTAL(9,BT165:BT167) -> 2 | BU169: =SUBTOTAL(9,BU165:BU167) -> 214,768.00
A170: 1 | B170: นาง | C170: เกษร | D170: ราชกิจ | I170: 2568-10-01 | Q170: อบต.บ้านฝาง | R170: สระใคร | S170: หนองคาย | U170: ครู | AC170: 1 | AD170: 6,749.60 | AE170: =AD170*12 -> 80,995.20 | AF170: =AD170*3 -> 20,248.80 | AG170: =AD170*2 -> 13,499.20 | AH170: =AD170*3 -> 20,248.80 | AI170: =AD170*3 -> 20,248.80 | AK170: =AD170+AJ170 -> 6,749.60 | AP170: =11000-AO170-AD170 -> 4,250.40 | AQ170: 1 | AR170: =AJ170+AL170+AO170+AP170 -> 4,250.40 | AS170: =AR170*12 -> 51,004.80 | AT170: =AR170*3 -> 12,751.20 | AU170: =AR170*2 -> 8,500.80 | AV170: =AR170*3 -> 12,751.20 | AW170: =AR170*3 -> 12,751.20 | AX170: 1 | AY170: 101,244.00 | BN170: 1.00 | BO170: 156,244.00 | BT170: =BN170 -> 1 | BU170: =ROUND(BO170,2) -> 156,244.00
Q171: อบต.บ้านฝาง ผลรวม | R171: สระใคร | S171: หนองคาย | AC171: =SUBTOTAL(9,AC170:AC170) -> 1 | AD171: =SUBTOTAL(9,AD170:AD170) -> 6,749.60 | AE171: =SUBTOTAL(9,AE170:AE170) -> 80,995.20 | AF171: =SUBTOTAL(9,AF170:AF170) -> 20,248.80 | AG171: =SUBTOTAL(9,AG170:AG170) -> 13,499.20 | AQ171: =SUBTOTAL(9,AQ170:AQ170) -> 1 | AR171: =SUBTOTAL(9,AR170:AR170) -> 4,250.40 | AS171: =SUBTOTAL(9,AS170:AS170) -> 51,004.80 | AT171: =SUBTOTAL(9,AT170:AT170) -> 12,751.20 | AU171: =SUBTOTAL(9,AU170:AU170) -> 8,500.80 | AX171: =SUBTOTAL(9,AX170:AX170) -> 1 | AY171: 101,244.00 | AZ171: 0 | BA171: 0 | BB171: 0 | BC171: 0 | BD171: 0 | BE171: 0 | BF171: 0 | BG171: 0 | BH171: 0 | BI171: 0 | BJ171: 0 | BK171: 0 | BO171: 156,244.00 | BT171: =SUBTOTAL(9,BT170:BT170) -> 1 | BU171: =SUBTOTAL(9,BU170:BU170) -> 156,244.00
S172: หนองคาย ผลรวม | AC172: =SUBTOTAL(9,AC170:AC170) -> 1 | AD172: =SUBTOTAL(9,AD170:AD170) -> 6,749.60 | AE172: =SUBTOTAL(9,AE170:AE170) -> 80,995.20 | AF172: =SUBTOTAL(9,AF170:AF170) -> 20,248.80 | AG172: =SUBTOTAL(9,AG170:AG170) -> 13,499.20 | AQ172: =SUBTOTAL(9,AQ170:AQ170) -> 1 | AR172: =SUBTOTAL(9,AR170:AR170) -> 4,250.40 | AS172: =SUBTOTAL(9,AS170:AS170) -> 51,004.80 | AT172: =SUBTOTAL(9,AT170:AT170) -> 12,751.20 | AU172: =SUBTOTAL(9,AU170:AU170) -> 8,500.80 | AX172: =SUBTOTAL(9,AX170:AX170) -> 1 | AY172: 101,244.00 | AZ172: 0 | BA172: 0 | BB172: 0 | BC172: 0 | BD172: 0 | BE172: 0 | BF172: 0 | BG172: 0 | BH172: 0 | BI172: 0 | BJ172: 0 | BK172: 0 | BO172: 156,244.00 | BT172: =SUBTOTAL(9,BT170:BT170) -> 1 | BU172: =SUBTOTAL(9,BU170:BU170) -> 156,244.00
A173: 1 | B173: นาง | C173: ศรีอำนาจ | D173: สุดสูง | I173: 2568-11-06 | Q173: อบต.ป่าก่อ | R173: ชานุมาน | S173: อำนาจเจริญ | AE173: =AD173*12 -> 0 | AF173: =AD173*3 -> 0 | AG173: =AD173*2 -> 0 | AH173: =AD173*3 -> 0 | AI173: =AD173*3 -> 0 | AK173: =AD173+AJ173 -> 0 | AO173: 0 | AQ173: =+AC173 -> 0 | AR173: =AJ173+AL173+AO173+AP173 -> 0 | AS173: =AR173*12 -> 0 | AT173: =AR173*3 -> 0 | AU173: =AR173*2 -> 0 | AV173: =AR173*3 -> 0 | AW173: =AR173*3 -> 0 | BF173: 1 | BG173: 535,920.00 | BN173: 1.00 | BO173: 535,920.00 | BT173: =BN173 -> 1 | BU173: =ROUND(BO173,2) -> 535,920.00
Q174: อบต.ป่าก่อ ผลรวม | R174: ชานุมาน | S174: อำนาจเจริญ | AC174: =SUBTOTAL(9,AC173:AC173) -> 0 | AD174: =SUBTOTAL(9,AD173:AD173) -> 0 | AE174: =SUBTOTAL(9,AE173:AE173) -> 0 | AF174: =SUBTOTAL(9,AF173:AF173) -> 0 | AG174: =SUBTOTAL(9,AG173:AG173) -> 0 | AQ174: =SUBTOTAL(9,AQ173:AQ173) -> 0 | AR174: =SUBTOTAL(9,AR173:AR173) -> 0 | AS174: =SUBTOTAL(9,AS173:AS173) -> 0 | AT174: =SUBTOTAL(9,AT173:AT173) -> 0 | AU174: =SUBTOTAL(9,AU173:AU173) -> 0 | AX174: =SUBTOTAL(9,AX173:AX173) -> 0 | AY174: 0 | AZ174: 0 | BA174: 0 | BB174: 0 | BC174: 0 | BD174: 0 | BE174: 0 | BF174: 1 | BG174: 535,920.00 | BH174: 0 | BI174: 0 | BJ174: 0 | BK174: 0 | BO174: 535,920.00 | BT174: =SUBTOTAL(9,BT173:BT173) -> 1 | BU174: =SUBTOTAL(9,BU173:BU173) -> 535,920.00
A175: =A173+1 -> 2 | B175: นาง | C175: สมจิต | D175: ทองวิเศษ | I175: 2568-10-01 | Q175: อบต.ไร่ขี | R175: ลืออำนาจ | S175: อำนาจเจริญ | AE175: =AD175*12 -> 0 | AF175: =AD175*3 -> 0 | AG175: =AD175*2 -> 0 | AH175: =AD175*3 -> 0 | AI175: =AD175*3 -> 0 | AK175: =AD175+AJ175 -> 0 | AO175: 0 | AQ175: =+AC175 -> 0 | AR175: =AJ175+AL175+AO175+AP175 -> 0 | AS175: =AR175*12 -> 0 | AT175: =AR175*3 -> 0 | AU175: =AR175*2 -> 0 | AV175: =AR175*3 -> 0 | AW175: =AR175*3 -> 0 | AX175: 1 | AY175: =145698-141246 -> 4,452.00 | BN175: 1.00 | BO175: 4,452.00 | BT175: =BN175 -> 1 | BU175: =ROUND(BO175,2) -> 4,452.00
Q176: อบต.ไร่ขี ผลรวม | R176: ลืออำนาจ | S176: อำนาจเจริญ | AC176: =SUBTOTAL(9,AC175:AC175) -> 0 | AD176: =SUBTOTAL(9,AD175:AD175) -> 0 | AE176: =SUBTOTAL(9,AE175:AE175) -> 0 | AF176: =SUBTOTAL(9,AF175:AF175) -> 0 | AG176: =SUBTOTAL(9,AG175:AG175) -> 0 | AQ176: =SUBTOTAL(9,AQ175:AQ175) -> 0 | AR176: =SUBTOTAL(9,AR175:AR175) -> 0 | AS176: =SUBTOTAL(9,AS175:AS175) -> 0 | AT176: =SUBTOTAL(9,AT175:AT175) -> 0 | AU176: =SUBTOTAL(9,AU175:AU175) -> 0 | AX176: =SUBTOTAL(9,AX175:AX175) -> 1 | AY176: 4,452.00 | AZ176: 0 | BA176: 0 | BB176: 0 | BC176: 0 | BD176: 0 | BE176: 0 | BF176: 0 | BG176: 0 | BH176: 0 | BI176: 0 | BJ176: 0 | BK176: 0 | BO176: 4,452.00 | BT176: =SUBTOTAL(9,BT175:BT175) -> 1 | BU176: =SUBTOTAL(9,BU175:BU175) -> 4,452.00
S177: อำนาจเจริญ ผลรวม | AC177: =SUBTOTAL(9,AC173:AC175) -> 0 | AD177: =SUBTOTAL(9,AD173:AD175) -> 0 | AE177: =SUBTOTAL(9,AE173:AE175) -> 0 | AF177: =SUBTOTAL(9,AF173:AF175) -> 0 | AG177: =SUBTOTAL(9,AG173:AG175) -> 0 | AQ177: =SUBTOTAL(9,AQ173:AQ175) -> 0 | AR177: =SUBTOTAL(9,AR173:AR175) -> 0 | AS177: =SUBTOTAL(9,AS173:AS175) -> 0 | AT177: =SUBTOTAL(9,AT173:AT175) -> 0 | AU177: =SUBTOTAL(9,AU173:AU175) -> 0 | AX177: =SUBTOTAL(9,AX173:AX175) -> 1 | AY177: 4,452.00 | AZ177: 0 | BA177: 0 | BB177: 0 | BC177: 0 | BD177: 0 | BE177: 0 | BF177: 1 | BG177: 535,920.00 | BH177: 0 | BI177: 0 | BJ177: 0 | BK177: 0 | BO177: 540,372.00 | BT177: =SUBTOTAL(9,BT173:BT175) -> 2 | BU177: =SUBTOTAL(9,BU173:BU175) -> 540,372.00
A178: 1 | B178: นาง | C178: จรัญญา | D178: หงษ์มาลา | I178: 2568-10-04 | Q178: อบต.หนองหลัก | R178: ไชยวาน | S178: อุดรธานี | U178: ครู | W178: 2568-10-04 | AD178: 0 | AE178: =AD178*12 -> 0 | AF178: =AD178*3 -> 0 | AG178: =AD178*2 -> 0 | AH178: =AD178*3 -> 0 | AI178: =AD178*3 -> 0 | AK178: =AD178+AJ178 -> 0 | AP178: 0 | AR178: =AJ178+AL178+AO178+AP178 -> 0 | AS178: =AR178*12 -> 0 | AT178: =AR178*3 -> 0 | AU178: =AR178*2 -> 0 | AV178: =AR178*3 -> 0 | AW178: =AR178*3 -> 0 | BF178: 1 | BG178: 326,810.00 | BN178: 1.00 | BO178: 326,810.00 | BT178: =BN178 -> 1 | BU178: =ROUND(BO178,2) -> 326,810.00
Q179: อบต.หนองหลัก ผลรวม | R179: ไชยวาน | S179: อุดรธานี | AC179: =SUBTOTAL(9,AC178:AC178) -> 0 | AD179: =SUBTOTAL(9,AD178:AD178) -> 0 | AE179: =SUBTOTAL(9,AE178:AE178) -> 0 | AF179: =SUBTOTAL(9,AF178:AF178) -> 0 | AG179: =SUBTOTAL(9,AG178:AG178) -> 0 | AQ179: =SUBTOTAL(9,AQ178:AQ178) -> 0 | AR179: =SUBTOTAL(9,AR178:AR178) -> 0 | AS179: =SUBTOTAL(9,AS178:AS178) -> 0 | AT179: =SUBTOTAL(9,AT178:AT178) -> 0 | AU179: =SUBTOTAL(9,AU178:AU178) -> 0 | AX179: =SUBTOTAL(9,AX178:AX178) -> 0 | AY179: 0 | AZ179: 0 | BA179: 0 | BB179: 0 | BC179: 0 | BD179: 0 | BE179: 0 | BF179: 1 | BG179: 326,810.00 | BH179: 0 | BI179: 0 | BJ179: 0 | BK179: 0 | BO179: 326,810.00 | BT179: =SUBTOTAL(9,BT178:BT178) -> 1 | BU179: =SUBTOTAL(9,BU178:BU178) -> 326,810.00
A180: =A178+1 -> 2 | B180: นาง | C180: กัลยาณี | D180: กลิ่นจันทร์ | I180: 2568-10-01 | Q180: อบต.ข้าวสาร | R180: บ้านผือ | S180: อุดรธานี | U180: ครู | AC180: 1 | AD180: 9,954.00 | AE180: =AD180*12 -> 119,448.00 | AF180: =AD180*3 -> 29,862.00 | AG180: =AD180*2 -> 19,908.00 | AH180: =AD180*3 -> 29,862.00 | AI180: =AD180*3 -> 29,862.00 | AK180: =AD180+AJ180 -> 9,954.00 | AP180: =11000-AO180-AD180 -> 1,046.00 | AQ180: 1 | AR180: =AJ180+AL180+AO180+AP180 -> 1,046.00 | AS180: =AR180*12 -> 12,552.00 | AT180: =AR180*3 -> 3,138.00 | AU180: =AR180*2 -> 2,092.00 | AV180: =AR180*3 -> 3,138.00 | AW180: =AR180*3 -> 3,138.00 | AX180: 1 | AY180: 149,310.00 | BN180: 1.00 | BO180: 204,310.00 | BT180: =BN180 -> 1 | BU180: =ROUND(BO180,2) -> 204,310.00
Q181: อบต.ข้าวสาร ผลรวม | R181: บ้านผือ | S181: อุดรธานี | AC181: =SUBTOTAL(9,AC180:AC180) -> 1 | AD181: =SUBTOTAL(9,AD180:AD180) -> 9,954.00 | AE181: =SUBTOTAL(9,AE180:AE180) -> 119,448.00 | AF181: =SUBTOTAL(9,AF180:AF180) -> 29,862.00 | AG181: =SUBTOTAL(9,AG180:AG180) -> 19,908.00 | AQ181: =SUBTOTAL(9,AQ180:AQ180) -> 1 | AR181: =SUBTOTAL(9,AR180:AR180) -> 1,046.00 | AS181: =SUBTOTAL(9,AS180:AS180) -> 12,552.00 | AT181: =SUBTOTAL(9,AT180:AT180) -> 3,138.00 | AU181: =SUBTOTAL(9,AU180:AU180) -> 2,092.00 | AX181: =SUBTOTAL(9,AX180:AX180) -> 1 | AY181: 149,310.00 | AZ181: 0 | BA181: 0 | BB181: 0 | BC181: 0 | BD181: 0 | BE181: 0 | BF181: 0 | BG181: 0 | BH181: 0 | BI181: 0 | BJ181: 0 | BK181: 0 | BO181: 204,310.00 | BT181: =SUBTOTAL(9,BT180:BT180) -> 1 | BU181: =SUBTOTAL(9,BU180:BU180) -> 204,310.00
A182: =A180+1 -> 3 | B182: นาง | C182: ละเอียด | D182: กุตัน | I182: 2568-10-01 | Q182: อบต.เขือน้ำ | R182: บ้านผือ | S182: อุดรธานี | U182: ครู | AC182: 1 | AD182: 10,234.00 | AE182: =AD182*12 -> 122,808.00 | AF182: =AD182*3 -> 30,702.00 | AG182: =AD182*2 -> 20,468.00 | AH182: =AD182*3 -> 30,702.00 | AI182: =AD182*3 -> 30,702.00 | AK182: =AD182+AJ182 -> 10,234.00 | AP182: =11000-AO182-AD182 -> 766.00 | AQ182: 1 | AR182: =AJ182+AL182+AO182+AP182 -> 766.00 | AS182: =AR182*12 -> 9,192.00 | AT182: =AR182*3 -> 2,298.00 | AU182: =AR182*2 -> 1,532.00 | AV182: =AR182*3 -> 2,298.00 | AW182: =AR182*3 -> 2,298.00 | AX182: 1 | AY182: 153,510.00 | BN182: 1.00 | BO182: 208,510.00 | BT182: =BN182 -> 1 | BU182: =ROUND(BO182,2) -> 208,510.00
Q183: อบต.เขือน้ำ ผลรวม | R183: บ้านผือ | S183: อุดรธานี | AC183: =SUBTOTAL(9,AC182:AC182) -> 1 | AD183: =SUBTOTAL(9,AD182:AD182) -> 10,234.00 | AE183: =SUBTOTAL(9,AE182:AE182) -> 122,808.00 | AF183: =SUBTOTAL(9,AF182:AF182) -> 30,702.00 | AG183: =SUBTOTAL(9,AG182:AG182) -> 20,468.00 | AQ183: =SUBTOTAL(9,AQ182:AQ182) -> 1 | AR183: =SUBTOTAL(9,AR182:AR182) -> 766.00 | AS183: =SUBTOTAL(9,AS182:AS182) -> 9,192.00 | AT183: =SUBTOTAL(9,AT182:AT182) -> 2,298.00 | AU183: =SUBTOTAL(9,AU182:AU182) -> 1,532.00 | AX183: =SUBTOTAL(9,AX182:AX182) -> 1 | AY183: 153,510.00 | AZ183: 0 | BA183: 0 | BB183: 0 | BC183: 0 | BD183: 0 | BE183: 0 | BF183: 0 | BG183: 0 | BH183: 0 | BI183: 0 | BJ183: 0 | BK183: 0 | BO183: 208,510.00 | BT183: =SUBTOTAL(9,BT182:BT182) -> 1 | BU183: =SUBTOTAL(9,BU182:BU182) -> 208,510.00
A184: =A182+1 -> 4 | B184: นาง | C184: ประสงค์ | D184: สารถิน | I184: 2568-10-01 | Q184: อบต.จำปาโมง | R184: บ้านผือ | S184: อุดรธานี | U184: ครู | AC184: 1 | AD184: 9,903.60 | AE184: =AD184*12 -> 118,843.20 | AF184: =AD184*3 -> 29,710.80 | AG184: =AD184*2 -> 19,807.20 | AH184: =AD184*3 -> 29,710.80 | AI184: =AD184*3 -> 29,710.80 | AK184: =AD184+AJ184 -> 9,903.60 | AP184: =11000-AO184-AD184 -> 1,096.40 | AQ184: 1 | AR184: =AJ184+AL184+AO184+AP184 -> 1,096.40 | AS184: =AR184*12 -> 13,156.80 | AT184: =AR184*3 -> 3,289.20 | AU184: =AR184*2 -> 2,192.80 | AV184: =AR184*3 -> 3,289.20 | AW184: =AR184*3 -> 3,289.20 | AX184: 1 | AY184: 148,554.00 | BN184: 1.00 | BO184: 203,554.00 | BT184: =BN184 -> 1 | BU184: =ROUND(BO184,2) -> 203,554.00
Q185: อบต.จำปาโมง ผลรวม | R185: บ้านผือ | S185: อุดรธานี | AC185: =SUBTOTAL(9,AC184:AC184) -> 1 | AD185: =SUBTOTAL(9,AD184:AD184) -> 9,903.60 | AE185: =SUBTOTAL(9,AE184:AE184) -> 118,843.20 | AF185: =SUBTOTAL(9,AF184:AF184) -> 29,710.80 | AG185: =SUBTOTAL(9,AG184:AG184) -> 19,807.20 | AQ185: =SUBTOTAL(9,AQ184:AQ184) -> 1 | AR185: =SUBTOTAL(9,AR184:AR184) -> 1,096.40 | AS185: =SUBTOTAL(9,AS184:AS184) -> 13,156.80 | AT185: =SUBTOTAL(9,AT184:AT184) -> 3,289.20 | AU185: =SUBTOTAL(9,AU184:AU184) -> 2,192.80 | AX185: =SUBTOTAL(9,AX184:AX184) -> 1 | AY185: 148,554.00 | AZ185: 0 | BA185: 0 | BB185: 0 | BC185: 0 | BD185: 0 | BE185: 0 | BF185: 0 | BG185: 0 | BH185: 0 | BI185: 0 | BJ185: 0 | BK185: 0 | BO185: 203,554.00 | BT185: =SUBTOTAL(9,BT184:BT184) -> 1 | BU185: =SUBTOTAL(9,BU184:BU184) -> 203,554.00
A186: =A184+1 -> 5 | B186: นาง | C186: สมเภา | D186: เสริญไธสง | I186: 2568-10-01 | Q186: อบต.นาม่วง | R186: ประจักษ์ศิลปาคม | S186: อุดรธานี | U186: ครู | AC186: 1 | AD186: 6,800.20 | AE186: =AD186*12 -> 81,602.40 | AF186: =AD186*3 -> 20,400.60 | AG186: =AD186*2 -> 13,600.40 | AH186: =AD186*3 -> 20,400.60 | AI186: =AD186*3 -> 20,400.60 | AK186: =AD186+AJ186 -> 6,800.20 | AP186: =11000-AO186-AD186 -> 4,199.80 | AQ186: 1 | AR186: =AJ186+AL186+AO186+AP186 -> 4,199.80 | AS186: =AR186*12 -> 50,397.60 | AT186: =AR186*3 -> 12,599.40 | AU186: =AR186*2 -> 8,399.60 | AV186: =AR186*3 -> 12,599.40 | AW186: =AR186*3 -> 12,599.40 | AX186: 1 | AY186: 102,003.00 | BN186: 1.00 | BO186: 157,003.00 | BT186: =BN186 -> 1 | BU186: =ROUND(BO186,2) -> 157,003.00
Q187: อบต.นาม่วง ผลรวม | R187: ประจักษ์ศิลปาคม | S187: อุดรธานี | AC187: =SUBTOTAL(9,AC186:AC186) -> 1 | AD187: =SUBTOTAL(9,AD186:AD186) -> 6,800.20 | AE187: =SUBTOTAL(9,AE186:AE186) -> 81,602.40 | AF187: =SUBTOTAL(9,AF186:AF186) -> 20,400.60 | AG187: =SUBTOTAL(9,AG186:AG186) -> 13,600.40 | AQ187: =SUBTOTAL(9,AQ186:AQ186) -> 1 | AR187: =SUBTOTAL(9,AR186:AR186) -> 4,199.80 | AS187: =SUBTOTAL(9,AS186:AS186) -> 50,397.60 | AT187: =SUBTOTAL(9,AT186:AT186) -> 12,599.40 | AU187: =SUBTOTAL(9,AU186:AU186) -> 8,399.60 | AX187: =SUBTOTAL(9,AX186:AX186) -> 1 | AY187: 102,003.00 | AZ187: 0 | BA187: 0 | BB187: 0 | BC187: 0 | BD187: 0 | BE187: 0 | BF187: 0 | BG187: 0 | BH187: 0 | BI187: 0 | BJ187: 0 | BK187: 0 | BO187: 157,003.00 | BT187: =SUBTOTAL(9,BT186:BT186) -> 1 | BU187: =SUBTOTAL(9,BU186:BU186) -> 157,003.00
A188: =A186+1 -> 6 | B188: นาง | C188: สุวรรณี | D188: สุระมณี | I188: 2568-10-01 | Q188: อบต.ห้วยสามพาด | R188: ประจักษ์ศิลปาคม | S188: อุดรธานี | U188: ครู | AC188: 1 | AD188: 9,352.20 | AE188: =AD188*12 -> 112,226.40 | AF188: =AD188*3 -> 28,056.60 | AG188: =AD188*2 -> 18,704.40 | AH188: =AD188*3 -> 28,056.60 | AI188: =AD188*3 -> 28,056.60 | AK188: =AD188+AJ188 -> 9,352.20 | AP188: =11000-AO188-AD188 -> 1,647.80 | AQ188: 1 | AR188: =AJ188+AL188+AO188+AP188 -> 1,647.80 | AS188: =AR188*12 -> 19,773.60 | AT188: =AR188*3 -> 4,943.40 | AU188: =AR188*2 -> 3,295.60 | AV188: =AR188*3 -> 4,943.40 | AW188: =AR188*3 -> 4,943.40 | AX188: 1 | AY188: 140,283.00 | BN188: 1.00 | BO188: 195,283.00 | BT188: =BN188 -> 1 | BU188: =ROUND(BO188,2) -> 195,283.00
Q189: อบต.ห้วยสามพาด ผลรวม | R189: ประจักษ์ศิลปาคม | S189: อุดรธานี | AC189: =SUBTOTAL(9,AC188:AC188) -> 1 | AD189: =SUBTOTAL(9,AD188:AD188) -> 9,352.20 | AE189: =SUBTOTAL(9,AE188:AE188) -> 112,226.40 | AF189: =SUBTOTAL(9,AF188:AF188) -> 28,056.60 | AG189: =SUBTOTAL(9,AG188:AG188) -> 18,704.40 | AQ189: =SUBTOTAL(9,AQ188:AQ188) -> 1 | AR189: =SUBTOTAL(9,AR188:AR188) -> 1,647.80 | AS189: =SUBTOTAL(9,AS188:AS188) -> 19,773.60 | AT189: =SUBTOTAL(9,AT188:AT188) -> 4,943.40 | AU189: =SUBTOTAL(9,AU188:AU188) -> 3,295.60 | AX189: =SUBTOTAL(9,AX188:AX188) -> 1 | AY189: 140,283.00 | AZ189: 0 | BA189: 0 | BB189: 0 | BC189: 0 | BD189: 0 | BE189: 0 | BF189: 0 | BG189: 0 | BH189: 0 | BI189: 0 | BJ189: 0 | BK189: 0 | BO189: 195,283.00 | BT189: =SUBTOTAL(9,BT188:BT188) -> 1 | BU189: =SUBTOTAL(9,BU188:BU188) -> 195,283.00
A190: =A188+1 -> 7 | B190: นาง | C190: สิริกัญญา | D190: สาลีจันทร์ | I190: 2568-10-01 | Q190: อบต.บ้านจั่น | R190: เมืองอุดรธานี | S190: อุดรธานี | U190: ครู | AC190: 1 | AD190: 9,651.60 | AE190: =AD190*12 -> 115,819.20 | AF190: =AD190*3 -> 28,954.80 | AG190: =AD190*2 -> 19,303.20 | AH190: =AD190*3 -> 28,954.80 | AI190: =AD190*3 -> 28,954.80 | AK190: =AD190+AJ190 -> 9,651.60 | AP190: =11000-AO190-AD190 -> 1,348.40 | AQ190: 1 | AR190: =AJ190+AL190+AO190+AP190 -> 1,348.40 | AS190: =AR190*12 -> 16,180.80 | AT190: =AR190*3 -> 4,045.20 | AU190: =AR190*2 -> 2,696.80 | AV190: =AR190*3 -> 4,045.20 | AW190: =AR190*3 -> 4,045.20 | AX190: 1 | AY190: 144,774.00 | BN190: 1.00 | BO190: 199,774.00 | BT190: =BN190 -> 1 | BU190: =ROUND(BO190,2) -> 199,774.00
Q191: อบต.บ้านจั่น ผลรวม | R191: เมืองอุดรธานี | S191: อุดรธานี | AC191: =SUBTOTAL(9,AC190:AC190) -> 1 | AD191: =SUBTOTAL(9,AD190:AD190) -> 9,651.60 | AE191: =SUBTOTAL(9,AE190:AE190) -> 115,819.20 | AF191: =SUBTOTAL(9,AF190:AF190) -> 28,954.80 | AG191: =SUBTOTAL(9,AG190:AG190) -> 19,303.20 | AQ191: =SUBTOTAL(9,AQ190:AQ190) -> 1 | AR191: =SUBTOTAL(9,AR190:AR190) -> 1,348.40 | AS191: =SUBTOTAL(9,AS190:AS190) -> 16,180.80 | AT191: =SUBTOTAL(9,AT190:AT190) -> 4,045.20 | AU191: =SUBTOTAL(9,AU190:AU190) -> 2,696.80 | AX191: =SUBTOTAL(9,AX190:AX190) -> 1 | AY191: 144,774.00 | AZ191: 0 | BA191: 0 | BB191: 0 | BC191: 0 | BD191: 0 | BE191: 0 | BF191: 0 | BG191: 0 | BH191: 0 | BI191: 0 | BJ191: 0 | BK191: 0 | BO191: 199,774.00 | BT191: =SUBTOTAL(9,BT190:BT190) -> 1 | BU191: =SUBTOTAL(9,BU190:BU190) -> 199,774.00
A192: =A190+1 -> 8 | B192: นาง | C192: อภิญญา | D192: แก้วเชียงกุล | I192: 2568-10-01 | Q192: อบต.บ้านเชียง | R192: หนองหาน | S192: อุดรธานี | U192: ครู | AC192: 1 | AD192: 6,716.60 | AE192: =AD192*12 -> 80,599.20 | AF192: =AD192*3 -> 20,149.80 | AG192: =AD192*2 -> 13,433.20 | AH192: =AD192*3 -> 20,149.80 | AI192: =AD192*3 -> 20,149.80 | AK192: =AD192+AJ192 -> 6,716.60 | AP192: =11000-AO192-AD192 -> 4,283.40 | AQ192: 1 | AR192: =AJ192+AL192+AO192+AP192 -> 4,283.40 | AS192: =AR192*12 -> 51,400.80 | AT192: =AR192*3 -> 12,850.20 | AU192: =AR192*2 -> 8,566.80 | AV192: =AR192*3 -> 12,850.20 | AW192: =AR192*3 -> 12,850.20 | AX192: 1 | AY192: 100,749.00 | BN192: 1.00 | BO192: 155,749.00 | BT192: =BN192 -> 1 | BU192: =ROUND(BO192,2) -> 155,749.00
Q193: อบต.บ้านเชียง ผลรวม | R193: หนองหาน | S193: อุดรธานี | AC193: =SUBTOTAL(9,AC192:AC192) -> 1 | AD193: =SUBTOTAL(9,AD192:AD192) -> 6,716.60 | AE193: =SUBTOTAL(9,AE192:AE192) -> 80,599.20 | AF193: =SUBTOTAL(9,AF192:AF192) -> 20,149.80 | AG193: =SUBTOTAL(9,AG192:AG192) -> 13,433.20 | AQ193: =SUBTOTAL(9,AQ192:AQ192) -> 1 | AR193: =SUBTOTAL(9,AR192:AR192) -> 4,283.40 | AS193: =SUBTOTAL(9,AS192:AS192) -> 51,400.80 | AT193: =SUBTOTAL(9,AT192:AT192) -> 12,850.20 | AU193: =SUBTOTAL(9,AU192:AU192) -> 8,566.80 | AX193: =SUBTOTAL(9,AX192:AX192) -> 1 | AY193: 100,749.00 | AZ193: 0 | BA193: 0 | BB193: 0 | BC193: 0 | BD193: 0 | BE193: 0 | BF193: 0 | BG193: 0 | BH193: 0 | BI193: 0 | BJ193: 0 | BK193: 0 | BT193: =SUBTOTAL(9,BT192:BT192) -> 1 | BU193: =SUBTOTAL(9,BU192:BU192) -> 155,749.00
S194: อุดรธานี ผลรวม | AC194: =SUBTOTAL(9,AC178:AC192) -> 7 | AD194: =SUBTOTAL(9,AD178:AD192) -> 62,612.20 | AE194: =SUBTOTAL(9,AE178:AE192) -> 751,346.40 | AF194: =SUBTOTAL(9,AF178:AF192) -> 187,836.60 | AG194: =SUBTOTAL(9,AG178:AG192) -> 125,224.40 | AQ194: =SUBTOTAL(9,AQ178:AQ192) -> 7 | AR194: =SUBTOTAL(9,AR178:AR192) -> 14,387.80 | AS194: =SUBTOTAL(9,AS178:AS192) -> 172,653.60 | AT194: =SUBTOTAL(9,AT178:AT192) -> 43,163.40 | AU194: =SUBTOTAL(9,AU178:AU192) -> 28,775.60 | AX194: =SUBTOTAL(9,AX178:AX192) -> 7 | AY194: 939,183.00 | AZ194: 0 | BA194: 0 | BB194: 0 | BC194: 0 | BD194: 0 | BE194: 0 | BF194: 1 | BG194: 326,810.00 | BH194: 0 | BI194: 0 | BJ194: 0 | BK194: 0 | BT194: =SUBTOTAL(9,BT178:BT192) -> 8 | BU194: =SUBTOTAL(9,BU178:BU192) -> 1,650,993.00
V1792: 2502-04-04

Sheet บัญชีสรุป อปท.
A1: บัญชีรายละเอียดแจ้งการจัดสรรงบประมาณรายจ่ายประจำปีงบประมาณ พ.ศ. 2569
A2: เงินอุดหนุนทั่วไป เงินอุดหนุนสำหรับการจัดการศึกษาภาคบังคับ (บำเหน็จ บำนาญ) ไตรมาสที่ 2 (เดือนมกราคม - กุมภาพันธ์ 2569) เพิ่มเติม
A4: ที่ | B4: คำนำ | C4: ชื่อตัว | D4: ชื่อสกุล | E4: เลขบัตร | F4: ว/ด/ป เกิด | G4: ว/ด/ป | H4: ว/ด/ป | I4: ว/ด/ป | J4: เวลาราชการ | K4: เวลาราชการ | L4: เวลาก่อน | M4: รับบำนาญเหตุ | N4: รหัสท้องถิ่นA | O4: ท้องถิ่นที่เข้า | P4: รหัสท้องถิ่นB | Q4: ท้องถิ่นที่รับ | R4: อำเภอ | S4: จังหวัด | T4: ประเภท | U4: ตำแหน่งที่ | V4: ประเภทการรับ | W4: ว/ด/ป | AC4: เงินบำนาญ | AE4: เงินบำนาญ | AF4: เงินบำนาญ | AG4: เงินบำนาญ | AH4: คำนวนเงินบำนาญ | AI4: คำนวนเงินบำนาญ | AJ4: กรณีไม่มีสิทธิได้รับ ให้ลบข้อมูลออก | AQ4: ช.ค.บ.ฉบับที่ 1-18 | AS4: เงิน ช.ค.บ. | AT4: เงิน ช.ค.บ. | AU4: เงิน ช.ค.บ. | AV4: คำนวณเงิน ช.ค.บ. | AW4: คำนวณเงิน ช.ค.บ. | AX4: บำเหน็จดำรงชีพ | AZ4: บำเหน็จดำรงชีพ | BB4: บำเหน็จดำรงชีพ | BD4: เงินบำเหน็จปกติ | BF4: เงินบำเหน็จตกทอด | BH4: ตกเบิกเงิน | BJ4: เงินบำเหน็จตกทอดและ | BL4: เงินเหลือจ่าย | BN4: แจ้งยอดเงินจัดสรร | BP4: แจ้งยอดเงินจัดสรร | BR4: แจ้งยอดเงินจัดสรร | BT4: แจ้งยอดเงินจัดสรร | BV4: จัดสรรเงิน
B5: หน้าชื่อ | E5: ประจำตัว | G5: ที่รับราชการ | H5: โอนมา อปท. | I5: ที่ออก | J5: สำหรับคำนวณ | K5: สำหรับคำนวณ | L5: ถ่ายโอน | O5: รับราชการ | Q5: บำนาญ | T5: ข้าราชการ | U5: รับบำนาญ | W5: ที่ถึงแก่กรรม | X5: เฉลี่ย | Y5: เงินเดือน | Z5: เงินเดือน | AA5: พสร. | AB5: ปี | AC5: ต่อเดือน | AE5: ไตรมาส 1-4 | AF5: จัดสรรไตรมาส 1 | AG5: จัดสรรไตรมาส 2 | AH5: จัดสรรไตรมาส 3 | AI5: จัดสรรไตรมาส 4 | AJ5: ช.ค.บ. | AK5: รวมบำนาญ | AL5: ฉบับที่ 15 | AM5: คำนวณ | AN5: ช.ค.บ. | AO5: ช.ค.บ. | AP5: ช.ค.บ. | AQ5: ต่อเดือน | AS5: ไตรมาส 1-4 | AT5: จัดสรรไตรมาส 1 | AU5: จัดสรรไตรมาส 2 | AV5: จัดสรรไตรมาส 3 | AW5: จัดสรรไตรมาส 4 | AX5: 200,000 แรก | AZ5: อายุ 65 ปี | BB5: อายุ 70 ปี | BF5: (ตายในตำแหน่ง) | BJ5: เงินช่วยพิเศษ (บำนาญตาย) | BN5: ไตรมาสที่ 1 (ต.ค. - ธ.ค. 68) | BP5: ไตรมาสที่ 2 (ม.ค - มี.ค.69) | BR5: ไตรมาสที่ 3 (เม.ย. - มิ.ย. 69) | BT5: ไตรมาสที่ 4 (ก.ค. - ก.ย. 69) | BV5: ไตรมาสที่ 2 (ม.ค - ก.พ.69) เพิ่มเติม
E6: ประชาชน | I6: จากราชการ | J6: เต็ม (ปี) | K6: ทศนิยม (ปี) | L6: (ปี) | X6: 60 เดือน | Y6: (เดิม) | Z6: (ปรับใหม่) | AB6: งบประมาณ | AC6: จำนวน | AD6: จำนวนเงิน | AE6: (ต.ค.68 - ก.ย.69) | AF6: (ต.ค. - ธ.ค.68) | AG6: (ม.ค. - ก.พ.69) | AH6: (เม.ย. - มิ.ย.69) | AI6: (ก.ค. - ก.ย.69) | AJ6: ฉบับที่ 1-14 | AK6: และ ช.ค.บ. | AL6: ต่ำกว่า 9,000 | AM6: ฉบับที่ 16 | AN6: ฉบับที่ 16 | AO6: ฉบับที่ 17 | AP6: ฉบับที่ 18 | AQ6: จำนวน | AR6: จำนวนเงิน | AS6: (ต.ค.68 - ก.ย.69) | AT6: (ต.ค. - ธ.ค.68) | AU6: (ม.ค. - ก.พ.69) | AV6: (เม.ย. - มิ.ย.69) | AW6: (ก.ค. - ก.ย.69) | AX6: จำนวน | AY6: จำนวนเงิน | AZ6: จำนวน | BA6: จำนวนเงิน | BB6: จำนวน | BC6: จำนวนเงิน | BD6: จำนวน | BE6: จำนวนเงิน | BF6: จำนวน | BG6: จำนวนเงิน | BH6: จำนวน | BI6: จำนวนเงิน | BJ6: จำนวน | BK6: จำนวนเงิน | BL6: จำนวน | BM6: จำนวนเงิน | BN6: จำนวน | BO6: จำนวนเงิน | BP6: จำนวน | BQ6: จำนวนเงิน | BR6: จำนวน | BS6: จำนวนเงิน | BT6: จำนวน | BU6: จำนวนเงิน | BV6: จำนวน | BW6: จำนวนเงิน
E7: ประชาชน | J7: เต็ม (ปี) | K7: ทศนิยม (ปี) | L7: (ปี) | AC7: (ราย) | AD7: (บาท) | AE7: 12 เดือน | AF7: 3 เดือน | AG7: 2 เดือน | AH7: 3 เดือน | AI7: 3 เดือน | AN7: เพิ่ม 4 % | AO7: ต่ำกว่า 10,000 | AP7: ต่ำกว่า 11,000 | AQ7: (ราย) | AR7: (บาท) | AS7: 12 เดือน | AT7: 3 เดือน | AU7: 2 เดือน | AV7: 3 เดือน | AW7: 3 เดือน | AX7: (ราย) | AY7: (บาท) | AZ7: (ราย) | BA7: (บาท) | BB7: (ราย) | BC7: (บาท) | BD7: (ราย) | BE7: (บาท) | BF7: (ราย) | BG7: (บาท) | BH7: (ราย) | BI7: (บาท) | BJ7: (ราย) | BK7: (บาท) | BL7: (ราย) | BM7: (บาท) | BN7: (ราย) | BO7: (บาท) | BP7: (ราย) | BQ7: (บาท) | BR7: (ราย) | BS7: (บาท) | BT7: (ราย) | BU7: (บาท) | BV7: (ราย) | BW7: (บาท)
A8: =A7+1 -> 1 | Q8: อบต.เขาเขน | R8: ปลายพระยา | S8: กระบี่ | AC8: 1 | AD8: 10,777.20 | AE8: 129,326.40 | AF8: 32,331.60 | AG8: 21,554.40 | AQ8: 1 | AR8: 222.80 | AS8: 2,673.60 | AT8: 668.40 | AU8: 445.60 | AX8: 1 | AY8: 161,658.00 | AZ8: 0 | BA8: 0 | BB8: 0 | BC8: 0 | BD8: 0 | BE8: 0 | BF8: 0 | BG8: 0 | BH8: 0 | BI8: 0 | BJ8: 0 | BK8: 0 | BL8: 0 | BM8: 0 | BT8: 1.00 | BU8: 282,658.00 | BV8: 1 | BW8: 216,658.00
S9: กระบี่ ผลรวม | AC9: =SUBTOTAL(9,AC8:AC8) -> 1 | AD9: =SUBTOTAL(9,AD8:AD8) -> 10,777.20 | AE9: =SUBTOTAL(9,AE8:AE8) -> 129,326.40 | AF9: =SUBTOTAL(9,AF8:AF8) -> 32,331.60 | AG9: =SUBTOTAL(9,AG8:AG8) -> 21,554.40 | AQ9: =SUBTOTAL(9,AQ8:AQ8) -> 1 | AR9: =SUBTOTAL(9,AR8:AR8) -> 222.80 | AS9: =SUBTOTAL(9,AS8:AS8) -> 2,673.60 | AT9: =SUBTOTAL(9,AT8:AT8) -> 668.40 | AU9: =SUBTOTAL(9,AU8:AU8) -> 445.60 | AX9: =SUBTOTAL(9,AX8:AX8) -> 1 | AY9: 161,658.00 | AZ9: 0 | BA9: 0 | BB9: 0 | BC9: 0 | BD9: 0 | BE9: 0 | BF9: 0 | BG9: 0 | BH9: 0 | BI9: 0 | BJ9: 0 | BK9: 0 | BL9: 0 | BM9: 0 | BV9: =SUBTOTAL(9,BV8:BV8) -> 1 | BW9: =SUBTOTAL(9,BW8:BW8) -> 216,658.00
A10: 1 | Q10: อบต.แจนแลน | R10: กุฉินารายณ์ | S10: กาฬสินธุ์ | BH10: 5 | BI10: 266,119.00 | BV10: =BH10 -> 5 | BW10: 266,119.00
A11: =A10+1 -> 2 | Q11: อบต.หนองห้าง | R11: กุฉินารายณ์ | S11: กาฬสินธุ์ | BH11: 1 | BI11: 18,802.00 | BV11: 1 | BW11: 18,802.00
A12: =A11+1 -> 3 | Q12: อบต.เหล่าไฮงาม | R12: กุฉินารายณ์ | S12: กาฬสินธุ์ | BH12: 3 | BI12: 169,010.00 | BV12: 3 | BW12: 169,010.00
A13: =A12+1 -> 4 | Q13: อบต.สำราญใต้ | R13: สามชัย | S13: กาฬสินธุ์ | AC13: 0 | AD13: 0 | AE13: 0 | AF13: 0 | AG13: 0 | AQ13: 0 | AR13: 0 | AS13: 0 | AT13: 0 | AU13: 0 | AX13: 0 | AY13: 0 | AZ13: 0 | BA13: 0 | BB13: 0 | BC13: 0 | BD13: 1 | BE13: 461,500.00 | BF13: 0 | BG13: 0 | BH13: 0 | BI13: 0 | BJ13: 0 | BK13: 0 | BL13: 0 | BM13: 0 | BT13: 1.00 | BU13: 461,500.00 | BV13: 1 | BW13: 461,500.00
S14: กาฬสินธุ์ ผลรวม | AC14: =SUBTOTAL(9,AC10:AC13) -> 0 | AD14: =SUBTOTAL(9,AD10:AD13) -> 0 | AE14: =SUBTOTAL(9,AE10:AE13) -> 0 | AF14: =SUBTOTAL(9,AF10:AF13) -> 0 | AG14: =SUBTOTAL(9,AG10:AG13) -> 0 | AQ14: =SUBTOTAL(9,AQ10:AQ13) -> 0 | AR14: =SUBTOTAL(9,AR10:AR13) -> 0 | AS14: =SUBTOTAL(9,AS10:AS13) -> 0 | AT14: =SUBTOTAL(9,AT10:AT13) -> 0 | AU14: =SUBTOTAL(9,AU10:AU13) -> 0 | AX14: =SUBTOTAL(9,AX10:AX13) -> 0 | AY14: 0 | AZ14: 0 | BA14: 0 | BB14: 0 | BC14: 0 | BD14: 1 | BE14: 461,500.00 | BF14: 0 | BG14: 0 | BH14: 9 | BI14: 453,931.00 | BJ14: 0 | BK14: 0 | BL14: 0 | BM14: 0 | BV14: =SUBTOTAL(9,BV10:BV13) -> 10 | BW14: =SUBTOTAL(9,BW10:BW13) -> 915,431.00
A15: 1 | Q15: อบต.คณฑี | R15: เมืองกำแพงเพชร | S15: กำแพงเพชร | BH15: 1 | BI15: 966.00 | BV15: =BH15 -> 1 | BW15: 966.00
A16: =A15+1 -> 2 | Q16: อบต.นครชุม | R16: เมืองกำแพงเพชร | S16: กำแพงเพชร | BH16: 1 | BI16: 140,116.00 | BV16: 1 | BW16: 140,116.00
A17: =A16+1 -> 3 | Q17: อบต.วังทอง | R17: เมืองกำแพงเพชร | S17: กำแพงเพชร | BH17: 2 | BI17: 22,000.00 | BV17: 2 | BW17: 22,000.00
S18: กำแพงเพชร ผลรวม | AC18: =SUBTOTAL(9,AC15:AC17) -> 0 | AD18: =SUBTOTAL(9,AD15:AD17) -> 0 | AE18: =SUBTOTAL(9,AE15:AE17) -> 0 | AF18: =SUBTOTAL(9,AF15:AF17) -> 0 | AG18: =SUBTOTAL(9,AG15:AG17) -> 0 | AQ18: =SUBTOTAL(9,AQ15:AQ17) -> 0 | AR18: =SUBTOTAL(9,AR15:AR17) -> 0 | AS18: =SUBTOTAL(9,AS15:AS17) -> 0 | AT18: =SUBTOTAL(9,AT15:AT17) -> 0 | AU18: =SUBTOTAL(9,AU15:AU17) -> 0 | AX18: =SUBTOTAL(9,AX15:AX17) -> 0 | AY18: 0 | AZ18: 0 | BA18: 0 | BB18: 0 | BC18: 0 | BD18: 0 | BE18: 0 | BF18: 0 | BG18: 0 | BH18: 4 | BI18: 163,082.00 | BJ18: 0 | BK18: 0 | BL18: 0 | BM18: 0 | BV18: =SUBTOTAL(9,BV15:BV17) -> 4 | BW18: =SUBTOTAL(9,BW15:BW17) -> 163,082.00
A19: 1 | Q19: อบต.ลอมคอม | R19: พล | S19: ขอนแก่น | AC19: 1 | AD19: 9,338.00 | AE19: 112,056.00 | AF19: 28,014.00 | AG19: 18,676.00 | AQ19: 1 | AR19: 1,662.00 | AS19: 19,944.00 | AT19: 4,986.00 | AU19: 3,324.00 | AX19: 1 | AY19: 140,070.00 | AZ19: 0 | BA19: 0 | BB19: 0 | BC19: 0 | BD19: 0 | BE19: 0 | BF19: 0 | BG19: 0 | BH19: 0 | BI19: 0 | BJ19: 0 | BK19: 0 | BL19: 0 | BM19: 0 | BT19: 1.00 | BU19: 261,070.00 | BV19: 1 | BW19: 195,070.00
A20: =A19+1 -> 2 | Q20: อบต.นางาม | R20: มัญจาคีรี | S20: ขอนแก่น | BH20: 1 | BI20: 22,000.00 | BV20: =BH20 -> 1 | BW20: =BI20 -> 22,000.00
A21: =A20+1 -> 3 | Q21: อบต.ท่านางแนว | R21: แวงน้อย | S21: ขอนแก่น | AC21: 1 | AD21: 6,591.20 | AE21: 79,094.40 | AF21: 19,773.60 | AG21: 13,182.40 | AQ21: 1 | AR21: 4,408.80 | AS21: 52,905.60 | AT21: 13,226.40 | AU21: 8,817.60 | AX21: 1 | AY21: 98,868.00 | AZ21: 0 | BA21: 0 | BB21: 0 | BC21: 0 | BD21: 0 | BE21: 0 | BF21: 0 | BG21: 0 | BH21: 0 | BI21: 0 | BJ21: 0 | BK21: 0 | BL21: 0 | BM21: 0 | BT21: 1.00 | BU21: 219,868.00 | BV21: 1 | BW21: 153,868.00
A22: =A21+1 -> 4 | Q22: อบต.ศรีสุข | R22: สีชมพู | S22: ขอนแก่น | AC22: 1 | AD22: 9,757.80 | AE22: 117,093.60 | AF22: 29,273.40 | AG22: 19,515.60 | AQ22: 1 | AR22: 1,242.20 | AS22: 14,906.40 | AT22: 3,726.60 | AU22: 2,484.40 | AX22: 1 | AY22: 146,367.00 | AZ22: 0 | BA22: 0 | BB22: 0 | BC22: 0 | BD22: 0 | BE22: 0 | BF22: 0 | BG22: 0 | BH22: 0 | BI22: 0 | BJ22: 0 | BK22: 0 | BL22: 0 | BM22: 0 | BT22: 1.00 | BU22: 267,367.00 | BV22: 1 | BW22: 201,367.00
S23: ขอนแก่น ผลรวม | AC23: =SUBTOTAL(9,AC19:AC22) -> 3 | AD23: =SUBTOTAL(9,AD19:AD22) -> 25,687.00 | AE23: =SUBTOTAL(9,AE19:AE22) -> 308,244.00 | AF23: =SUBTOTAL(9,AF19:AF22) -> 77,061.00 | AG23: =SUBTOTAL(9,AG19:AG22) -> 51,374.00 | AQ23: =SUBTOTAL(9,AQ19:AQ22) -> 3 | AR23: =SUBTOTAL(9,AR19:AR22) -> 7,313.00 | AS23: =SUBTOTAL(9,AS19:AS22) -> 87,756.00 | AT23: =SUBTOTAL(9,AT19:AT22) -> 21,939.00 | AU23: =SUBTOTAL(9,AU19:AU22) -> 14,626.00 | AX23: =SUBTOTAL(9,AX19:AX22) -> 3 | AY23: 385,305.00 | AZ23: 0 | BA23: 0 | BB23: 0 | BC23: 0 | BD23: 0 | BE23: 0 | BF23: 0 | BG23: 0 | BH23: 1 | BI23: 22,000.00 | BJ23: 0 | BK23: 0 | BL23: 0 | BM23: 0 | BV23: =SUBTOTAL(9,BV19:BV22) -> 4 | BW23: =SUBTOTAL(9,BW19:BW22) -> 572,305.00
A24: 1 | Q24: อบต.นาเริก | R24: พนัสนิคม | S24: ชลบุรี | AC24: 1 | AD24: 6,941.00 | AE24: 83,292.00 | AF24: 20,823.00 | AG24: 13,882.00 | AQ24: 1 | AR24: 4,059.00 | AS24: 48,708.00 | AT24: 12,177.00 | AU24: 8,118.00 | AX24: 1 | AY24: 104,115.00 | AZ24: 0 | BA24: 0 | BB24: 0 | BC24: 0 | BD24: 0 | BE24: 0 | BF24: 0 | BG24: 0 | BH24: 0 | BI24: 0 | BJ24: 0 | BK24: 0 | BL24: 0 | BM24: 0 | BT24: 1.00 | BU24: 225,115.00 | BV24: 1 | BW24: 159,115.00
A25: =A24+1 -> 2 | Q25: อบต.หนองปรือ | R25: พนัสนิคม | S25: ชลบุรี | AC25: 1 | AD25: 7,920.00 | AE25: 95,040.00 | AF25: 23,760.00 | AG25: 15,840.00 | AQ25: 1 | AR25: 3,080.00 | AS25: 36,960.00 | AT25: 9,240.00 | AU25: 6,160.00 | AX25: 1 | AY25: 118,800.00 | AZ25: 0 | BA25: 0 | BB25: 0 | BC25: 0 | BD25: 0 | BE25: 0 | BF25: 0 | BG25: 0 | BH25: 0 | BI25: 0 | BJ25: 0 | BK25: 0 | BL25: 0 | BM25: 0 | BT25: 1.00 | BU25: 239,800.00 | BV25: 1 | BW25: 173,800.00
S26: ชลบุรี ผลรวม | AC26: =SUBTOTAL(9,AC24:AC25) -> 2 | AD26: =SUBTOTAL(9,AD24:AD25) -> 14,861.00 | AE26: =SUBTOTAL(9,AE24:AE25) -> 178,332.00 | AF26: =SUBTOTAL(9,AF24:AF25) -> 44,583.00 | AG26: =SUBTOTAL(9,AG24:AG25) -> 29,722.00 | AQ26: =SUBTOTAL(9,AQ24:AQ25) -> 2 | AR26: =SUBTOTAL(9,AR24:AR25) -> 7,139.00 | AS26: =SUBTOTAL(9,AS24:AS25) -> 85,668.00 | AT26: =SUBTOTAL(9,AT24:AT25) -> 21,417.00 | AU26: =SUBTOTAL(9,AU24:AU25) -> 14,278.00 | AX26: =SUBTOTAL(9,AX24:AX25) -> 2 | AY26: 222,915.00 | AZ26: 0 | BA26: 0 | BB26: 0 | BC26: 0 | BD26: 0 | BE26: 0 | BF26: 0 | BG26: 0 | BH26: 0 | BI26: 0 | BJ26: 0 | BK26: 0 | BL26: 0 | BM26: 0 | BV26: =SUBTOTAL(9,BV24:BV25) -> 2 | BW26: =SUBTOTAL(9,BW24:BW25) -> 332,915.00
A27: 1 | Q27: อบต.ตับเต่า | R27: เทิง | S27: เชียงราย | AC27: 1 | AD27: 10,432.80 | AE27: 125,193.60 | AF27: 31,298.40 | AG27: 20,865.60 | AQ27: 1 | AR27: 567.20 | AS27: 6,806.40 | AT27: 1,701.60 | AU27: 1,134.40 | AX27: 1 | AY27: 156,492.00 | AZ27: 0 | BA27: 0 | BB27: 0 | BC27: 0 | BD27: 0 | BE27: 0 | BF27: 0 | BG27: 0 | BH27: 0 | BI27: 0 | BJ27: 0 | BK27: 0 | BL27: 0 | BM27: 0 | BT27: 0 | BU27: 277,492.00 | BV27: 1 | BW27: 211,492.00
S28: เชียงราย ผลรวม | AC28: =SUBTOTAL(9,AC27:AC27) -> 1 | AD28: =SUBTOTAL(9,AD27:AD27) -> 10,432.80 | AE28: =SUBTOTAL(9,AE27:AE27) -> 125,193.60 | AF28: =SUBTOTAL(9,AF27:AF27) -> 31,298.40 | AG28: =SUBTOTAL(9,AG27:AG27) -> 20,865.60 | AQ28: =SUBTOTAL(9,AQ27:AQ27) -> 1 | AR28: =SUBTOTAL(9,AR27:AR27) -> 567.20 | AS28: =SUBTOTAL(9,AS27:AS27) -> 6,806.40 | AT28: =SUBTOTAL(9,AT27:AT27) -> 1,701.60 | AU28: =SUBTOTAL(9,AU27:AU27) -> 1,134.40 | AX28: =SUBTOTAL(9,AX27:AX27) -> 1 | AY28: 156,492.00 | AZ28: 0 | BA28: 0 | BB28: 0 | BC28: 0 | BD28: 0 | BE28: 0 | BF28: 0 | BG28: 0 | BH28: 0 | BI28: 0 | BJ28: 0 | BK28: 0 | BL28: 0 | BM28: 0 | BV28: =SUBTOTAL(9,BV27:BV27) -> 1 | BW28: =SUBTOTAL(9,BW27:BW27) -> 211,492.00
A29: 1 | Q29: อบต.แม่คะ | R29: ฝาง | S29: เชียงใหม่ | AC29: 0 | AD29: 0 | AE29: 0 | AF29: 0 | AG29: 0 | AQ29: 0 | AR29: 0 | AS29: 0 | AT29: 0 | AU29: 0 | AX29: 1 | AY29: 3,588.00 | AZ29: 0 | BA29: 0 | BB29: 0 | BC29: 0 | BD29: 0 | BE29: 0 | BF29: 0 | BG29: 0 | BH29: 0 | BI29: 0 | BJ29: 0 | BK29: 0 | BL29: 0 | BM29: 0 | BT29: 1.00 | BU29: 3,588.00 | BV29: 1 | BW29: 3,588.00
A30: =A29+1 -> 2 | Q30: อบต.แม่สูน | R30: ฝาง | S30: เชียงใหม่ | BH30: 3 | BI30: 257,211.00 | BV30: =BH30 -> 3 | BW30: =BI30 -> 257,211.00
A31: =A30+1 -> 3 | Q31: อบต.เวียง | R31: ฝาง | S31: เชียงใหม่ | AC31: 0 | AD31: 0 | AE31: 0 | AF31: 0 | AG31: 0 | AQ31: 0 | AR31: 0 | AS31: 0 | AT31: 0 | AU31: 0 | AX31: 1 | AY31: 4,410.00 | AZ31: 0 | BA31: 0 | BB31: 0 | BC31: 0 | BD31: 0 | BE31: 0 | BF31: 0 | BG31: 0 | BH31: 0 | BI31: 0 | BJ31: 0 | BK31: 0 | BL31: 0 | BM31: 0 | BT31: 1.00 | BU31: 4,410.00 | BV31: 1 | BW31: 4,410.00
A32: =A31+1 -> 4 | Q32: อบต.แม่นาจร | R32: แม่แจ่ม | S32: เชียงใหม่ | AC32: 0 | AD32: 0 | AE32: 0 | AF32: 0 | AG32: 0 | AQ32: 0 | AR32: 0 | AS32: 0 | AT32: 0 | AU32: 0 | AX32: 1 | AY32: 2,343.00 | AZ32: 0 | BA32: 0 | BB32: 0 | BC32: 0 | BD32: 0 | BE32: 0 | BF32: 0 | BG32: 0 | BH32: 0 | BI32: 0 | BJ32: 0 | BK32: 0 | BL32: 0 | BM32: 0 | BT32: 1.00 | BU32: 2,343.00 | BV32: 1 | BW32: 2,343.00
A33: =A32+1 -> 5 | Q33: อบต.ทุ่งรวงทอง | R33: แม่วาง | S33: เชียงใหม่ | AC33: 0 | AD33: 0 | AE33: 0 | AF33: 0 | AG33: 0 | AQ33: 0 | AR33: 0 | AS33: 0 | AT33: 0 | AU33: 0 | AX33: 1 | AY33: 2,904.00 | AZ33: 0 | BA33: 0 | BB33: 0 | BC33: 0 | BD33: 0 | BE33: 0 | BF33: 0 | BG33: 0 | BH33: 0 | BI33: 0 | BJ33: 0 | BK33: 0 | BL33: 0 | BM33: 0 | BT33: 1.00 | BU33: 2,904.00 | BV33: 1 | BW33: 2,904.00
S34: เชียงใหม่ ผลรวม | AC34: =SUBTOTAL(9,AC29:AC33) -> 0 | AD34: =SUBTOTAL(9,AD29:AD33) -> 0 | AE34: =SUBTOTAL(9,AE29:AE33) -> 0 | AF34: =SUBTOTAL(9,AF29:AF33) -> 0 | AG34: =SUBTOTAL(9,AG29:AG33) -> 0 | AQ34: =SUBTOTAL(9,AQ29:AQ33) -> 0 | AR34: =SUBTOTAL(9,AR29:AR33) -> 0 | AS34: =SUBTOTAL(9,AS29:AS33) -> 0 | AT34: =SUBTOTAL(9,AT29:AT33) -> 0 | AU34: =SUBTOTAL(9,AU29:AU33) -> 0 | AX34: =SUBTOTAL(9,AX29:AX33) -> 4 | AY34: 13,245.00 | AZ34: 0 | BA34: 0 | BB34: 0 | BC34: 0 | BD34: 0 | BE34: 0 | BF34: 0 | BG34: 0 | BH34: 3 | BI34: 257,211.00 | BJ34: 0 | BK34: 0 | BL34: 0 | BM34: 0 | BV34: =SUBTOTAL(9,BV29:BV33) -> 7 | BW34: =SUBTOTAL(9,BW29:BW33) -> 270,456.00
A35: 1 | Q35: อบต.เขาวิเศษ | R35: วังวิเศษ | S35: ตรัง | AC35: 0 | AD35: 0 | AE35: 0 | AF35: 0 | AG35: 0 | AQ35: 0 | AR35: 0 | AS35: 0 | AT35: 0 | AU35: 0 | AX35: 0 | AY35: 0 | AZ35: 0 | BA35: 0 | BB35: 0 | BC35: 0 | BD35: 0 | BE35: 0 | BF35: 0 | BG35: 0 | BH35: 0 | BI35: 0 | BJ35: 1 | BK35: 264,693.00 | BL35: 0 | BM35: 0 | BT35: 1.00 | BU35: 264,693.00 | BV35: 1 | BW35: 264,693.00
S36: ตรัง ผลรวม | AC36: =SUBTOTAL(9,AC35:AC35) -> 0 | AD36: =SUBTOTAL(9,AD35:AD35) -> 0 | AE36: =SUBTOTAL(9,AE35:AE35) -> 0 | AF36: =SUBTOTAL(9,AF35:AF35) -> 0 | AG36: =SUBTOTAL(9,AG35:AG35) -> 0 | AQ36: =SUBTOTAL(9,AQ35:AQ35) -> 0 | AR36: =SUBTOTAL(9,AR35:AR35) -> 0 | AS36: =SUBTOTAL(9,AS35:AS35) -> 0 | AT36: =SUBTOTAL(9,AT35:AT35) -> 0 | AU36: =SUBTOTAL(9,AU35:AU35) -> 0 | AX36: =SUBTOTAL(9,AX35:AX35) -> 0 | AY36: 0 | AZ36: 0 | BA36: 0 | BB36: 0 | BC36: 0 | BD36: 0 | BE36: 0 | BF36: 0 | BG36: 0 | BH36: 0 | BI36: 0 | BJ36: 1 | BK36: 264,693.00 | BL36: 0 | BM36: 0 | BV36: =SUBTOTAL(9,BV35:BV35) -> 1 | BW36: =SUBTOTAL(9,BW35:BW35) -> 264,693.00
A37: 1 | Q37: อบต.พุ่มแก | R37: นาแก | S37: นครพนม | AC37: 1 | AD37: 6,373.40 | AE37: 76,480.80 | AF37: 19,120.20 | AG37: 12,746.80 | AQ37: 1 | AR37: 4,626.60 | AS37: 55,519.20 | AT37: 13,879.80 | AU37: 9,253.20 | AX37: 1 | AY37: 95,601.00 | AZ37: 0 | BA37: 0 | BB37: 0 | BC37: 0 | BD37: 0 | BE37: 0 | BF37: 0 | BG37: 0 | BH37: 0 | BI37: 0 | BJ37: 0 | BK37: 0 | BL37: 0 | BM37: 0 | BT37: 1.00 | BU37: 216,601.00 | BV37: 1 | BW37: 150,601.00
A38: =A37+1 -> 2 | Q38: อบต.หนองบ่อ | R38: นาแก | S38: นครพนม | AC38: 1 | AD38: 6,435.00 | AE38: 77,220.00 | AF38: 19,305.00 | AG38: 12,870.00 | AQ38: 1 | AR38: 4,565.00 | AS38: 54,780.00 | AT38: 13,695.00 | AU38: 9,130.00 | AX38: 1 | AY38: 96,525.00 | AZ38: 0 | BA38: 0 | BB38: 0 | BC38: 0 | BD38: 0 | BE38: 0 | BF38: 0 | BG38: 0 | BH38: 0 | BI38: 0 | BJ38: 0 | BK38: 0 | BL38: 0 | BM38: 0 | BT38: 1.00 | BU38: 217,525.00 | BV38: 1 | BW38: 151,525.00
A39: 3 | Q39: อบต.ดอนเตย | R39: นาทม | S39: นครพนม | AC39: 1 | AD39: 10,581.20 | AE39: 126,974.40 | AF39: 31,743.60 | AG39: 21,162.40 | AQ39: 1 | AR39: 418.80 | AS39: 5,025.60 | AT39: 1,256.40 | AU39: 837.60 | AX39: 1 | AY39: 158,718.00 | AZ39: 0 | BA39: 0 | BB39: 0 | BC39: 0 | BD39: 0 | BE39: 0 | BF39: 0 | BG39: 0 | BH39: 0 | BI39: 0 | BJ39: 0 | BK39: 0 | BL39: 0 | BM39: 0 | BT39: 1.00 | BU39: 279,718.00 | BV39: 1 | BW39: 213,718.00
A40: 4 | Q40: อบต.นาขมิ้น | R40: โพนสวรรค์ | S40: นครพนม | AC40: 1 | AD40: 6,795.80 | AE40: 81,549.60 | AF40: 20,387.40 | AG40: 13,591.60 | AQ40: 1 | AR40: 4,204.20 | AS40: 50,450.40 | AT40: 12,612.60 | AU40: 8,408.40 | AX40: 1 | AY40: 101,937.00 | AZ40: 0 | BA40: 0 | BB40: 0 | BC40: 0 | BD40: 0 | BE40: 0 | BF40: 0 | BG40: 0 | BH40: 0 | BI40: 0 | BJ40: 0 | BK40: 0 | BL40: 0 | BM40: 0 | BT40: 1.00 | BU40: 222,937.00 | BV40: 1 | BW40: 156,937.00
A41: 5 | Q41: อบต.บ้านกลาง | R41: เมืองนครพนม | S41: นครพนม | AC41: 1 | AD41: 7,363.20 | AE41: 88,358.40 | AF41: 22,089.60 | AG41: 14,726.40 | AQ41: 1 | AR41: 3,636.80 | AS41: 43,641.60 | AT41: 10,910.40 | AU41: 7,273.60 | AX41: 1 | AY41: 110,448.00 | AZ41: 0 | BA41: 0 | BB41: 0 | BC41: 0 | BD41: 0 | BE41: 0 | BF41: 0 | BG41: 0 | BH41: 0 | BI41: 0 | BJ41: 0 | BK41: 0 | BL41: 0 | BM41: 0 | BT41: 1.00 | BU41: 231,448.00 | BV41: 1 | BW41: 165,448.00
A42: =A91+1 -> 4 | Q42: อบต.คำเตย | R42: เมืองนครพนม | S42: นครพนม | AC42: 1 | AD42: 9,926.00 | AE42: 119,112.00 | AF42: 29,778.00 | AG42: 19,852.00 | AQ42: 1 | AR42: 1,074.00 | AS42: 12,888.00 | AT42: 3,222.00 | AU42: 2,148.00 | AX42: 1 | AY42: 148,890.00 | AZ42: 0 | BA42: 0 | BB42: 0 | BC42: 0 | BD42: 0 | BE42: 0 | BF42: 0 | BG42: 0 | BH42: 0 | BI42: 0 | BJ42: 0 | BK42: 0 | BL42: 0 | BM42: 0 | BT42: 1.00 | BU42: 269,890.00 | BV42: 1 | BW42: 203,890.00
A43: =A41+1 -> 6 | Q43: อบต.นาขาม | R43: เรณูนคร | S43: นครพนม | BH43: 2 | BI43: 22,000.00 | BV43: =BH43 -> 2 | BW43: =BI43 -> 22,000.00
A44: 7 | Q44: อบต.โพนสว่าง | R44: ศรีสงคราม | S44: นครพนม | BH44: 1 | BI44: 169,149.00 | BV44: =BH44 -> 1 | BW44: =BI44 -> 169,149.00
S45: นครพนม ผลรวม | AC45: =SUBTOTAL(9,AC37:AC44) -> 6 | AD45: =SUBTOTAL(9,AD37:AD44) -> 47,474.60 | AE45: =SUBTOTAL(9,AE37:AE44) -> 569,695.20 | AF45: =SUBTOTAL(9,AF37:AF44) -> 142,423.80 | AG45: =SUBTOTAL(9,AG37:AG44) -> 94,949.20 | AQ45: =SUBTOTAL(9,AQ37:AQ44) -> 6 | AR45: =SUBTOTAL(9,AR37:AR44) -> 18,525.40 | AS45: =SUBTOTAL(9,AS37:AS44) -> 222,304.80 | AT45: =SUBTOTAL(9,AT37:AT44) -> 55,576.20 | AU45: =SUBTOTAL(9,AU37:AU44) -> 37,050.80 | AX45: =SUBTOTAL(9,AX37:AX44) -> 6 | AY45: 712,119.00 | AZ45: 0 | BA45: 0 | BB45: 0 | BC45: 0 | BD45: 0 | BE45: 0 | BF45: 0 | BG45: 0 | BH45: 3 | BI45: 191,149.00 | BJ45: 0 | BK45: 0 | BL45: 0 | BM45: 0 | BV45: =SUBTOTAL(9,BV37:BV44) -> 9 | BW45: =SUBTOTAL(9,BW37:BW44) -> 1,233,268.00
A46: 1 | Q46: อบต.บ้านเก่า | R46: ด่านขุนทด | S46: นครราชสีมา | AC46: 0 | AD46: 0 | AE46: 0 | AF46: 0 | AG46: 0 | AQ46: 0 | AR46: 0 | AS46: 0 | AT46: 0 | AU46: 0 | AX46: 0 | AY46: 0 | AZ46: 0 | BA46: 0 | BB46: 0 | BC46: 0 | BD46: 0 | BE46: 0 | BF46: 1 | BG46: 495,820.00 | BH46: 0 | BI46: 0 | BJ46: 0 | BK46: 0 | BL46: 0 | BM46: 0 | BT46: 1.00 | BU46: 495,820.00 | BV46: 1 | BW46: 495,820.00
A47: =A46+1 -> 2 | Q47: อบต.โคกกระเบื้อง | R47: บ้านเหล่อม | S47: นครราชสีมา | AC47: 1 | AD47: 6,938.80 | AE47: 83,265.60 | AF47: 20,816.40 | AG47: 13,877.60 | AQ47: 1 | AR47: 4,061.20 | AS47: 48,734.40 | AT47: 12,183.60 | AU47: 8,122.40 | AX47: 1 | AY47: 104,082.00 | AZ47: 0 | BA47: 0 | BB47: 0 | BC47: 0 | BD47: 0 | BE47: 0 | BF47: 0 | BG47: 0 | BH47: 0 | BI47: 0 | BJ47: 0 | BK47: 0 | BL47: 0 | BM47: 0 | BT47: 1.00 | BU47: 225,082.00 | BV47: 1 | BW47: 159,082.00
S48: นครราชสีมา ผลรวม | AC48: =SUBTOTAL(9,AC46:AC47) -> 1 | AD48: =SUBTOTAL(9,AD46:AD47) -> 6,938.80 | AE48: =SUBTOTAL(9,AE46:AE47) -> 83,265.60 | AF48: =SUBTOTAL(9,AF46:AF47) -> 20,816.40 | AG48: =SUBTOTAL(9,AG46:AG47) -> 13,877.60 | AQ48: =SUBTOTAL(9,AQ46:AQ47) -> 1 | AR48: =SUBTOTAL(9,AR46:AR47) -> 4,061.20 | AS48: =SUBTOTAL(9,AS46:AS47) -> 48,734.40 | AT48: =SUBTOTAL(9,AT46:AT47) -> 12,183.60 | AU48: =SUBTOTAL(9,AU46:AU47) -> 8,122.40 | AX48: =SUBTOTAL(9,AX46:AX47) -> 1 | AY48: 104,082.00 | AZ48: 0 | BA48: 0 | BB48: 0 | BC48: 0 | BD48: 0 | BE48: 0 | BF48: 1 | BG48: 495,820.00 | BH48: 0 | BI48: 0 | BJ48: 0 | BK48: 0 | BL48: 0 | BM48: 0 | BV48: =SUBTOTAL(9,BV46:BV47) -> 2 | BW48: =SUBTOTAL(9,BW46:BW47) -> 654,902.00
A49: 1 | Q49: อบต.เคร็ง | R49: ชะอวด | S49: นครศรีธรรมราช | AC49: 1 | AD49: 8,330.40 | AE49: 99,964.80 | AF49: 24,991.20 | AG49: 16,660.80 | AQ49: 1 | AR49: 2,669.60 | AS49: 32,035.20 | AT49: 8,008.80 | AU49: 5,339.20 | AX49: 1 | AY49: 124,956.00 | AZ49: 0 | BA49: 0 | BB49: 0 | BC49: 0 | BD49: 0 | BE49: 0 | BF49: 0 | BG49: 0 | BH49: 0 | BI49: 0 | BJ49: 0 | BK49: 0 | BL49: 0 | BM49: 0 | BT49: 1.00 | BU49: 245,956.00 | BV49: 1 | BW49: 179,956.00
A50: =A49+1 -> 2 | Q50: อบต.ท่าซอม | R50: หัวไทร | S50: นครศรีธรรมราช | AC50: 1 | AD50: 9,274.20 | AE50: 111,290.40 | AF50: 27,822.60 | AG50: 18,548.40 | AQ50: 1 | AR50: 1,725.80 | AS50: 20,709.60 | AT50: 5,177.40 | AU50: 3,451.60 | AX50: 1 | AY50: 139,113.00 | AZ50: 0 | BA50: 0 | BB50: 0 | BC50: 0 | BD50: 0 | BE50: 0 | BF50: 0 | BG50: 0 | BH50: 0 | BI50: 0 | BJ50: 0 | BK50: 0 | BL50: 0 | BM50: 0 | BT50: 1.00 | BU50: 260,113.00 | BV50: 1 | BW50: 194,113.00
S51: นครศรีธรรมราช ผลรวม | AC51: =SUBTOTAL(9,AC49:AC50) -> 2 | AD51: =SUBTOTAL(9,AD49:AD50) -> 17,604.60 | AE51: =SUBTOTAL(9,AE49:AE50) -> 211,255.20 | AF51: =SUBTOTAL(9,AF49:AF50) -> 52,813.80 | AG51: =SUBTOTAL(9,AG49:AG50) -> 35,209.20 | AQ51: =SUBTOTAL(9,AQ49:AQ50) -> 2 | AR51: =SUBTOTAL(9,AR49:AR50) -> 4,395.40 | AS51: =SUBTOTAL(9,AS49:AS50) -> 52,744.80 | AT51: =SUBTOTAL(9,AT49:AT50) -> 13,186.20 | AU51: =SUBTOTAL(9,AU49:AU50) -> 8,790.80 | AX51: =SUBTOTAL(9,AX49:AX50) -> 2 | AY51: 264,069.00 | AZ51: 0 | BA51: 0 | BB51: 0 | BC51: 0 | BD51: 0 | BE51: 0 | BF51: 0 | BG51: 0 | BH51: 0 | BI51: 0 | BJ51: 0 | BK51: 0 | BL51: 0 | BM51: 0 | BV51: =SUBTOTAL(9,BV49:BV50) -> 2 | BW51: =SUBTOTAL(9,BW49:BW50) -> 374,069.00
A52: 1 | Q52: อบต.โคกเคียน | R52: เมืองนราธิวาส | S52: นราธิวาส | AC52: 1 | AD52: 6,050.00 | AE52: 69,672.58 | AF52: 15,222.58 | AG52: 12,100.00 | AQ52: 1 | AR52: 4,950.00 | AS52: 59,400.00 | AT52: 12,454.84 | AU52: 9,900.00 | AX52: 1 | AY52: 90,750.00 | AZ52: 0 | BA52: 0 | BB52: 0 | BC52: 0 | BD52: 0 | BE52: 0 | BF52: 0 | BG52: 0 | BH52: 0 | BI52: 0 | BJ52: 0 | BK52: 0 | BL52: 0 | BM52: 0 | BT52: 1.00 | BU52: 206,427.42 | BV52: 1 | BW52: 140,427.42
A53: =A52+1 -> 2 | Q53: อบต.เฉลิม | R53: ระแงะ | S53: นราธิวาส | AC53: 1 | AD53: 6,426.20 | AE53: 77,114.40 | AF53: 19,278.60 | AG53: 12,852.40 | AQ53: 1 | AR53: 4,573.80 | AS53: 54,885.60 | AT53: 13,721.40 | AU53: 9,147.60 | AX53: 1 | AY53: 96,393.00 | AZ53: 0 | BA53: 0 | BB53: 0 | BC53: 0 | BD53: 0 | BE53: 0 | BF53: 0 | BG53: 0 | BH53: 0 | BI53: 0 | BJ53: 0 | BK53: 0 | BL53: 0 | BM53: 0 | BT53: 1.00 | BU53: 217,393.00 | BV53: 1 | BW53: 151,393.00
A54: =A53+1 -> 3 | Q54: อบต.ศรีสาคร | R54: ศรีสาคร | S54: นราธิวาส | AC54: 1 | AD54: 10,043.60 | AE54: 120,523.20 | AF54: 30,130.80 | AG54: 20,087.20 | AQ54: 1 | AR54: 956.40 | AS54: 11,476.80 | AT54: 2,869.20 | AU54: 1,912.80 | AX54: 1 | AY54: 150,654.00 | AZ54: 0 | BA54: 0 | BB54: 0 | BC54: 0 | BD54: 0 | BE54: 0 | BF54: 0 | BG54: 0 | BH54: 0 | BI54: 0 | BJ54: 0 | BK54: 0 | BL54: 0 | BM54: 0 | BT54: 1.00 | BU54: 271,654.00 | BV54: 1 | BW54: 205,654.00
S55: นราธิวาส ผลรวม | AC55: =SUBTOTAL(9,AC52:AC54) -> 3 | AD55: =SUBTOTAL(9,AD52:AD54) -> 22,519.80 | AE55: =SUBTOTAL(9,AE52:AE54) -> 267,310.18 | AF55: =SUBTOTAL(9,AF52:AF54) -> 64,631.98 | AG55: =SUBTOTAL(9,AG52:AG54) -> 45,039.60 | AQ55: =SUBTOTAL(9,AQ52:AQ54) -> 3 | AR55: =SUBTOTAL(9,AR52:AR54) -> 10,480.20 | AS55: =SUBTOTAL(9,AS52:AS54) -> 125,762.40 | AT55: =SUBTOTAL(9,AT52:AT54) -> 29,045.44 | AU55: =SUBTOTAL(9,AU52:AU54) -> 20,960.40 | AX55: =SUBTOTAL(9,AX52:AX54) -> 3 | AY55: 337,797.00 | AZ55: 0 | BA55: 0 | BB55: 0 | BC55: 0 | BD55: 0 | BE55: 0 | BF55: 0 | BG55: 0 | BH55: 0 | BI55: 0 | BJ55: 0 | BK55: 0 | BL55: 0 | BM55: 0 | BV55: =SUBTOTAL(9,BV52:BV54) -> 3 | BW55: =SUBTOTAL(9,BW52:BW54) -> 497,474.42
A56: 1 | Q56: อบต.จอมพระ | R56: ท่าวังผา | S56: น่าน | AC56: 1 | AD56: 10,250.80 | AE56: 123,009.60 | AF56: 30,752.40 | AG56: 20,501.60 | AQ56: 1 | AR56: 749.20 | AS56: 8,990.40 | AT56: 2,247.60 | AU56: 1,498.40 | AX56: 1 | AY56: 153,762.00 | AZ56: 0 | BA56: 0 | BB56: 0 | BC56: 0 | BD56: 0 | BE56: 0 | BF56: 0 | BG56: 0 | BH56: 0 | BI56: 0 | BJ56: 0 | BK56: 0 | BL56: 0 | BM56: 0 | BT56: 0 | BU56: 274,762.00 | BV56: 1 | BW56: 208,762.00
S57: น่าน ผลรวม | AC57: =SUBTOTAL(9,AC56:AC56) -> 1 | AD57: =SUBTOTAL(9,AD56:AD56) -> 10,250.80 | AE57: =SUBTOTAL(9,AE56:AE56) -> 123,009.60 | AF57: =SUBTOTAL(9,AF56:AF56) -> 30,752.40 | AG57: =SUBTOTAL(9,AG56:AG56) -> 20,501.60 | AQ57: =SUBTOTAL(9,AQ56:AQ56) -> 1 | AR57: =SUBTOTAL(9,AR56:AR56) -> 749.20 | AS57: =SUBTOTAL(9,AS56:AS56) -> 8,990.40 | AT57: =SUBTOTAL(9,AT56:AT56) -> 2,247.60 | AU57: =SUBTOTAL(9,AU56:AU56) -> 1,498.40 | AX57: =SUBTOTAL(9,AX56:AX56) -> 1 | AY57: 153,762.00 | AZ57: 0 | BA57: 0 | BB57: 0 | BC57: 0 | BD57: 0 | BE57: 0 | BF57: 0 | BG57: 0 | BH57: 0 | BI57: 0 | BJ57: 0 | BK57: 0 | BL57: 0 | BM57: 0 | BV57: =SUBTOTAL(9,BV56:BV56) -> 1 | BW57: =SUBTOTAL(9,BW56:BW56) -> 208,762.00
A58: 1 | Q58: อบต.โซ่ | R58: โซ่พิสัย | S58: บึงกาฬ | AC58: 1 | AD58: 8,710.00 | AE58: 104,520.00 | AF58: 26,130.00 | AG58: 17,420.00 | AQ58: 1 | AR58: 2,290.00 | AS58: 27,480.00 | AT58: 6,870.00 | AU58: 4,580.00 | AX58: 1 | AY58: 130,650.00 | AZ58: 0 | BA58: 0 | BB58: 0 | BC58: 0 | BD58: 0 | BE58: 0 | BF58: 0 | BG58: 0 | BH58: 0 | BI58: 0 | BJ58: 0 | BK58: 0 | BL58: 0 | BM58: 0 | BT58: 1.00 | BU58: 251,650.00 | BV58: 1 | BW58: 185,650.00
A59: =A58+1 -> 2 | Q59: อบต.ศรีชมภู | R59: โซ่พิสัย | S59: บึงกาฬ | AC59: 1 | AD59: 6,010.00 | AE59: 72,120.00 | AF59: 18,030.00 | AG59: 12,020.00 | AQ59: 1 | AR59: 4,990.00 | AS59: 59,880.00 | AT59: 14,970.00 | AU59: 9,980.00 | AX59: 1 | AY59: 90,150.00 | AZ59: 0 | BA59: 0 | BB59: 0 | BC59: 0 | BD59: 0 | BE59: 0 | BF59: 0 | BG59: 0 | BH59: 0 | BI59: 0 | BJ59: 0 | BK59: 0 | BL59: 0 | BM59: 0 | BT59: 1.00 | BU59: 211,150.00 | BV59: 1 | BW59: 145,150.00
A60: =A59+1 -> 3 | Q60: อบต.โพธิ์หมากแข้ง | R60: บึงโขงหลง | S60: บึงกาฬ | AC60: 1 | AD60: 10,455.20 | AE60: 125,462.40 | AF60: 31,365.60 | AG60: 20,910.40 | AQ60: 1 | AR60: 544.80 | AS60: 6,537.60 | AT60: 1,634.40 | AU60: 1,089.60 | AX60: 1 | AY60: 156,828.00 | AZ60: 0 | BA60: 0 | BB60: 0 | BC60: 0 | BD60: 0 | BE60: 0 | BF60: 0 | BG60: 0 | BH60: 0 | BI60: 0 | BJ60: 0 | BK60: 0 | BL60: 0 | BM60: 0 | BT60: 1.00 | BU60: 277,828.00 | BV60: 1 | BW60: 211,828.00
A61: =A60+1 -> 4 | Q61: อบต.นาแสง | R61: ศรีวิไล | S61: บึงกาฬ | AC61: 1 | AD61: 10,413.20 | AE61: 124,958.40 | AF61: 31,239.60 | AG61: 20,826.40 | AQ61: 1 | AR61: 586.80 | AS61: 7,041.60 | AT61: 1,760.40 | AU61: 1,173.60 | AX61: 1 | AY61: 156,198.00 | AZ61: 0 | BA61: 0 | BB61: 0 | BC61: 0 | BD61: 0 | BE61: 0 | BF61: 0 | BG61: 0 | BH61: 0 | BI61: 0 | BJ61: 0 | BK61: 0 | BL61: 0 | BM61: 0 | BT61: 1.00 | BU61: 277,198.00 | BV61: 1 | BW61: 211,198.00
S62: บึงกาฬ ผลรวม | AC62: =SUBTOTAL(9,AC58:AC61) -> 4 | AD62: =SUBTOTAL(9,AD58:AD61) -> 35,588.40 | AE62: =SUBTOTAL(9,AE58:AE61) -> 427,060.80 | AF62: =SUBTOTAL(9,AF58:AF61) -> 106,765.20 | AG62: =SUBTOTAL(9,AG58:AG61) -> 71,176.80 | AQ62: =SUBTOTAL(9,AQ58:AQ61) -> 4 | AR62: =SUBTOTAL(9,AR58:AR61) -> 8,411.60 | AS62: =SUBTOTAL(9,AS58:AS61) -> 100,939.20 | AT62: =SUBTOTAL(9,AT58:AT61) -> 25,234.80 | AU62: =SUBTOTAL(9,AU58:AU61) -> 16,823.20 | AX62: =SUBTOTAL(9,AX58:AX61) -> 4 | AY62: 533,826.00 | AZ62: 0 | BA62: 0 | BB62: 0 | BC62: 0 | BD62: 0 | BE62: 0 | BF62: 0 | BG62: 0 | BH62: 0 | BI62: 0 | BJ62: 0 | BK62: 0 | BL62: 0 | BM62: 0 | BV62: =SUBTOTAL(9,BV58:BV61) -> 4 | BW62: =SUBTOTAL(9,BW58:BW61) -> 753,826.00
A63: 1 | Q63: อบต.ร่อนทอง | R63: สตึก | S63: บุรีรัมย์ | AC63: 1 | AD63: 10,368.40 | AE63: 124,420.80 | AF63: 31,105.20 | AG63: 20,736.80 | AQ63: 1 | AR63: 631.60 | AS63: 7,579.20 | AT63: 1,894.80 | AU63: 1,263.20 | AX63: 1 | AY63: 155,526.00 | AZ63: 0 | BA63: 0 | BB63: 0 | BC63: 0 | BD63: 0 | BE63: 0 | BF63: 0 | BG63: 0 | BH63: 0 | BI63: 0 | BJ63: 0 | BK63: 0 | BL63: 0 | BM63: 0 | BT63: 1.00 | BU63: 276,526.00 | BV63: 1 | BW63: 210,526.00
S64: บุรีรัมย์ ผลรวม | AC64: =SUBTOTAL(9,AC63:AC63) -> 1 | AD64: =SUBTOTAL(9,AD63:AD63) -> 10,368.40 | AE64: =SUBTOTAL(9,AE63:AE63) -> 124,420.80 | AF64: =SUBTOTAL(9,AF63:AF63) -> 31,105.20 | AG64: =SUBTOTAL(9,AG63:AG63) -> 20,736.80 | AQ64: =SUBTOTAL(9,AQ63:AQ63) -> 1 | AR64: =SUBTOTAL(9,AR63:AR63) -> 631.60 | AS64: =SUBTOTAL(9,AS63:AS63) -> 7,579.20 | AT64: =SUBTOTAL(9,AT63:AT63) -> 1,894.80 | AU64: =SUBTOTAL(9,AU63:AU63) -> 1,263.20 | AX64: =SUBTOTAL(9,AX63:AX63) -> 1 | AY64: 155,526.00 | AZ64: 0 | BA64: 0 | BB64: 0 | BC64: 0 | BD64: 0 | BE64: 0 | BF64: 0 | BG64: 0 | BH64: 0 | BI64: 0 | BJ64: 0 | BK64: 0 | BL64: 0 | BM64: 0 | BV64: =SUBTOTAL(9,BV63:BV63) -> 1 | BW64: =SUBTOTAL(9,BW63:BW63) -> 210,526.00
A65: 1 | Q65: อบต.ระแหง | R65: ลาดหลุมแก้ว | S65: ปทุมธานี | AC65: 1 | AD65: 9,170.20 | AE65: 110,042.40 | AF65: 27,510.60 | AG65: 18,340.40 | AQ65: 1 | AR65: 1,829.80 | AS65: 21,957.60 | AT65: 5,489.40 | AU65: 3,659.60 | AX65: 1 | AY65: 137,553.00 | AZ65: 0 | BA65: 0 | BB65: 0 | BC65: 0 | BD65: 0 | BE65: 0 | BF65: 0 | BG65: 0 | BH65: 0 | BI65: 0 | BJ65: 0 | BK65: 0 | BL65: 0 | BM65: 0 | BT65: 1.00 | BU65: 258,553.00 | BV65: 1 | BW65: 192,553.00
A66: =A65+1 -> 2 | Q66: อบต.บึงคำพร้อย | R66: ลำลูกกา | S66: ปทุมธานี | AC66: 1 | AD66: 9,730.00 | AE66: 116,760.00 | AF66: 29,190.00 | AG66: 19,460.00 | AQ66: 1 | AR66: 1,270.00 | AS66: 15,240.00 | AT66: 3,810.00 | AU66: 2,540.00 | AX66: 1 | AY66: 145,950.00 | AZ66: 0 | BA66: 0 | BB66: 0 | BC66: 0 | BD66: 0 | BE66: 0 | BF66: 0 | BG66: 0 | BH66: 0 | BI66: 0 | BJ66: 0 | BK66: 0 | BL66: 0 | BM66: 0 | BT66: 1.00 | BU66: 266,950.00 | BV66: 1 | BW66: 200,950.00
S67: ปทุมธานี ผลรวม | AC67: =SUBTOTAL(9,AC65:AC66) -> 2 | AD67: =SUBTOTAL(9,AD65:AD66) -> 18,900.20 | AE67: =SUBTOTAL(9,AE65:AE66) -> 226,802.40 | AF67: =SUBTOTAL(9,AF65:AF66) -> 56,700.60 | AG67: =SUBTOTAL(9,AG65:AG66) -> 37,800.40 | AQ67: =SUBTOTAL(9,AQ65:AQ66) -> 2 | AR67: =SUBTOTAL(9,AR65:AR66) -> 3,099.80 | AS67: =SUBTOTAL(9,AS65:AS66) -> 37,197.60 | AT67: =SUBTOTAL(9,AT65:AT66) -> 9,299.40 | AU67: =SUBTOTAL(9,AU65:AU66) -> 6,199.60 | AX67: =SUBTOTAL(9,AX65:AX66) -> 2 | AY67: 283,503.00 | AZ67: 0 | BA67: 0 | BB67: 0 | BC67: 0 | BD67: 0 | BE67: 0 | BF67: 0 | BG67: 0 | BH67: 0 | BI67: 0 | BJ67: 0 | BK67: 0 | BL67: 0 | BM67: 0 | BV67: =SUBTOTAL(9,BV65:BV66) -> 2 | BW67: =SUBTOTAL(9,BW65:BW66) -> 393,503.00
A68: 1 | Q68: อบต.ปากน้ำปราณ | R68: ปราณบุรี | S68: ประจวบคีรีขันธ์ | AC68: 0 | AD68: 0 | AE68: 0 | AF68: 0 | AG68: 0 | AQ68: 0 | AR68: 0 | AS68: 0 | AT68: 0 | AU68: 0 | AX68: 0 | AY68: 0 | AZ68: 1 | BA68: 200,000.00 | BB68: 0 | BC68: 0 | BD68: 0 | BE68: 0 | BF68: 0 | BG68: 0 | BH68: 0 | BI68: 0 | BJ68: 0 | BK68: 0 | BL68: 0 | BM68: 0 | BT68: 1.00 | BU68: 200,000.00 | BV68: 1 | BW68: 200,000.00
A69: =A68+1 -> 2 | Q69: อบต.ทับใต้ | R69: หัวหิน | S69: ประจวบคีรีขันธ์ | AC69: 0 | AD69: 0 | AE69: 0 | AF69: 0 | AG69: 0 | AQ69: 0 | AR69: 0 | AS69: 0 | AT69: 0 | AU69: 0 | AX69: 0 | AY69: 0 | AZ69: 0 | BA69: 0 | BB69: 0 | BC69: 0 | BD69: 0 | BE69: 0 | BF69: 1 | BG69: 497,560.00 | BH69: 0 | BI69: 0 | BJ69: 0 | BK69: 0 | BL69: 0 | BM69: 0 | BT69: 1.00 | BU69: 497,560.00 | BV69: 1 | BW69: 497,560.00
S70: ประจวบคีรีขันธ์ ผลรวม | AC70: =SUBTOTAL(9,AC68:AC69) -> 0 | AD70: =SUBTOTAL(9,AD68:AD69) -> 0 | AE70: =SUBTOTAL(9,AE68:AE69) -> 0 | AF70: =SUBTOTAL(9,AF68:AF69) -> 0 | AG70: =SUBTOTAL(9,AG68:AG69) -> 0 | AQ70: =SUBTOTAL(9,AQ68:AQ69) -> 0 | AR70: =SUBTOTAL(9,AR68:AR69) -> 0 | AS70: =SUBTOTAL(9,AS68:AS69) -> 0 | AT70: =SUBTOTAL(9,AT68:AT69) -> 0 | AU70: =SUBTOTAL(9,AU68:AU69) -> 0 | AX70: =SUBTOTAL(9,AX68:AX69) -> 0 | AY70: 0 | AZ70: 1 | BA70: 200,000.00 | BB70: 0 | BC70: 0 | BD70: 0 | BE70: 0 | BF70: 1 | BG70: 497,560.00 | BH70: 0 | BI70: 0 | BJ70: 0 | BK70: 0 | BL70: 0 | BM70: 0 | BV70: =SUBTOTAL(9,BV68:BV69) -> 2 | BW70: =SUBTOTAL(9,BW68:BW69) -> 697,560.00
A71: 1 | Q71: อบต.บางโกระ | R71: โคกโพธิ์ | S71: ปัตตานี | AC71: 0 | AD71: 0 | AE71: 0 | AF71: 0 | AG71: 0 | AQ71: 0 | AR71: 0 | AS71: 0 | AT71: 0 | AU71: 0 | AX71: 1 | AY71: 158,760.00 | AZ71: 0 | BA71: 0 | BB71: 0 | BC71: 0 | BD71: 0 | BE71: 0 | BF71: 0 | BG71: 0 | BH71: 0 | BI71: 0 | BJ71: 0 | BK71: 0 | BL71: 0 | BM71: 0 | BT71: 1.00 | BU71: 158,760.00 | BV71: 1 | BW71: 158,760.00
A72: =A71+1 -> 2 | Q72: อบต.พิเทน | R72: ทุ่งยางแดง | S72: ปัตตานี | AC72: 1 | AD72: 10,169.60 | AE72: 122,035.20 | AF72: 30,508.80 | AG72: 20,339.20 | AQ72: 1 | AR72: 830.40 | AS72: 9,964.80 | AT72: 2,491.20 | AU72: 1,660.80 | AX72: 1 | AY72: 152,544.00 | AZ72: 0 | BA72: 0 | BB72: 0 | BC72: 0 | BD72: 0 | BE72: 0 | BF72: 0 | BG72: 0 | BH72: 0 | BI72: 0 | BJ72: 0 | BK72: 0 | BL72: 0 | BM72: 0 | BT72: 1.00 | BU72: 273,544.00 | BV72: 1 | BW72: 207,544.00
S73: ปัตตานี ผลรวม | AC73: =SUBTOTAL(9,AC71:AC72) -> 1 | AD73: =SUBTOTAL(9,AD71:AD72) -> 10,169.60 | AE73: =SUBTOTAL(9,AE71:AE72) -> 122,035.20 | AF73: =SUBTOTAL(9,AF71:AF72) -> 30,508.80 | AG73: =SUBTOTAL(9,AG71:AG72) -> 20,339.20 | AQ73: =SUBTOTAL(9,AQ71:AQ72) -> 1 | AR73: =SUBTOTAL(9,AR71:AR72) -> 830.40 | AS73: =SUBTOTAL(9,AS71:AS72) -> 9,964.80 | AT73: =SUBTOTAL(9,AT71:AT72) -> 2,491.20 | AU73: =SUBTOTAL(9,AU71:AU72) -> 1,660.80 | AX73: =SUBTOTAL(9,AX71:AX72) -> 2 | AY73: 311,304.00 | AZ73: 0 | BA73: 0 | BB73: 0 | BC73: 0 | BD73: 0 | BE73: 0 | BF73: 0 | BG73: 0 | BH73: 0 | BI73: 0 | BJ73: 0 | BK73: 0 | BL73: 0 | BM73: 0 | BV73: =SUBTOTAL(9,BV71:BV72) -> 2 | BW73: =SUBTOTAL(9,BW71:BW72) -> 366,304.00
A74: 1 | Q74: อบต.กระแชง | R74: บางไทร | S74: พระนครศรีอยุธยา | AC74: 0 | AD74: 0 | AE74: 0 | AF74: 0 | AG74: 0 | AQ74: 0 | AR74: 0 | AS74: 0 | AT74: 0 | AU74: 0 | AX74: 0 | AY74: 0 | AZ74: 0 | BA74: 0 | BB74: 0 | BC74: 0 | BD74: 0 | BE74: 0 | BF74: 0 | BG74: 0 | BH74: 0 | BI74: 0 | BJ74: 1 | BK74: 246,039.00 | BL74: 1 | BM74: 55,000.00 | BT74: 0 | BU74: 191,039.00 | BV74: 1 | BW74: 191,039.00
S75: พระนครศรีอยุธยา ผลรวม | AC75: =SUBTOTAL(9,AC74:AC74) -> 0 | AD75: =SUBTOTAL(9,AD74:AD74) -> 0 | AE75: =SUBTOTAL(9,AE74:AE74) -> 0 | AF75: =SUBTOTAL(9,AF74:AF74) -> 0 | AG75: =SUBTOTAL(9,AG74:AG74) -> 0 | AQ75: =SUBTOTAL(9,AQ74:AQ74) -> 0 | AR75: =SUBTOTAL(9,AR74:AR74) -> 0 | AS75: =SUBTOTAL(9,AS74:AS74) -> 0 | AT75: =SUBTOTAL(9,AT74:AT74) -> 0 | AU75: =SUBTOTAL(9,AU74:AU74) -> 0 | AX75: =SUBTOTAL(9,AX74:AX74) -> 0 | AY75: 0 | AZ75: 0 | BA75: 0 | BB75: 0 | BC75: 0 | BD75: 0 | BE75: 0 | BF75: 0 | BG75: 0 | BH75: 0 | BI75: 0 | BJ75: 1 | BK75: 246,039.00 | BL75: 1 | BM75: 55,000.00 | BV75: =SUBTOTAL(9,BV74:BV74) -> 1 | BW75: =SUBTOTAL(9,BW74:BW74) -> 191,039.00
A76: 1 | Q76: อบต.โคกทราย | R76: ป่าบอน | S76: พัทลุง | AC76: 1 | AD76: 6,716.60 | AE76: 80,599.20 | AF76: 20,149.80 | AG76: 13,433.20 | AQ76: 1 | AR76: 4,283.40 | AS76: 51,400.80 | AT76: 12,850.20 | AU76: 8,566.80 | AX76: 1 | AY76: 100,749.00 | AZ76: 0 | BA76: 0 | BB76: 0 | BC76: 0 | BD76: 0 | BE76: 0 | BF76: 0 | BG76: 0 | BH76: 0 | BI76: 0 | BJ76: 0 | BK76: 0 | BL76: 0 | BM76: 0 | BT76: 0 | BU76: 221,749.00 | BV76: 1 | BW76: 155,749.00
S77: พัทลุง ผลรวม | AC77: =SUBTOTAL(9,AC76:AC76) -> 1 | AD77: =SUBTOTAL(9,AD76:AD76) -> 6,716.60 | AE77: =SUBTOTAL(9,AE76:AE76) -> 80,599.20 | AF77: =SUBTOTAL(9,AF76:AF76) -> 20,149.80 | AG77: =SUBTOTAL(9,AG76:AG76) -> 13,433.20 | AQ77: =SUBTOTAL(9,AQ76:AQ76) -> 1 | AR77: =SUBTOTAL(9,AR76:AR76) -> 4,283.40 | AS77: =SUBTOTAL(9,AS76:AS76) -> 51,400.80 | AT77: =SUBTOTAL(9,AT76:AT76) -> 12,850.20 | AU77: =SUBTOTAL(9,AU76:AU76) -> 8,566.80 | AX77: =SUBTOTAL(9,AX76:AX76) -> 1 | AY77: 100,749.00 | AZ77: 0 | BA77: 0 | BB77: 0 | BC77: 0 | BD77: 0 | BE77: 0 | BF77: 0 | BG77: 0 | BH77: 0 | BI77: 0 | BJ77: 0 | BK77: 0 | BL77: 0 | BM77: 0 | BV77: =SUBTOTAL(9,BV76:BV76) -> 1 | BW77: =SUBTOTAL(9,BW76:BW76) -> 155,749.00
A78: 1 | Q78: อบต.เวียงทอง | R78: สูงเม่น | S78: แพร่ | AC78: 0 | AD78: 0 | AE78: 0 | AF78: 0 | AG78: 0 | AQ78: 0 | AR78: 0 | AS78: 0 | AT78: 0 | AU78: 0 | AX78: 0 | AY78: 0 | AZ78: 0 | BA78: 0 | BB78: 0 | BC78: 0 | BD78: 0 | BE78: 0 | BF78: 0 | BG78: 0 | BH78: 0 | BI78: 0 | BJ78: 1 | BK78: 278,370.00 | BL78: 1 | BM78: 30,870.97 | BT78: 1.00 | BU78: 247,499.03 | BV78: 1 | BW78: 247,499.03
S79: แพร่ ผลรวม | AC79: =SUBTOTAL(9,AC78:AC78) -> 0 | AD79: =SUBTOTAL(9,AD78:AD78) -> 0 | AE79: =SUBTOTAL(9,AE78:AE78) -> 0 | AF79: =SUBTOTAL(9,AF78:AF78) -> 0 | AG79: =SUBTOTAL(9,AG78:AG78) -> 0 | AQ79: =SUBTOTAL(9,AQ78:AQ78) -> 0 | AR79: =SUBTOTAL(9,AR78:AR78) -> 0 | AS79: =SUBTOTAL(9,AS78:AS78) -> 0 | AT79: =SUBTOTAL(9,AT78:AT78) -> 0 | AU79: =SUBTOTAL(9,AU78:AU78) -> 0 | AX79: =SUBTOTAL(9,AX78:AX78) -> 0 | AY79: 0 | AZ79: 0 | BA79: 0 | BB79: 0 | BC79: 0 | BD79: 0 | BE79: 0 | BF79: 0 | BG79: 0 | BH79: 0 | BI79: 0 | BJ79: 1 | BK79: 278,370.00 | BL79: 1 | BM79: 30,870.97 | BV79: =SUBTOTAL(9,BV78:BV78) -> 1 | BW79: =SUBTOTAL(9,BW78:BW78) -> 247,499.03
A80: 1 | Q80: อบต.หนองไฮ | R80: วาปีปทุม | S80: มหาสารคาม | BH80: 1 | BI80: 22,000.00 | BV80: =BH80 -> 1 | BW80: =BI80 -> 22,000.00
S81: มหาสารคาม ผลรวม | AC81: =SUBTOTAL(9,AC80:AC80) -> 0 | AD81: =SUBTOTAL(9,AD80:AD80) -> 0 | AE81: =SUBTOTAL(9,AE80:AE80) -> 0 | AF81: =SUBTOTAL(9,AF80:AF80) -> 0 | AG81: =SUBTOTAL(9,AG80:AG80) -> 0 | AQ81: =SUBTOTAL(9,AQ80:AQ80) -> 0 | AR81: =SUBTOTAL(9,AR80:AR80) -> 0 | AS81: =SUBTOTAL(9,AS80:AS80) -> 0 | AT81: =SUBTOTAL(9,AT80:AT80) -> 0 | AU81: =SUBTOTAL(9,AU80:AU80) -> 0 | AX81: =SUBTOTAL(9,AX80:AX80) -> 0 | AY81: 0 | AZ81: 0 | BA81: 0 | BB81: 0 | BC81: 0 | BD81: 0 | BE81: 0 | BF81: 0 | BG81: 0 | BH81: 1 | BI81: 22,000.00 | BJ81: 0 | BK81: 0 | BL81: 0 | BM81: 0 | BV81: =SUBTOTAL(9,BV80:BV80) -> 1 | BW81: =SUBTOTAL(9,BW80:BW80) -> 22,000.00
A82: 1 | Q82: อบต.ป่าไร่ | R82: ดอนตาล | S82: มุกดาหาร | BH82: 1 | BI82: 16,785.00 | BV82: =BH82 -> 1 | BW82: =BI82 -> 16,785.00
S83: มุกดาหาร ผลรวม | AC83: =SUBTOTAL(9,AC82:AC82) -> 0 | AD83: =SUBTOTAL(9,AD82:AD82) -> 0 | AE83: =SUBTOTAL(9,AE82:AE82) -> 0 | AF83: =SUBTOTAL(9,AF82:AF82) -> 0 | AG83: =SUBTOTAL(9,AG82:AG82) -> 0 | AQ83: =SUBTOTAL(9,AQ82:AQ82) -> 0 | AR83: =SUBTOTAL(9,AR82:AR82) -> 0 | AS83: =SUBTOTAL(9,AS82:AS82) -> 0 | AT83: =SUBTOTAL(9,AT82:AT82) -> 0 | AU83: =SUBTOTAL(9,AU82:AU82) -> 0 | AX83: =SUBTOTAL(9,AX82:AX82) -> 0 | AY83: 0 | AZ83: 0 | BA83: 0 | BB83: 0 | BC83: 0 | BD83: 0 | BE83: 0 | BF83: 0 | BG83: 0 | BH83: 1 | BI83: 16,785.00 | BJ83: 0 | BK83: 0 | BL83: 0 | BM83: 0 | BV83: =SUBTOTAL(9,BV82:BV82) -> 1 | BW83: =SUBTOTAL(9,BW82:BW82) -> 16,785.00
A84: 1 | Q84: อบต.แม่น้ำคู้ | R84: ปลวกแดง | S84: ระยอง | AC84: 1 | AD84: 9,760.80 | AE84: 117,129.60 | AF84: 29,282.40 | AG84: 19,521.60 | AQ84: 1 | AR84: 1,239.20 | AS84: 14,870.40 | AT84: 3,717.60 | AU84: 2,478.40 | AX84: 1 | AY84: 146,412.00 | AZ84: 0 | BA84: 0 | BB84: 0 | BC84: 0 | BD84: 0 | BE84: 0 | BF84: 0 | BG84: 0 | BH84: 0 | BI84: 0 | BJ84: 0 | BK84: 0 | BL84: 0 | BM84: 0 | BT84: 1.00 | BU84: 267,412.00 | BV84: 1 | BW84: 201,412.00
S85: ระยอง ผลรวม | AC85: =SUBTOTAL(9,AC84:AC84) -> 1 | AD85: =SUBTOTAL(9,AD84:AD84) -> 9,760.80 | AE85: =SUBTOTAL(9,AE84:AE84) -> 117,129.60 | AF85: =SUBTOTAL(9,AF84:AF84) -> 29,282.40 | AG85: =SUBTOTAL(9,AG84:AG84) -> 19,521.60 | AQ85: =SUBTOTAL(9,AQ84:AQ84) -> 1 | AR85: =SUBTOTAL(9,AR84:AR84) -> 1,239.20 | AS85: =SUBTOTAL(9,AS84:AS84) -> 14,870.40 | AT85: =SUBTOTAL(9,AT84:AT84) -> 3,717.60 | AU85: =SUBTOTAL(9,AU84:AU84) -> 2,478.40 | AX85: =SUBTOTAL(9,AX84:AX84) -> 1 | AY85: 146,412.00 | AZ85: 0 | BA85: 0 | BB85: 0 | BC85: 0 | BD85: 0 | BE85: 0 | BF85: 0 | BG85: 0 | BH85: 0 | BI85: 0 | BJ85: 0 | BK85: 0 | BL85: 0 | BM85: 0 | BV85: =SUBTOTAL(9,BV84:BV84) -> 1 | BW85: =SUBTOTAL(9,BW84:BW84) -> 201,412.00
A86: 1 | Q86: อบต.สบป้าด | R86: แม่เมาะ | S86: ลำปาง | AC86: 1 | AD86: 9,942.80 | AE86: 119,313.60 | AF86: 29,828.40 | AG86: 19,885.60 | AQ86: 1 | AR86: 1,057.20 | AS86: 12,686.40 | AT86: 3,171.60 | AU86: 2,114.40 | AX86: 1 | AY86: 149,142.00 | AZ86: 0 | BA86: 0 | BB86: 0 | BC86: 0 | BD86: 0 | BE86: 0 | BF86: 0 | BG86: 0 | BH86: 0 | BI86: 0 | BJ86: 0 | BK86: 0 | BL86: 0 | BM86: 0 | BT86: 1.00 | BU86: 270,142.00 | BV86: 1 | BW86: 204,142.00
A87: =A86+1 -> 2 | Q87: อบต.นายาง | R87: สบปราบ | S87: ลำปาง | AC87: 1 | AD87: 8,660.60 | AE87: 86,606.00 | AF87: 0 | AG87: 17,321.20 | AQ87: 1 | AR87: 2,339.40 | AS87: 23,394.00 | AT87: 0 | AU87: 4,678.80 | AX87: 1 | AY87: 129,909.00 | AZ87: 0 | BA87: 0 | BB87: 0 | BC87: 0 | BD87: 0 | BE87: 0 | BF87: 0 | BG87: 0 | BH87: 0 | BI87: 0 | BJ87: 0 | BK87: 0 | BL87: 0 | BM87: 0 | BT87: 1.00 | BU87: 217,909.00 | BV87: 1 | BW87: 151,909.00
S88: ลำปาง ผลรวม | AC88: =SUBTOTAL(9,AC86:AC87) -> 2 | AD88: =SUBTOTAL(9,AD86:AD87) -> 18,603.40 | AE88: =SUBTOTAL(9,AE86:AE87) -> 205,919.60 | AF88: =SUBTOTAL(9,AF86:AF87) -> 29,828.40 | AG88: =SUBTOTAL(9,AG86:AG87) -> 37,206.80 | AQ88: =SUBTOTAL(9,AQ86:AQ87) -> 2 | AR88: =SUBTOTAL(9,AR86:AR87) -> 3,396.60 | AS88: =SUBTOTAL(9,AS86:AS87) -> 36,080.40 | AT88: =SUBTOTAL(9,AT86:AT87) -> 3,171.60 | AU88: =SUBTOTAL(9,AU86:AU87) -> 6,793.20 | AX88: =SUBTOTAL(9,AX86:AX87) -> 2 | AY88: 279,051.00 | AZ88: 0 | BA88: 0 | BB88: 0 | BC88: 0 | BD88: 0 | BE88: 0 | BF88: 0 | BG88: 0 | BH88: 0 | BI88: 0 | BJ88: 0 | BK88: 0 | BL88: 0 | BM88: 0 | BV88: =SUBTOTAL(9,BV86:BV87) -> 2 | BW88: =SUBTOTAL(9,BW86:BW87) -> 356,051.00
A89: 1 | Q89: อบต.บ้านปวง | R89: ทุ่งหัวช้าง | S89: ลำพูน | AC89: 0 | AD89: 0 | AE89: 0 | AF89: 0 | AG89: 0 | AQ89: 0 | AR89: 0 | AS89: 0 | AT89: 0 | AU89: 0 | AX89: 1 | AY89: 4,134.00 | AZ89: 0 | BA89: 0 | BB89: 0 | BC89: 0 | BD89: 0 | BE89: 0 | BF89: 0 | BG89: 0 | BH89: 0 | BI89: 0 | BJ89: 0 | BK89: 0 | BL89: 0 | BM89: 0 | BT89: 1.00 | BU89: 4,134.00 | BV89: 1 | BW89: 4,134.00
A90: =A89+1 -> 2 | Q90: อบต.ป่าพลู | R90: บ้านโฮ่ง | S90: ลำพูน | BH90: 1 | BI90: 164,352.00 | BV90: =BH90 -> 1 | BW90: =BI90 -> 164,352.00
A91: =A90+1 -> 3 | Q91: อบต.เวียงกานต์ | R91: บ้านโฮ่ง | S91: ลำพูน | AC91: 0 | AD91: 0 | AE91: 0 | AF91: 0 | AG91: 0 | AQ91: 0 | AR91: 0 | AS91: 0 | AT91: 0 | AU91: 0 | AX91: 1 | AY91: 4,017.00 | AZ91: 0 | BA91: 0 | BB91: 0 | BC91: 0 | BD91: 0 | BE91: 0 | BF91: 0 | BG91: 0 | BH91: 0 | BI91: 0 | BJ91: 0 | BK91: 0 | BL91: 0 | BM91: 0 | BT91: 1.00 | BU91: 4,017.00 | BV91: 1 | BW91: 4,017.00
A92: =A42+1 -> 5 | Q92: อบต.นาทราย | R92: ลี้ | S92: ลำพูน | AC92: 1 | AD92: 6,910.20 | AE92: 82,922.40 | AF92: 20,730.60 | AG92: 13,820.40 | AQ92: 1 | AR92: 4,089.80 | AS92: 49,077.60 | AT92: 12,269.40 | AU92: 8,179.60 | AX92: 1 | AY92: 103,653.00 | AZ92: 0 | BA92: 0 | BB92: 0 | BC92: 0 | BD92: 0 | BE92: 0 | BF92: 0 | BG92: 0 | BH92: 0 | BI92: 0 | BJ92: 0 | BK92: 0 | BL92: 0 | BM92: 0 | BT92: 1.00 | BU92: 224,653.00 | BV92: 1 | BW92: 158,653.00
S93: ลำพูน ผลรวม | AC93: =SUBTOTAL(9,AC89:AC92) -> 1 | AD93: =SUBTOTAL(9,AD89:AD92) -> 6,910.20 | AE93: =SUBTOTAL(9,AE89:AE92) -> 82,922.40 | AF93: =SUBTOTAL(9,AF89:AF92) -> 20,730.60 | AG93: =SUBTOTAL(9,AG89:AG92) -> 13,820.40 | AQ93: =SUBTOTAL(9,AQ89:AQ92) -> 1 | AR93: =SUBTOTAL(9,AR89:AR92) -> 4,089.80 | AS93: =SUBTOTAL(9,AS89:AS92) -> 49,077.60 | AT93: =SUBTOTAL(9,AT89:AT92) -> 12,269.40 | AU93: =SUBTOTAL(9,AU89:AU92) -> 8,179.60 | AX93: =SUBTOTAL(9,AX89:AX92) -> 3 | AY93: 111,804.00 | AZ93: 0 | BA93: 0 | BB93: 0 | BC93: 0 | BD93: 0 | BE93: 0 | BF93: 0 | BG93: 0 | BH93: 1 | BI93: 164,352.00 | BJ93: 0 | BK93: 0 | BL93: 0 | BM93: 0 | BV93: =SUBTOTAL(9,BV89:BV92) -> 4 | BW93: =SUBTOTAL(9,BW89:BW92) -> 331,156.00
A94: 1 | Q94: อบต.ศรีฐาน | R94: ภูกระดึง | S94: เลย | AC94: 1 | AD94: 9,489.20 | AE94: 113,870.40 | AF94: 28,467.60 | AG94: 18,978.40 | AQ94: 1 | AR94: 1,510.80 | AS94: 18,129.60 | AT94: 4,532.40 | AU94: 3,021.60 | AX94: 1 | AY94: 142,338.00 | AZ94: 0 | BA94: 0 | BB94: 0 | BC94: 0 | BD94: 0 | BE94: 0 | BF94: 0 | BG94: 0 | BH94: 0 | BI94: 0 | BJ94: 0 | BK94: 0 | BL94: 0 | BM94: 0 | BT94: 1.00 | BU94: 263,338.00 | BV94: 1 | BW94: 197,338.00
S95: เลย ผลรวม | AC95: =SUBTOTAL(9,AC94:AC94) -> 1 | AD95: =SUBTOTAL(9,AD94:AD94) -> 9,489.20 | AE95: =SUBTOTAL(9,AE94:AE94) -> 113,870.40 | AF95: =SUBTOTAL(9,AF94:AF94) -> 28,467.60 | AG95: =SUBTOTAL(9,AG94:AG94) -> 18,978.40 | AQ95: =SUBTOTAL(9,AQ94:AQ94) -> 1 | AR95: =SUBTOTAL(9,AR94:AR94) -> 1,510.80 | AS95: =SUBTOTAL(9,AS94:AS94) -> 18,129.60 | AT95: =SUBTOTAL(9,AT94:AT94) -> 4,532.40 | AU95: =SUBTOTAL(9,AU94:AU94) -> 3,021.60 | AX95: =SUBTOTAL(9,AX94:AX94) -> 1 | AY95: 142,338.00 | AZ95: 0 | BA95: 0 | BB95: 0 | BC95: 0 | BD95: 0 | BE95: 0 | BF95: 0 | BG95: 0 | BH95: 0 | BI95: 0 | BJ95: 0 | BK95: 0 | BL95: 0 | BM95: 0 | BV95: =SUBTOTAL(9,BV94:BV94) -> 1 | BW95: =SUBTOTAL(9,BW94:BW94) -> 197,338.00
A96: 1 | Q96: อบต.สังเม็ก | R96: กันทรลักษ์ | S96: ศรีสะเกษ | AC96: 1 | AD96: 8,200.80 | AE96: 98,409.60 | AF96: 24,602.40 | AG96: 16,401.60 | AQ96: 1 | AR96: 2,799.20 | AS96: 33,590.40 | AT96: 8,397.60 | AU96: 5,598.40 | AX96: 1 | AY96: 123,012.00 | AZ96: 0 | BA96: 0 | BB96: 0 | BC96: 0 | BD96: 0 | BE96: 0 | BF96: 0 | BG96: 0 | BH96: 0 | BI96: 0 | BJ96: 0 | BK96: 0 | BL96: 0 | BM96: 0 | BT96: 0 | BU96: 244,012.00 | BV96: 1 | BW96: 178,012.00
A97: =A96+1 -> 2 | Q97: อบต.จาน | R97: กันทรารมย์ | S97: ศรีสะเกษ | AC97: 1 | AD97: 8,777.60 | AE97: 105,331.20 | AF97: 26,332.80 | AG97: 17,555.20 | AQ97: 1 | AR97: 2,222.40 | AS97: 26,668.80 | AT97: 6,667.20 | AU97: 4,444.80 | AX97: 1 | AY97: 131,664.00 | AZ97: 0 | BA97: 0 | BB97: 0 | BC97: 0 | BD97: 0 | BE97: 0 | BF97: 0 | BG97: 0 | BH97: 0 | BI97: 0 | BJ97: 0 | BK97: 0 | BL97: 0 | BM97: 0 | BT97: 0 | BU97: 252,664.00 | BV97: 1 | BW97: 186,664.00
A98: =A97+1 -> 3 | Q98: อบต.ดู่ | R98: กันทรารมย์ | S98: ศรีสะเกษ | AC98: 0 | AD98: 0 | AE98: 0 | AF98: 0 | AG98: 0 | AQ98: 0 | AR98: 0 | AS98: 0 | AT98: 0 | AU98: 0 | AX98: 0 | AY98: 0 | AZ98: 0 | BA98: 0 | BB98: 0 | BC98: 0 | BD98: 0 | BE98: 0 | BF98: 1 | BG98: 454,610.00 | BH98: 0 | BI98: 0 | BJ98: 0 | BK98: 0 | BL98: 0 | BM98: 0 | BT98: 0 | BU98: 454,610.00 | BV98: 1 | BW98: 454,610.00
A99: =A98+1 -> 4 | Q99: อบต.โคกเพชร | R99: ขุขันธ์ | S99: ศรีสะเกษ | AC99: 1 | AD99: 9,482.20 | AE99: 113,786.40 | AF99: 28,446.60 | AG99: 18,964.40 | AH99: 0 | AI99: 0 | AJ99: 0 | AK99: 0 | AL99: 0 | AM99: 0 | AN99: 0 | AO99: 0 | AP99: 0 | AQ99: 1 | AR99: 1,517.80 | AS99: 18,213.60 | AT99: 4,553.40 | AU99: 3,035.60 | AV99: 0 | AW99: 0 | AX99: 1 | AY99: 142,233.00 | AZ99: 0 | BA99: 0 | BB99: 0 | BC99: 0 | BD99: 0 | BE99: 0 | BF99: 0 | BG99: 0 | BH99: 2 | BI99: 22,000.00 | BJ99: 0 | BK99: 0 | BL99: 0 | BM99: 0 | BN99: ='บัญชีสรุป รายเก่า'!CS33+'บัญชีรายชื่อ (รายใหม่) '!BN134 -> 0 | BO99: ='บัญชีสรุป รายเก่า'!CT33+'บัญชีรายชื่อ (รายใหม่) '!BO134 -> 197,233.00 | BP99: ='บัญชีสรุป รายเก่า'!CU33+'บัญชีรายชื่อ (รายใหม่) '!BP134 -> 0 | BQ99: ='บัญชีสรุป รายเก่า'!CV33+'บัญชีรายชื่อ (รายใหม่) '!BQ134 -> 0 | BR99: ='บัญชีสรุป รายเก่า'!CW33+'บัญชีรายชื่อ (รายใหม่) '!BR134 -> 0 | BS99: ='บัญชีสรุป รายเก่า'!CX33+'บัญชีรายชื่อ (รายใหม่) '!BS134 -> 0 | BT99: ='บัญชีสรุป รายเก่า'!CY33+'บัญชีรายชื่อ (รายใหม่) '!BT134 -> 1.00 | BU99: ='บัญชีสรุป รายเก่า'!CZ33+'บัญชีรายชื่อ (รายใหม่) '!BU134 -> 197,233.00 | BV99: 3 | BW99: 219,233.00
A100: =A99+1 -> 5 | Q100: อบต.ขะยูง | R100: อุทุมพรพิสัย | S100: ศรีสะเกษ | BH100: 4 | BI100: 66,000.00 | BV100: =BH100 -> 4 | BW100: =BI100 -> 66,000.00
S101: ศรีสะเกษ ผลรวม | AC101: =SUBTOTAL(9,AC96:AC100) -> 3 | AD101: =SUBTOTAL(9,AD96:AD100) -> 26,460.60 | AE101: =SUBTOTAL(9,AE96:AE100) -> 317,527.20 | AF101: =SUBTOTAL(9,AF96:AF100) -> 79,381.80 | AG101: =SUBTOTAL(9,AG96:AG100) -> 52,921.20 | AQ101: =SUBTOTAL(9,AQ96:AQ100) -> 3 | AR101: =SUBTOTAL(9,AR96:AR100) -> 6,539.40 | AS101: =SUBTOTAL(9,AS96:AS100) -> 78,472.80 | AT101: =SUBTOTAL(9,AT96:AT100) -> 19,618.20 | AU101: =SUBTOTAL(9,AU96:AU100) -> 13,078.80 | AX101: =SUBTOTAL(9,AX96:AX100) -> 3 | AY101: 396,909.00 | AZ101: 0 | BA101: 0 | BB101: 0 | BC101: 0 | BD101: 0 | BE101: 0 | BF101: 1 | BG101: 454,610.00 | BH101: 6 | BI101: 88,000.00 | BJ101: 0 | BK101: 0 | BL101: 0 | BM101: 0 | BV101: =SUBTOTAL(9,BV96:BV100) -> 10 | BW101: =SUBTOTAL(9,BW96:BW100) -> 1,104,519.00
A102: 1 | Q102: อบต.ห้วยยาง | R102: เมืองสกลนคร | S102: สกลนคร | AC102: 1 | AD102: 8,585.20 | AE102: 103,022.40 | AF102: 25,478.66 | AG102: 17,170.40 | AQ102: 1 | AR102: 2,414.80 | AS102: 28,977.60 | AT102: 7,166.50 | AU102: 4,829.60 | AX102: 1 | AY102: 128,778.00 | AZ102: 0 | BA102: 0 | BB102: 0 | BC102: 0 | BD102: 0 | BE102: 0 | BF102: 0 | BG102: 0 | BH102: 0 | BI102: 0 | BJ102: 0 | BK102: 0 | BL102: 0 | BM102: 0 | BT102: 1.00 | BU102: 249,423.16 | BV102: 1 | BW102: 183,423.16
S103: สกลนคร ผลรวม | AC103: =SUBTOTAL(9,AC102:AC102) -> 1 | AD103: =SUBTOTAL(9,AD102:AD102) -> 8,585.20 | AE103: =SUBTOTAL(9,AE102:AE102) -> 103,022.40 | AF103: =SUBTOTAL(9,AF102:AF102) -> 25,478.66 | AG103: =SUBTOTAL(9,AG102:AG102) -> 17,170.40 | AQ103: =SUBTOTAL(9,AQ102:AQ102) -> 1 | AR103: =SUBTOTAL(9,AR102:AR102) -> 2,414.80 | AS103: =SUBTOTAL(9,AS102:AS102) -> 28,977.60 | AT103: =SUBTOTAL(9,AT102:AT102) -> 7,166.50 | AU103: =SUBTOTAL(9,AU102:AU102) -> 4,829.60 | AX103: =SUBTOTAL(9,AX102:AX102) -> 1 | AY103: 128,778.00 | AZ103: 0 | BA103: 0 | BB103: 0 | BC103: 0 | BD103: 0 | BE103: 0 | BF103: 0 | BG103: 0 | BH103: 0 | BI103: 0 | BJ103: 0 | BK103: 0 | BL103: 0 | BM103: 0 | BV103: =SUBTOTAL(9,BV102:BV102) -> 1 | BW103: =SUBTOTAL(9,BW102:BW102) -> 183,423.16
A104: 1 | Q104: อบต.ท่าม่วง | R104: เทพา | S104: สงขลา | AC104: 1 | AD104: 8,629.40 | AE104: 103,552.80 | AF104: 25,888.20 | AG104: 17,258.80 | AQ104: 1 | AR104: 2,370.60 | AS104: 28,447.20 | AT104: 7,111.80 | AU104: 4,741.20 | AX104: 1 | AY104: 129,441.00 | AZ104: 0 | BA104: 0 | BB104: 0 | BC104: 0 | BD104: 0 | BE104: 0 | BF104: 0 | BG104: 0 | BH104: 0 | BI104: 0 | BJ104: 0 | BK104: 0 | BL104: 0 | BM104: 0 | BT104: 1.00 | BU104: 250,441.00 | BV104: 1 | BW104: 184,441.00
A105: =A104+1 -> 2 | Q105: อบต.ปากบาง | R105: เทพา | S105: สงขลา | AC105: 1 | AD105: 9,100.00 | AE105: 109,200.00 | AF105: 27,300.00 | AG105: 18,200.00 | AQ105: 1 | AR105: 1,900.00 | AS105: 22,800.00 | AT105: 5,700.00 | AU105: 3,800.00 | AX105: 1 | AY105: 136,500.00 | AZ105: 0 | BA105: 0 | BB105: 0 | BC105: 0 | BD105: 0 | BE105: 0 | BF105: 0 | BG105: 0 | BH105: 0 | BI105: 0 | BJ105: 0 | BK105: 0 | BL105: 0 | BM105: 0 | BT105: 1.00 | BU105: 257,500.00 | BV105: 1 | BW105: 191,500.00
A106: =A105+1 -> 3 | Q106: อบต.คลองแดน | R106: ระโนด | S106: สงขลา | AC106: 1 | AD106: 9,365.20 | AE106: 112,382.40 | AF106: 28,095.60 | AG106: 18,730.40 | AQ106: 1 | AR106: 1,634.80 | AS106: 19,617.60 | AT106: 4,904.40 | AU106: 3,269.60 | AX106: 1 | AY106: 140,478.00 | AZ106: 0 | BA106: 0 | BB106: 0 | BC106: 0 | BD106: 0 | BE106: 0 | BF106: 0 | BG106: 0 | BH106: 0 | BI106: 0 | BJ106: 0 | BK106: 0 | BL106: 0 | BM106: 0 | BT106: 1.00 | BU106: 261,478.00 | BV106: 1 | BW106: 195,478.00
A107: =A106+1 -> 4 | Q107: อบต.คูหา | R107: สะบ้าย้อย | S107: สงขลา | BH107: 2 | BI107: 22,000.00 | BV107: =BH107 -> 2 | BW107: =BI107 -> 22,000.00
A108: =A107+1 -> 5 | Q108: อบต.ท่าข้าม | R108: หาดใหญ่ | S108: สงขลา | AC108: 1 | AD108: 9,875.60 | AE108: 118,507.20 | AF108: 29,626.80 | AG108: 19,751.20 | AQ108: 1 | AR108: 1,124.40 | AS108: 13,492.80 | AT108: 3,373.20 | AU108: 2,248.80 | AX108: 1 | AY108: 148,134.00 | AZ108: 0 | BA108: 0 | BB108: 0 | BC108: 0 | BD108: 0 | BE108: 0 | BF108: 0 | BG108: 0 | BH108: 0 | BI108: 0 | BJ108: 0 | BK108: 0 | BL108: 0 | BM108: 0 | BT108: 1.00 | BU108: 269,134.00 | BV108: 1 | BW108: 203,134.00
S109: สงขลา ผลรวม | AC109: =SUBTOTAL(9,AC104:AC108) -> 4 | AD109: =SUBTOTAL(9,AD104:AD108) -> 36,970.20 | AE109: =SUBTOTAL(9,AE104:AE108) -> 443,642.40 | AF109: =SUBTOTAL(9,AF104:AF108) -> 110,910.60 | AG109: =SUBTOTAL(9,AG104:AG108) -> 73,940.40 | AQ109: =SUBTOTAL(9,AQ104:AQ108) -> 4 | AR109: =SUBTOTAL(9,AR104:AR108) -> 7,029.80 | AS109: =SUBTOTAL(9,AS104:AS108) -> 84,357.60 | AT109: =SUBTOTAL(9,AT104:AT108) -> 21,089.40 | AU109: =SUBTOTAL(9,AU104:AU108) -> 14,059.60 | AX109: =SUBTOTAL(9,AX104:AX108) -> 4 | AY109: 554,553.00 | AZ109: 0 | BA109: 0 | BB109: 0 | BC109: 0 | BD109: 0 | BE109: 0 | BF109: 0 | BG109: 0 | BH109: 2 | BI109: 22,000.00 | BJ109: 0 | BK109: 0 | BL109: 0 | BM109: 0 | BV109: =SUBTOTAL(9,BV104:BV108) -> 6 | BW109: =SUBTOTAL(9,BW104:BW108) -> 796,553.00
A110: 1 | Q110: อบต.วังประจัน | R110: ควนโดน | S110: สตูล | AC110: 1 | AD110: 9,443.20 | AE110: 113,318.40 | AF110: 28,329.60 | AG110: 18,886.40 | AQ110: 1 | AR110: 1,556.80 | AS110: 18,681.60 | AT110: 4,670.40 | AU110: 3,113.60 | AX110: 1 | AY110: 141,648.00 | AZ110: 0 | BA110: 0 | BB110: 0 | BC110: 0 | BD110: 0 | BE110: 0 | BF110: 0 | BG110: 0 | BH110: 0 | BI110: 0 | BJ110: 0 | BK110: 0 | BL110: 0 | BM110: 0 | BT110: 1.00 | BU110: 262,648.00 | BV110: 1 | BW110: 196,648.00
A111: =A110+1 -> 2 | Q111: อบต.ละงู | R111: ละงู | S111: สตูล | AC111: 0 | AD111: 0 | AE111: 0 | AF111: 0 | AG111: 0 | AQ111: 0 | AR111: 0 | AS111: 0 | AT111: 0 | AU111: 0 | AX111: 0 | AY111: 0 | AZ111: 0 | BA111: 0 | BB111: 0 | BC111: 0 | BD111: 1 | BE111: 224,640.00 | BF111: 0 | BG111: 0 | BH111: 0 | BI111: 0 | BJ111: 0 | BK111: 0 | BL111: 0 | BM111: 0 | BT111: 1.00 | BU111: 224,640.00 | BV111: 1 | BW111: 224,640.00
S112: สตูล ผลรวม | AC112: =SUBTOTAL(9,AC110:AC111) -> 1 | AD112: =SUBTOTAL(9,AD110:AD111) -> 9,443.20 | AE112: =SUBTOTAL(9,AE110:AE111) -> 113,318.40 | AF112: =SUBTOTAL(9,AF110:AF111) -> 28,329.60 | AG112: =SUBTOTAL(9,AG110:AG111) -> 18,886.40 | AQ112: =SUBTOTAL(9,AQ110:AQ111) -> 1 | AR112: =SUBTOTAL(9,AR110:AR111) -> 1,556.80 | AS112: =SUBTOTAL(9,AS110:AS111) -> 18,681.60 | AT112: =SUBTOTAL(9,AT110:AT111) -> 4,670.40 | AU112: =SUBTOTAL(9,AU110:AU111) -> 3,113.60 | AX112: =SUBTOTAL(9,AX110:AX111) -> 1 | AY112: 141,648.00 | AZ112: 0 | BA112: 0 | BB112: 0 | BC112: 0 | BD112: 1 | BE112: 224,640.00 | BF112: 0 | BG112: 0 | BH112: 0 | BI112: 0 | BJ112: 0 | BK112: 0 | BL112: 0 | BM112: 0 | BV112: =SUBTOTAL(9,BV110:BV111) -> 2 | BW112: =SUBTOTAL(9,BW110:BW111) -> 421,288.00
A113: 1 | Q113: อบต.คลองทับจันทร์ | R113: อรัญประเทศ | S113: สระแก้ว | AC113: 1 | AD113: 9,688.00 | AE113: 106,568.00 | AF113: 19,376.00 | AG113: 19,376.00 | AQ113: 1 | AR113: 1,312.00 | AS113: 14,432.00 | AT113: 2,624.00 | AU113: 2,624.00 | AX113: 1 | AY113: 145,320.00 | AZ113: 0 | BA113: 0 | BB113: 0 | BC113: 0 | BD113: 0 | BE113: 0 | BF113: 0 | BG113: 0 | BH113: 0 | BI113: 0 | BJ113: 0 | BK113: 0 | BL113: 0 | BM113: 0 | BT113: 1.00 | BU113: 255,320.00 | BV113: 1 | BW113: 189,320.00
S114: สระแก้ว ผลรวม | AC114: =SUBTOTAL(9,AC113:AC113) -> 1 | AD114: =SUBTOTAL(9,AD113:AD113) -> 9,688.00 | AE114: =SUBTOTAL(9,AE113:AE113) -> 106,568.00 | AF114: =SUBTOTAL(9,AF113:AF113) -> 19,376.00 | AG114: =SUBTOTAL(9,AG113:AG113) -> 19,376.00 | AQ114: =SUBTOTAL(9,AQ113:AQ113) -> 1 | AR114: =SUBTOTAL(9,AR113:AR113) -> 1,312.00 | AS114: =SUBTOTAL(9,AS113:AS113) -> 14,432.00 | AT114: =SUBTOTAL(9,AT113:AT113) -> 2,624.00 | AU114: =SUBTOTAL(9,AU113:AU113) -> 2,624.00 | AX114: =SUBTOTAL(9,AX113:AX113) -> 1 | AY114: 145,320.00 | AZ114: 0 | BA114: 0 | BB114: 0 | BC114: 0 | BD114: 0 | BE114: 0 | BF114: 0 | BG114: 0 | BH114: 0 | BI114: 0 | BJ114: 0 | BK114: 0 | BL114: 0 | BM114: 0 | BV114: =SUBTOTAL(9,BV113:BV113) -> 1 | BW114: =SUBTOTAL(9,BW113:BW113) -> 189,320.00
A115: 1 | Q115: อบต.วังทอง | R115: ศรีสำโรง | S115: สุโขทัย | AC115: 1 | AD115: 9,696.40 | AE115: 116,356.80 | AF115: 29,089.20 | AG115: 19,392.80 | AQ115: 1 | AR115: 1,303.60 | AS115: 15,643.20 | AT115: 3,910.80 | AU115: 2,607.20 | AX115: 1 | AY115: 145,446.00 | AZ115: 0 | BA115: 0 | BB115: 0 | BC115: 0 | BD115: 0 | BE115: 0 | BF115: 0 | BG115: 0 | BH115: 0 | BI115: 0 | BJ115: 0 | BK115: 0 | BL115: 0 | BM115: 0 | BT115: 1.00 | BU115: 266,446.00 | BV115: 1 | BW115: 200,446.00
S116: สุโขทัย ผลรวม | AC116: =SUBTOTAL(9,AC115:AC115) -> 1 | AD116: =SUBTOTAL(9,AD115:AD115) -> 9,696.40 | AE116: =SUBTOTAL(9,AE115:AE115) -> 116,356.80 | AF116: =SUBTOTAL(9,AF115:AF115) -> 29,089.20 | AG116: =SUBTOTAL(9,AG115:AG115) -> 19,392.80 | AQ116: =SUBTOTAL(9,AQ115:AQ115) -> 1 | AR116: =SUBTOTAL(9,AR115:AR115) -> 1,303.60 | AS116: =SUBTOTAL(9,AS115:AS115) -> 15,643.20 | AT116: =SUBTOTAL(9,AT115:AT115) -> 3,910.80 | AU116: =SUBTOTAL(9,AU115:AU115) -> 2,607.20 | AX116: =SUBTOTAL(9,AX115:AX115) -> 1 | AY116: 145,446.00 | AZ116: 0 | BA116: 0 | BB116: 0 | BC116: 0 | BD116: 0 | BE116: 0 | BF116: 0 | BG116: 0 | BH116: 0 | BI116: 0 | BJ116: 0 | BK116: 0 | BL116: 0 | BM116: 0 | BV116: =SUBTOTAL(9,BV115:BV115) -> 1 | BW116: =SUBTOTAL(9,BW115:BW115) -> 200,446.00
A117: 1 | Q117: อบต.ท่าอุแท | R117: กาญจนดิษฐ์ | S117: สุราษฎร์ธานี | AC117: 1 | AD117: 10,234.00 | AE117: 122,808.00 | AF117: 30,702.00 | AG117: 20,468.00 | AQ117: 1 | AR117: 766.00 | AS117: 9,192.00 | AT117: 2,298.00 | AU117: 1,532.00 | AX117: 1 | AY117: 153,510.00 | AZ117: 0 | BA117: 0 | BB117: 0 | BC117: 0 | BD117: 0 | BE117: 0 | BF117: 0 | BG117: 0 | BH117: 0 | BI117: 0 | BJ117: 0 | BK117: 0 | BL117: 0 | BM117: 0 | BT117: 1.00 | BU117: 274,510.00 | BV117: 1 | BW117: 208,510.00
A118: =A117+1 -> 2 | Q118: อบต.ท่าขนอน | R118: คีรีรัฐนิคม | S118: สุราษฎร์ธานี | AC118: 1 | AD118: 6,347.00 | AE118: 76,164.00 | AF118: 19,041.00 | AG118: 12,694.00 | AQ118: 1 | AR118: 4,653.00 | AS118: 55,836.00 | AT118: 13,959.00 | AU118: 9,306.00 | AX118: 1 | AY118: 95,205.00 | AZ118: 0 | BA118: 0 | BB118: 0 | BC118: 0 | BD118: 0 | BE118: 0 | BF118: 0 | BG118: 0 | BH118: 0 | BI118: 0 | BJ118: 0 | BK118: 0 | BL118: 0 | BM118: 0 | BT118: 1.00 | BU118: 216,205.00 | BV118: 1 | BW118: 150,205.00
S119: สุราษฎร์ธานี ผลรวม | AC119: =SUBTOTAL(9,AC117:AC118) -> 2 | AD119: =SUBTOTAL(9,AD117:AD118) -> 16,581.00 | AE119: =SUBTOTAL(9,AE117:AE118) -> 198,972.00 | AF119: =SUBTOTAL(9,AF117:AF118) -> 49,743.00 | AG119: =SUBTOTAL(9,AG117:AG118) -> 33,162.00 | AQ119: =SUBTOTAL(9,AQ117:AQ118) -> 2 | AR119: =SUBTOTAL(9,AR117:AR118) -> 5,419.00 | AS119: =SUBTOTAL(9,AS117:AS118) -> 65,028.00 | AT119: =SUBTOTAL(9,AT117:AT118) -> 16,257.00 | AU119: =SUBTOTAL(9,AU117:AU118) -> 10,838.00 | AX119: =SUBTOTAL(9,AX117:AX118) -> 2 | AY119: 248,715.00 | AZ119: 0 | BA119: 0 | BB119: 0 | BC119: 0 | BD119: 0 | BE119: 0 | BF119: 0 | BG119: 0 | BH119: 0 | BI119: 0 | BJ119: 0 | BK119: 0 | BL119: 0 | BM119: 0 | BV119: =SUBTOTAL(9,BV117:BV118) -> 2 | BW119: =SUBTOTAL(9,BW117:BW118) -> 358,715.00
A120: 1 | Q120: อบต.ลำดวน | R120: ลำดวน | S120: สุรินทร์ | AC120: 0 | AD120: 0 | AE120: 0 | AF120: 0 | AG120: 0 | AQ120: 0 | AR120: 0 | AS120: 0 | AT120: 0 | AU120: 0 | AX120: 1 | AY120: 4,158.00 | AZ120: 0 | BA120: 0 | BB120: 0 | BC120: 0 | BD120: 0 | BE120: 0 | BF120: 0 | BG120: 0 | BH120: 0 | BI120: 0 | BJ120: 0 | BK120: 0 | BL120: 0 | BM120: 0 | BT120: 1.00 | BU120: 4,158.00 | BV120: 1 | BW120: 4,158.00
A121: =A120+1 -> 2 | Q121: อบต.กระออม | R121: สำโรงทาบ | S121: สุรินทร์ | AC121: 1 | AD121: 10,374.00 | AE121: 124,488.00 | AF121: 31,122.00 | AG121: 20,748.00 | AQ121: 1 | AR121: 626.00 | AS121: 7,512.00 | AT121: 1,878.00 | AU121: 1,252.00 | AX121: 1 | AY121: 155,610.00 | AZ121: 0 | BA121: 0 | BB121: 0 | BC121: 0 | BD121: 0 | BE121: 0 | BF121: 0 | BG121: 0 | BH121: 0 | BI121: 0 | BJ121: 0 | BK121: 0 | BL121: 0 | BM121: 0 | BT121: 1.00 | BU121: 276,610.00 | BV121: 1 | BW121: 210,610.00
S122: สุรินทร์ ผลรวม | AC122: =SUBTOTAL(9,AC120:AC121) -> 1 | AD122: =SUBTOTAL(9,AD120:AD121) -> 10,374.00 | AE122: =SUBTOTAL(9,AE120:AE121) -> 124,488.00 | AF122: =SUBTOTAL(9,AF120:AF121) -> 31,122.00 | AG122: =SUBTOTAL(9,AG120:AG121) -> 20,748.00 | AQ122: =SUBTOTAL(9,AQ120:AQ121) -> 1 | AR122: =SUBTOTAL(9,AR120:AR121) -> 626.00 | AS122: =SUBTOTAL(9,AS120:AS121) -> 7,512.00 | AT122: =SUBTOTAL(9,AT120:AT121) -> 1,878.00 | AU122: =SUBTOTAL(9,AU120:AU121) -> 1,252.00 | AX122: =SUBTOTAL(9,AX120:AX121) -> 2 | AY122: 159,768.00 | AZ122: 0 | BA122: 0 | BB122: 0 | BC122: 0 | BD122: 0 | BE122: 0 | BF122: 0 | BG122: 0 | BH122: 0 | BI122: 0 | BJ122: 0 | BK122: 0 | BL122: 0 | BM122: 0 | BV122: =SUBTOTAL(9,BV120:BV121) -> 2 | BW122: =SUBTOTAL(9,BW120:BW121) -> 214,768.00
A123: 1 | Q123: อบต.บ้านฝาง | R123: สระใคร | S123: หนองคาย | AC123: 1 | AD123: 6,749.60 | AE123: 80,995.20 | AF123: 20,248.80 | AG123: 13,499.20 | AQ123: 1 | AR123: 4,250.40 | AS123: 51,004.80 | AT123: 12,751.20 | AU123: 8,500.80 | AX123: 1 | AY123: 101,244.00 | AZ123: 0 | BA123: 0 | BB123: 0 | BC123: 0 | BD123: 0 | BE123: 0 | BF123: 0 | BG123: 0 | BH123: 0 | BI123: 0 | BJ123: 0 | BK123: 0 | BL123: 0 | BM123: 0 | BT123: 1.00 | BU123: 222,244.00 | BV123: 1 | BW123: 156,244.00
S124: หนองคาย ผลรวม | AC124: =SUBTOTAL(9,AC123:AC123) -> 1 | AD124: =SUBTOTAL(9,AD123:AD123) -> 6,749.60 | AE124: =SUBTOTAL(9,AE123:AE123) -> 80,995.20 | AF124: =SUBTOTAL(9,AF123:AF123) -> 20,248.80 | AG124: =SUBTOTAL(9,AG123:AG123) -> 13,499.20 | AQ124: =SUBTOTAL(9,AQ123:AQ123) -> 1 | AR124: =SUBTOTAL(9,AR123:AR123) -> 4,250.40 | AS124: =SUBTOTAL(9,AS123:AS123) -> 51,004.80 | AT124: =SUBTOTAL(9,AT123:AT123) -> 12,751.20 | AU124: =SUBTOTAL(9,AU123:AU123) -> 8,500.80 | AX124: =SUBTOTAL(9,AX123:AX123) -> 1 | AY124: 101,244.00 | AZ124: 0 | BA124: 0 | BB124: 0 | BC124: 0 | BD124: 0 | BE124: 0 | BF124: 0 | BG124: 0 | BH124: 0 | BI124: 0 | BJ124: 0 | BK124: 0 | BL124: 0 | BM124: 0 | BV124: =SUBTOTAL(9,BV123:BV123) -> 1 | BW124: =SUBTOTAL(9,BW123:BW123) -> 156,244.00
A125: 1 | Q125: อบต.คำเขื่อนแก้ว | R125: ชานุมาน | S125: อำนาจเจริญ | BH125: 2 | BI125: 112,442.00 | BV125: =BH125 -> 2 | BW125: =BI125 -> 112,442.00
A126: =A125+1 -> 2 | Q126: อบต.ป่าก่อ | R126: ชานุมาน | S126: อำนาจเจริญ | AC126: 0 | AD126: 0 | AE126: 0 | AF126: 0 | AG126: 0 | AQ126: 0 | AR126: 0 | AS126: 0 | AT126: 0 | AU126: 0 | AX126: 0 | AY126: 0 | AZ126: 0 | BA126: 0 | BB126: 0 | BC126: 0 | BD126: 0 | BE126: 0 | BF126: 1 | BG126: 535,920.00 | BH126: 0 | BI126: 0 | BJ126: 0 | BK126: 0 | BL126: 0 | BM126: 0 | BT126: 0 | BU126: 535,920.00 | BV126: 1 | BW126: 535,920.00
A127: =A126+1 -> 3 | Q127: อบต.ไร่ขี | R127: ลืออำนาจ | S127: อำนาจเจริญ | AC127: 0 | AD127: 0 | AE127: 0 | AF127: 0 | AG127: 0 | AQ127: 0 | AR127: 0 | AS127: 0 | AT127: 0 | AU127: 0 | AX127: 1 | AY127: 4,452.00 | AZ127: 0 | BA127: 0 | BB127: 0 | BC127: 0 | BD127: 0 | BE127: 0 | BF127: 0 | BG127: 0 | BH127: 0 | BI127: 0 | BJ127: 0 | BK127: 0 | BL127: 0 | BM127: 0 | BT127: 0 | BU127: 4,452.00 | BV127: 1 | BW127: 4,452.00
A128: =A127+1 -> 4 | Q128: อบต.จิกดู่ | R128: หัวตะพาน | S128: อำนาจเจริญ | BH128: 4 | BI128: 66,000.00 | BV128: =BH128 -> 4 | BW128: =BI128 -> 66,000.00
S129: อำนาจเจริญ ผลรวม | AC129: =SUBTOTAL(9,AC125:AC128) -> 0 | AD129: =SUBTOTAL(9,AD125:AD128) -> 0 | AE129: =SUBTOTAL(9,AE125:AE128) -> 0 | AF129: =SUBTOTAL(9,AF125:AF128) -> 0 | AG129: =SUBTOTAL(9,AG125:AG128) -> 0 | AQ129: =SUBTOTAL(9,AQ125:AQ128) -> 0 | AR129: =SUBTOTAL(9,AR125:AR128) -> 0 | AS129: =SUBTOTAL(9,AS125:AS128) -> 0 | AT129: =SUBTOTAL(9,AT125:AT128) -> 0 | AU129: =SUBTOTAL(9,AU125:AU128) -> 0 | AX129: =SUBTOTAL(9,AX125:AX128) -> 1 | AY129: 4,452.00 | AZ129: 0 | BA129: 0 | BB129: 0 | BC129: 0 | BD129: 0 | BE129: 0 | BF129: 1 | BG129: 535,920.00 | BH129: 6 | BI129: 178,442.00 | BJ129: 0 | BK129: 0 | BL129: 0 | BM129: 0 | BV129: =SUBTOTAL(9,BV125:BV128) -> 8 | BW129: =SUBTOTAL(9,BW125:BW128) -> 718,814.00
A130: 1 | Q130: อบต.หนองหลัก | R130: ไชยวาน | S130: อุดรธานี | AC130: 0 | AD130: 0 | AE130: 0 | AF130: 0 | AG130: 0 | AQ130: 0 | AR130: 0 | AS130: 0 | AT130: 0 | AU130: 0 | AX130: 0 | AY130: 0 | AZ130: 0 | BA130: 0 | BB130: 0 | BC130: 0 | BD130: 0 | BE130: 0 | BF130: 1 | BG130: 326,810.00 | BH130: 0 | BI130: 0 | BJ130: 0 | BK130: 0 | BL130: 0 | BM130: 0 | BT130: 1.00 | BU130: 326,810.00 | BV130: 1 | BW130: 326,810.00
A131: =A130+1 -> 2 | Q131: อบต.นาไหม | R131: บ้านดุง | S131: อุดรธานี | BH131: 1 | BI131: 162,831.00 | BV131: =BH131 -> 1 | BW131: 162,831.00
A132: 3 | Q132: อบต.บ้านดุง | R132: บ้านดุง | S132: อุดรธานี | BH132: 2 | BI132: 183,402.00 | BV132: 2 | BW132: 183,402.00
A133: 4 | Q133: อบต.อ้อมกอ | R133: บ้านดุง | S133: อุดรธานี | BH133: 2 | BI133: 22,000.00 | BV133: 2 | BW133: 22,000.00
A134: 5 | Q134: อบต.ข้าวสาร | R134: บ้านผือ | S134: อุดรธานี | AC134: 1 | AD134: 9,954.00 | AE134: 119,448.00 | AF134: 29,862.00 | AG134: 19,908.00 | AQ134: 1 | AR134: 1,046.00 | AS134: 12,552.00 | AT134: 3,138.00 | AU134: 2,092.00 | AX134: 1 | AY134: 149,310.00 | AZ134: 0 | BA134: 0 | BB134: 0 | BC134: 0 | BD134: 0 | BE134: 0 | BF134: 0 | BG134: 0 | BH134: 0 | BI134: 0 | BJ134: 0 | BK134: 0 | BL134: 0 | BM134: 0 | BT134: 1.00 | BU134: 270,310.00 | BV134: 1 | BW134: 204,310.00
A135: 6 | Q135: อบต.เขือน้ำ | R135: บ้านผือ | S135: อุดรธานี | AC135: 1 | AD135: 10,234.00 | AE135: 122,808.00 | AF135: 30,702.00 | AG135: 20,468.00 | AQ135: 1 | AR135: 766.00 | AS135: 9,192.00 | AT135: 2,298.00 | AU135: 1,532.00 | AX135: 1 | AY135: 153,510.00 | AZ135: 0 | BA135: 0 | BB135: 0 | BC135: 0 | BD135: 0 | BE135: 0 | BF135: 0 | BG135: 0 | BH135: 0 | BI135: 0 | BJ135: 0 | BK135: 0 | BL135: 0 | BM135: 0 | BT135: 1.00 | BU135: 274,510.00 | BV135: 1 | BW135: 208,510.00
A136: 7 | Q136: อบต.จำปาโมง | R136: บ้านผือ | S136: อุดรธานี | AC136: 1 | AD136: 9,903.60 | AE136: 118,843.20 | AF136: 29,710.80 | AG136: 19,807.20 | AQ136: 1 | AR136: 1,096.40 | AS136: 13,156.80 | AT136: 3,289.20 | AU136: 2,192.80 | AX136: 1 | AY136: 148,554.00 | AZ136: 0 | BA136: 0 | BB136: 0 | BC136: 0 | BD136: 0 | BE136: 0 | BF136: 0 | BG136: 0 | BH136: 0 | BI136: 0 | BJ136: 0 | BK136: 0 | BL136: 0 | BM136: 0 | BT136: 1.00 | BU136: 269,554.00 | BV136: 1 | BW136: 203,554.00
A137: 8 | Q137: อบต.นาม่วง | R137: ประจักษ์ศิลปาคม | S137: อุดรธานี | AC137: 1 | AD137: 6,800.20 | AE137: 81,602.40 | AF137: 20,400.60 | AG137: 13,600.40 | AQ137: 1 | AR137: 4,199.80 | AS137: 50,397.60 | AT137: 12,599.40 | AU137: 8,399.60 | AX137: 1 | AY137: 102,003.00 | AZ137: 0 | BA137: 0 | BB137: 0 | BC137: 0 | BD137: 0 | BE137: 0 | BF137: 0 | BG137: 0 | BH137: 0 | BI137: 0 | BJ137: 0 | BK137: 0 | BL137: 0 | BM137: 0 | BT137: 1.00 | BU137: 223,003.00 | BV137: 1 | BW137: 157,003.00
A138: 9 | Q138: อบต.ห้วยสามพาด | R138: ประจักษ์ศิลปาคม | S138: อุดรธานี | AC138: 1 | AD138: 9,352.20 | AE138: 112,226.40 | AF138: 28,056.60 | AG138: 18,704.40 | AQ138: 1 | AR138: 1,647.80 | AS138: 19,773.60 | AT138: 4,943.40 | AU138: 3,295.60 | AX138: 1 | AY138: 140,283.00 | AZ138: 0 | BA138: 0 | BB138: 0 | BC138: 0 | BD138: 0 | BE138: 0 | BF138: 0 | BG138: 0 | BH138: 0 | BI138: 0 | BJ138: 0 | BK138: 0 | BL138: 0 | BM138: 0 | BT138: 1.00 | BU138: 261,283.00 | BV138: 1 | BW138: 195,283.00
A139: 10 | Q139: อบต.กุดสระ | R139: เมืองอุดรธานี | S139: อุดรธานี | BH139: 1 | BI139: 148,104.00 | BV139: =BH139 -> 1 | BW139: =BI139 -> 148,104.00
A140: 11 | Q140: อบต.บ้านจั่น | R140: เมืองอุดรธานี | S140: อุดรธานี | AC140: 1 | AD140: 9,651.60 | AE140: 115,819.20 | AF140: 28,954.80 | AG140: 19,303.20 | AQ140: 1 | AR140: 1,348.40 | AS140: 16,180.80 | AT140: 4,045.20 | AU140: 2,696.80 | AX140: 1 | AY140: 144,774.00 | AZ140: 0 | BA140: 0 | BB140: 0 | BC140: 0 | BD140: 0 | BE140: 0 | BF140: 0 | BG140: 0 | BH140: 0 | BI140: 0 | BJ140: 0 | BK140: 0 | BL140: 0 | BM140: 0 | BT140: 1.00 | BU140: 265,774.00 | BV140: 1 | BW140: 199,774.00
A141: 12 | Q141: อบต.บ้านเชียง | R141: หนองหาน | S141: อุดรธานี | AC141: 1 | AD141: 6,716.60 | AE141: 80,599.20 | AF141: 20,149.80 | AG141: 13,433.20 | AQ141: 1 | AR141: 4,283.40 | AS141: 51,400.80 | AT141: 12,850.20 | AU141: 8,566.80 | AX141: 1 | AY141: 100,749.00 | AZ141: 0 | BA141: 0 | BB141: 0 | BC141: 0 | BD141: 0 | BE141: 0 | BF141: 0 | BG141: 0 | BH141: 0 | BI141: 0 | BJ141: 0 | BK141: 0 | BL141: 0 | BM141: 0 | BT141: 1.00 | BU141: 221,749.00 | BV141: 1 | BW141: 155,749.00
S142: อุดรธานี ผลรวม | AC142: =SUBTOTAL(9,AC130:AC141) -> 7 | AD142: =SUBTOTAL(9,AD130:AD141) -> 62,612.20 | AE142: =SUBTOTAL(9,AE130:AE141) -> 751,346.40 | AF142: =SUBTOTAL(9,AF130:AF141) -> 187,836.60 | AG142: =SUBTOTAL(9,AG130:AG141) -> 125,224.40 | AQ142: =SUBTOTAL(9,AQ130:AQ141) -> 7 | AR142: =SUBTOTAL(9,AR130:AR141) -> 14,387.80 | AS142: =SUBTOTAL(9,AS130:AS141) -> 172,653.60 | AT142: =SUBTOTAL(9,AT130:AT141) -> 43,163.40 | AU142: =SUBTOTAL(9,AU130:AU141) -> 28,775.60 | AX142: =SUBTOTAL(9,AX130:AX141) -> 7 | AY142: 939,183.00 | AZ142: 0 | BA142: 0 | BB142: 0 | BC142: 0 | BD142: 0 | BE142: 0 | BF142: 1 | BG142: 326,810.00 | BH142: 6 | BI142: 516,337.00 | BJ142: 0 | BK142: 0 | BL142: 0 | BM142: 0 | BV142: =SUBTOTAL(9,BV130:BV141) -> 14 | BW142: =SUBTOTAL(9,BW130:BW141) -> 2,167,330.00
A143: 1 | Q143: อบต.ขุนฝาง | R143: เมืองอุตรดิตถ์ | S143: อุตรดิตถ์ | BH143: 1 | BI143: 169,422.00 | BV143: =BH143 -> 1 | BW143: =BI143 -> 169,422.00
S144: อุตรดิตถ์ ผลรวม | AC144: =SUBTOTAL(9,AC143:AC143) -> 0 | AD144: =SUBTOTAL(9,AD143:AD143) -> 0 | AE144: =SUBTOTAL(9,AE143:AE143) -> 0 | AF144: =SUBTOTAL(9,AF143:AF143) -> 0 | AG144: =SUBTOTAL(9,AG143:AG143) -> 0 | AQ144: =SUBTOTAL(9,AQ143:AQ143) -> 0 | AR144: =SUBTOTAL(9,AR143:AR143) -> 0 | AS144: =SUBTOTAL(9,AS143:AS143) -> 0 | AT144: =SUBTOTAL(9,AT143:AT143) -> 0 | AU144: =SUBTOTAL(9,AU143:AU143) -> 0 | AX144: =SUBTOTAL(9,AX143:AX143) -> 0 | AY144: 0 | AZ144: 0 | BA144: 0 | BB144: 0 | BC144: 0 | BD144: 0 | BE144: 0 | BF144: 0 | BG144: 0 | BH144: 1 | BI144: 169,422.00 | BJ144: 0 | BK144: 0 | BL144: 0 | BM144: 0 | BV144: =SUBTOTAL(9,BV143:BV143) -> 1 | BW144: =SUBTOTAL(9,BW143:BW143) -> 169,422.00
V1715: 2502-04-04
